Workbook

Sheet Inputs
A1: Existing e | B1: 3.8 | C1: Percent
A2: Required e | B2: 7 | C2: Percent
A3: Curve Length | B3: 348.48 | C3: feet
A4: Required STL | C4: feet
A5: Existing STL | C5: feet
A6: Radius | B6: 933 | C6: feet
A7: Width | B7: 24 | C7: feet
A8: Density | B8: 111 | C8: Lbs / Sq Yd - inch
A9: =IF('STL Volume'!C103<'STL Volume'!A106,"WARNING!","") -> 
A10: Tonnage | B10: =B38/9*12*B8/2000 -> 507.7175872 | C10: Tons
A14: "Area of
A15: Curve" | B15: =B7*B3 -> 8363.52 | C15: sq ft
A16: Adjustment
A17: Factor | B17: =1+B7/6/B6 -> 1.004287245
A18: True Area
A19: of Curve | B19: =B15*B17 -> 8399.376463 | C19: sq ft
A20: Average
A21: Required
A22: Height | B22: =B7*B2/2/100 -> 0.84 | C22: feet
A23: Average
A24: Existing
A25: Height | B25: =B7*B1/2/100 -> 0.456 | C25: feet
A26: Extra
A27: Height | B27: =1/12 -> 0.08333333333 | C27: feet
A28: Average
A29: Height | B29: =B22+B27-B25 -> 0.4673333333 | C29: feet
A30: Volume
A31: of Curve | B31: =B29*B19 -> 3925.3086 | C31: cu ft
A33: Old STL | B33: ='Table Reader'!D40 -> 100 | C33: feet
A35: Volume
A36: of STLs | B36: ='STL Volume'!AA107 -> 2935.739875 | C36: cu ft
A38: Volume | B38: =B36+B31 -> 6861.048475 | C38: cu ft
A40: New STL | B40: ='Table Reader (2)'!D40 -> 220 | C40: feet
B42: =IF(B4="",B40,B4) -> 220
B43: =IF(B5="",B33,B5) -> 100
A44: LEGEND:
A45: Input
A46: Optional Input
A48: Calculated
A50: NOTE: Optional Input is not
A51: required but it must be left
A52: blank if it is not being used.

Sheet Table
B1: 2 | E1: LANE
B2: e | E2: DESIGN
B3: (%) | C3: 0 | D3: mph | E3: 15 | F3: mph | G3: 20 | H3: mph | I3: 25 | J3: mph | K3: 30 | L3: mph | M3: 35 | N3: mph | O3: 40 | P3: mph | Q3: 45 | R3: mph | S3: 50 | T3: mph | U3: 55 | V3: mph | W3: 60 | X3: mph | Y3: 65 | Z3: mph | AA3: 70 | AB3: mph | AC3: 75 | AD3: mph | AE3: 80 | AF3: mph | AG3: 85 | AH3: mph
B4: R | C4: Radius | D4: STL | E4: Radius | F4: STL | G4: Radius | H4: STL | I4: Radius | J4: STL | K4: Radius | L4: STL | M4: Radius | N4: STL | O4: Radius | P4: STL | Q4: Radius | R4: STL | S4: Radius | T4: STL | U4: Radius | V4: STL | W4: Radius | X4: STL | Y4: Radius | Z4: STL | AA4: Radius | AB4: STL | AC4: Radius | AD4: STL | AE4: Radius | AF4: STL | AG4: Radius | AH4: STL
B5: NC | C5: 0 | D5: 0 | E5: 932 | F5: 0 | G5: 1640 | H5: 0 | I5: 2370 | J5: 0 | K5: 3240 | L5: 0 | M5: 4260 | N5: 0 | O5: 5410 | P5: 0 | Q5: 6710 | R5: 0 | S5: 8150 | T5: 0 | U5: 9720 | V5: 0 | W5: 11500 | X5: 0 | Y5: 12900 | Z5: 0 | AA5: 14500 | AB5: 0 | AC5: 16100 | AD5: 0 | AE5: 17800 | AF5: 0 | AG5: 999999 | AH5: 0
B6: RC | C6: 0 | D6: 70 | E6: 676 | F6: 70 | G6: 1190 | H6: 70 | I6: 1720 | J6: 70 | K6: 2370 | L6: 80 | M6: 3120 | N6: 80 | O6: 3970 | P6: 90 | Q6: 4930 | R6: 90 | S6: 5990 | T6: 100 | U6: 7150 | V6: 110 | W6: 8440 | X6: 110 | Y6: 9510 | Z6: 120 | AA6: 10700 | AB6: 120 | AC6: 12000 | AD6: 130 | AE6: 13300 | AF6: 140 | AG6: 999999 | AH6: 140
B7: 2.2 | C7: 0 | D7: 70 | E7: 605 | F7: 70 | G7: 1070 | H7: 70 | I7: 1550 | J7: 80 | K7: 2130 | L7: 80 | M7: 2800 | N7: 90 | O7: 3570 | P7: 90 | Q7: 4440 | R7: 100 | S7: 5400 | T7: 110 | U7: 6450 | V7: 110 | W7: 7620 | X7: 120 | Y7: 8600 | Z7: 120 | AA7: 9660 | AB7: 130 | AC7: 10800 | AD7: 140 | AE7: 12000 | AF7: 150 | AG7: 999999 | AH7: 150
B8: 2.4 | C8: 0 | D8: 80 | E8: 546 | F8: 80 | G8: 959 | H8: 80 | I8: 1400 | J8: 80 | K8: 1930 | L8: 90 | M8: 2540 | N8: 90 | O8: 3240 | P8: 100 | Q8: 4030 | R8: 100 | S8: 4910 | T8: 110 | U8: 5870 | V8: 120 | W8: 6930 | X8: 120 | Y8: 7830 | Z8: 130 | AA8: 8810 | AB8: 140 | AC8: 9850 | AD8: 140 | AE8: 11000 | AF8: 160 | AG8: 999999 | AH8: 160
B9: 2.6 | C9: 0 | D9: 80 | E9: 496 | F9: 80 | G9: 872 | H9: 80 | I9: 1280 | J9: 80 | K9: 1760 | L9: 90 | M9: 2320 | N9: 90 | O9: 2960 | P9: 100 | Q9: 3690 | R9: 110 | S9: 4490 | T9: 120 | U9: 5370 | V9: 120 | W9: 6350 | X9: 130 | Y9: 7180 | Z9: 130 | AA9: 8090 | AB9: 140 | AC9: 9050 | AD9: 150 | AE9: 10100 | AF9: 160 | AG9: 999999 | AH9: 160
B10: 2.8 | C10: 0 | D10: 80 | E10: 453 | F10: 80 | G10: 796 | H10: 80 | I10: 1170 | J10: 90 | K10: 1610 | L10: 90 | M10: 2130 | N10: 100 | O10: 2720 | P10: 100 | Q10: 3390 | R10: 110 | S10: 4130 | T10: 120 | U10: 4950 | V10: 130 | W10: 5850 | X10: 130 | Y10: 6630 | Z10: 140 | AA10: 7470 | AB10: 150 | AC10: 8370 | AD10: 160 | AE10: 9340 | AF10: 170 | AG10: 999999 | AH10: 170
B11: 3 | C11: 0 | D11: 80 | E11: 415 | F11: 80 | G11: 730 | H11: 90 | I11: 1070 | J11: 90 | K11: 1480 | L11: 100 | M11: 1960 | N11: 100 | O11: 2510 | P11: 110 | Q11: 3130 | R11: 120 | S11: 3820 | T11: 120 | U11: 4580 | V11: 130 | W11: 5420 | X11: 140 | Y11: 6140 | Z11: 140 | AA11: 6930 | AB11: 150 | AC11: 7780 | AD11: 160 | AE11: 8700 | AF11: 180 | AG11: 999999 | AH11: 180
B12: 3.2 | C12: 0 | D12: 80 | E12: 382 | F12: 80 | G12: 672 | H12: 90 | I12: 985 | J12: 90 | K12: 1370 | L12: 100 | M12: 1820 | N12: 110 | O12: 2330 | P12: 110 | Q12: 2900 | R12: 120 | S12: 3550 | T12: 130 | U12: 4250 | V12: 140 | W12: 5040 | X12: 140 | Y12: 5720 | Z12: 150 | AA12: 6460 | AB12: 160 | AC12: 7260 | AD12: 170 | AE12: 8130 | AF12: 180 | AG12: 999999 | AH12: 180
B13: 3.4 | C13: 0 | D13: 90 | E13: 352 | F13: 90 | G13: 620 | H13: 90 | I13: 911 | J13: 100 | K13: 1270 | L13: 100 | M13: 1690 | N13: 110 | O13: 2170 | P13: 120 | Q13: 2700 | R13: 120 | S13: 3300 | T13: 130 | U13: 3970 | V13: 140 | W13: 4700 | X13: 150 | Y13: 5350 | Z13: 160 | AA13: 6050 | AB13: 170 | AC13: 6800 | AD13: 180 | AE13: 7620 | AF13: 190 | AG13: 999999 | AH13: 190
B14: 3.6 | C14: 0 | D14: 90 | E14: 324 | F14: 90 | G14: 572 | H14: 100 | I14: 845 | J14: 100 | K14: 1180 | L14: 110 | M14: 1570 | N14: 110 | O14: 2020 | P14: 120 | Q14: 2520 | R14: 130 | S14: 3090 | T14: 140 | U14: 3710 | V14: 150 | W14: 4400 | X14: 150 | Y14: 5010 | Z14: 160 | AA14: 5680 | AB14: 170 | AC14: 6400 | AD14: 180 | AE14: 7180 | AF14: 200 | AG14: 999999 | AH14: 200
B15: 3.8 | C15: 0 | D15: 90 | E15: 300 | F15: 90 | G15: 530 | H15: 100 | I15: 784 | J15: 100 | K15: 1100 | L15: 110 | M15: 1470 | N15: 120 | O15: 1890 | P15: 120 | Q15: 2360 | R15: 130 | S15: 2890 | T15: 140 | U15: 3480 | V15: 150 | W15: 4140 | X15: 160 | Y15: 4710 | Z15: 170 | AA15: 5350 | AB15: 180 | AC15: 6030 | AD15: 190 | AE15: 6780 | AF15: 200 | AG15: 999999 | AH15: 200
B16: 4 | C16: 0 | D16: 100 | E16: 277 | F16: 100 | G16: 490 | H16: 100 | I16: 729 | J16: 110 | K16: 1030 | L16: 110 | M16: 1370 | N16: 120 | O16: 1770 | P16: 130 | Q16: 2220 | R16: 140 | S16: 2720 | T16: 150 | U16: 3270 | V16: 160 | W16: 3890 | X16: 160 | Y16: 4450 | Z16: 170 | AA16: 5050 | AB16: 180 | AC16: 5710 | AD16: 190 | AE16: 6420 | AF16: 210 | AG16: 999999 | AH16: 210
B17: 4.2 | C17: 0 | D17: 100 | E17: 255 | F17: 100 | G17: 453 | H17: 110 | I17: 678 | J17: 110 | K17: 955 | L17: 120 | M17: 1280 | N17: 120 | O17: 1660 | P17: 130 | Q17: 2080 | R17: 140 | S17: 2560 | T17: 150 | U17: 3080 | V17: 160 | W17: 3670 | X17: 170 | Y17: 4200 | Z17: 180 | AA17: 4780 | AB17: 190 | AC17: 5410 | AD17: 200 | AE17: 6090 | AF17: 220 | AG17: 999999 | AH17: 220
B18: 4.4 | C18: 0 | D18: 100 | E18: 235 | F18: 100 | G18: 418 | H18: 110 | I18: 630 | J18: 110 | K18: 893 | L18: 120 | M18: 1200 | N18: 130 | O18: 1560 | P18: 140 | Q18: 1960 | R18: 150 | S18: 2410 | T18: 160 | U18: 2910 | V18: 170 | W18: 3470 | X18: 180 | Y18: 3980 | Z18: 180 | AA18: 4540 | AB18: 200 | AC18: 5140 | AD18: 210 | AE18: 5800 | AF18: 220 | AG18: 999999 | AH18: 220
B19: 4.6 | C19: 0 | D19: 110 | E19: 215 | F19: 110 | G19: 384 | H19: 110 | I19: 585 | J19: 120 | K19: 834 | L19: 130 | M19: 1130 | N19: 130 | O19: 1470 | P19: 140 | Q19: 1850 | R19: 150 | S19: 2280 | T19: 160 | U19: 2750 | V19: 170 | W19: 3290 | X19: 180 | Y19: 3770 | Z19: 190 | AA19: 4310 | AB19: 200 | AC19: 4890 | AD19: 210 | AE19: 5530 | AF19: 230 | AG19: 999999 | AH19: 230
B20: 4.8 | C20: 0 | D20: 110 | E20: 193 | F20: 110 | G20: 349 | H20: 120 | I20: 542 | J20: 120 | K20: 779 | L20: 130 | M20: 1060 | N20: 140 | O20: 1390 | P20: 150 | Q20: 1750 | R20: 160 | S20: 2160 | T20: 170 | U20: 2610 | V20: 180 | W20: 3120 | X20: 190 | Y20: 3590 | Z20: 200 | AA20: 4100 | AB20: 210 | AC20: 4670 | AD20: 220 | AE20: 5280 | AF20: 240 | AG20: 999999 | AH20: 240
B21: 5 | C21: 0 | D21: 110 | E21: 172 | F21: 110 | G21: 314 | H21: 120 | I21: 499 | J21: 130 | K21: 727 | L21: 130 | M21: 991 | N21: 140 | O21: 1310 | P21: 150 | Q21: 1650 | R21: 160 | S21: 2040 | T21: 170 | U21: 2470 | V21: 180 | W21: 2960 | X21: 190 | Y21: 3410 | Z21: 200 | AA21: 3910 | AB21: 210 | AC21: 4460 | AD21: 230 | AE21: 5050 | AF21: 250 | AG21: 999999 | AH21: 250
B22: 5.2 | C22: 0 | D22: 120 | E22: 154 | F22: 120 | G22: 284 | H22: 120 | I22: 457 | J22: 130 | K22: 676 | L22: 140 | M22: 929 | N22: 140 | O22: 1230 | P22: 150 | Q22: 1560 | R22: 160 | S22: 1930 | T22: 180 | U22: 2350 | V22: 190 | W22: 2820 | X22: 200 | Y22: 3250 | Z22: 210 | AA22: 3740 | AB22: 220 | AC22: 4260 | AD22: 230 | AE22: 4840 | AF22: 250 | AG22: 999999 | AH22: 250
B23: 5.4 | C23: 0 | D23: 120 | E23: 139 | F23: 120 | G23: 258 | H23: 120 | I23: 420 | J23: 130 | K23: 627 | L23: 140 | M23: 870 | N23: 150 | O23: 1160 | P23: 160 | Q23: 1480 | R23: 170 | S23: 1830 | T23: 180 | U23: 2230 | V23: 190 | W23: 2680 | X23: 200 | Y23: 3110 | Z23: 210 | AA23: 3570 | AB23: 230 | AC23: 4090 | AD23: 240 | AE23: 4640 | AF23: 260 | AG23: 999999 | AH23: 260
B24: 5.6 | C24: 0 | D24: 120 | E24: 126 | F24: 120 | G24: 236 | H24: 130 | I24: 387 | J24: 140 | K24: 582 | L24: 140 | M24: 813 | N24: 150 | O24: 1090 | P24: 160 | Q24: 1390 | R24: 170 | S24: 1740 | T24: 190 | U24: 2120 | V24: 200 | W24: 2550 | X24: 210 | Y24: 2970 | Z24: 220 | AA24: 3420 | AB24: 230 | AC24: 3920 | AD24: 240 | AE24: 4460 | AF24: 270 | AG24: 999999 | AH24: 270
B25: 5.8 | C25: 0 | D25: 120 | E25: 115 | F25: 120 | G25: 216 | H25: 130 | I25: 358 | J25: 140 | K25: 542 | L25: 150 | M25: 761 | N25: 160 | O25: 1030 | P25: 170 | Q25: 1320 | R25: 180 | S25: 1650 | T25: 190 | U25: 2010 | V25: 200 | W25: 2430 | X25: 210 | Y25: 2840 | Z25: 220 | AA25: 3280 | AB25: 240 | AC25: 3760 | AD25: 250 | AE25: 4290 | AF25: 270 | AG25: 999999 | AH25: 270
B26: 6 | C26: 0 | D26: 130 | E26: 105 | F26: 130 | G26: 199 | H26: 130 | I26: 332 | J26: 140 | K26: 506 | L26: 150 | M26: 713 | N26: 160 | O26: 965 | P26: 170 | Q26: 1250 | R26: 180 | S26: 1560 | T26: 200 | U26: 1920 | V26: 210 | W26: 2320 | X26: 220 | Y26: 2710 | Z26: 230 | AA26: 3150 | AB26: 240 | AC26: 3620 | AD26: 260 | AE26: 4140 | AF26: 280 | AG26: 999999 | AH26: 280
B27: 6.2 | C27: 0 | D27: 130 | E27: 97 | F27: 130 | G27: 184 | H27: 140 | I27: 308 | J27: 150 | K27: 472 | L27: 150 | M27: 669 | N27: 160 | O27: 909 | P27: 170 | Q27: 1180 | R27: 190 | S27: 1480 | T27: 200 | U27: 1820 | V27: 210 | W27: 2210 | X27: 220 | Y27: 2600 | Z27: 230 | AA27: 3020 | AB27: 250 | AC27: 3480 | AD27: 260 | AE27: 3990 | AF27: 290 | AG27: 999999 | AH27: 290
B28: 6.4 | C28: 0 | D28: 130 | E28: 89 | F28: 130 | G28: 170 | H28: 140 | I28: 287 | J28: 150 | K28: 442 | L28: 160 | M28: 628 | N28: 170 | O28: 857 | P28: 180 | Q28: 1110 | R28: 190 | S28: 1400 | T28: 210 | U28: 1730 | V28: 220 | W28: 2110 | X28: 230 | Y28: 2490 | Z28: 240 | AA28: 2910 | AB28: 260 | AC28: 3360 | AD28: 270 | AE28: 3850 | AF28: 290 | AG28: 999999 | AH28: 290
B29: 6.6 | C29: 0 | D29: 140 | E29: 82 | F29: 140 | G29: 157 | H29: 140 | I29: 267 | J29: 150 | K29: 413 | L29: 160 | M29: 590 | N29: 170 | O29: 808 | P29: 180 | Q29: 1050 | R29: 200 | S29: 1330 | T29: 210 | U29: 1650 | V29: 220 | W29: 2010 | X29: 230 | Y29: 2380 | Z29: 250 | AA29: 2790 | AB29: 260 | AC29: 3240 | AD29: 280 | AE29: 3720 | AF29: 300 | AG29: 999999 | AH29: 300
B30: 6.8 | C30: 0 | D30: 140 | E30: 76 | F30: 140 | G30: 146 | H30: 150 | I30: 248 | J30: 160 | K30: 386 | L30: 170 | M30: 553 | N30: 180 | O30: 761 | P30: 190 | Q30: 990 | R30: 200 | S30: 1260 | T30: 220 | U30: 1560 | V30: 230 | W30: 1910 | X30: 240 | Y30: 2280 | Z30: 250 | AA30: 2690 | AB30: 270 | AC30: 3120 | AD30: 280 | AE30: 3600 | AF30: 310 | AG30: 999999 | AH30: 310
B31: 7 | C31: 0 | D31: 140 | E31: 70 | F31: 140 | G31: 135 | H31: 150 | I31: 231 | J31: 160 | K31: 360 | L31: 170 | M31: 518 | N31: 180 | O31: 716 | P31: 190 | Q31: 933 | R31: 200 | S31: 1190 | T31: 220 | U31: 1480 | V31: 240 | W31: 1820 | X31: 240 | Y31: 2180 | Z31: 260 | AA31: 2580 | AB31: 270 | AC31: 3010 | AD31: 290 | AE31: 3480 | AF31: 31 | AG31: 999999 | AH31: 31
B32: 7.2 | C32: 0 | D32: 150 | E32: 64 | F32: 150 | G32: 125 | H32: 150 | I32: 214 | J32: 160 | K32: 336 | L32: 170 | M32: 485 | N32: 180 | O32: 672 | P32: 190 | Q32: 878 | R32: 210 | S32: 1120 | T32: 230 | U32: 1400 | V32: 240 | W32: 1720 | X32: 250 | Y32: 2070 | Z32: 260 | AA32: 2470 | AB32: 280 | AC32: 2900 | AD32: 300 | AE32: 3370 | AF32: 320 | AG32: 999999 | AH32: 320
B33: 7.4 | C33: 0 | D33: 150 | E33: 59 | F33: 150 | G33: 115 | H33: 160 | I33: 198 | J33: 170 | K33: 312 | L33: 180 | M33: 451 | N33: 190 | O33: 628 | P33: 200 | Q33: 822 | R33: 210 | S33: 1060 | T33: 230 | U33: 1320 | V33: 250 | W33: 1630 | X33: 260 | Y33: 1970 | Z33: 270 | AA33: 2350 | AB33: 290 | AC33: 2780 | AD33: 300 | AE33: 3250 | AF33: 330 | AG33: 999999 | AH33: 330
B34: 7.6 | C34: 0 | D34: 150 | E34: 54 | F34: 150 | G34: 105 | H34: 160 | I34: 182 | J34: 170 | K34: 287 | L34: 180 | M34: 417 | N34: 190 | O34: 583 | P34: 200 | Q34: 765 | R34: 220 | S34: 980 | T34: 240 | U34: 1230 | V34: 250 | W34: 1530 | X34: 260 | Y34: 1850 | Z34: 270 | AA34: 2230 | AB34: 290 | AC34: 2650 | AD34: 310 | AE34: 3120 | AF34: 330 | AG34: 999999 | AH34: 330
B35: 7.8 | C35: 0 | D35: 160 | E35: 48 | F35: 160 | G35: 94 | H35: 160 | I35: 164 | J35: 170 | K35: 261 | L35: 180 | M35: 380 | N35: 190 | O35: 533 | P35: 210 | Q35: 701 | R35: 220 | S35: 901 | T35: 240 | U35: 1140 | V35: 260 | W35: 1410 | X35: 270 | Y35: 1720 | Z35: 280 | AA35: 2090 | AB35: 300 | AC35: 2500 | AD35: 310 | AE35: 2970 | AF35: 340 | AG35: 999999 | AH35: 340
B36: 8 | C36: 0 | D36: 160 | E36: 38 | F36: 160 | G36: 76 | H36: 170 | I36: 134 | J36: 180 | K36: 214 | L36: 190 | M36: 314 | N36: 200 | O36: 444 | P36: 210 | Q36: 587 | R36: 230 | S36: 758 | T36: 240 | U36: 960 | V36: 260 | W36: 1200 | X36: 270 | Y36: 1480 | Z36: 280 | AA36: 1810 | AB36: 300 | AC36: 2210 | AD36: 320 | AE36: 2670 | AF36: 350 | AG36: 999999 | AH36: 350

Sheet Table Reader
A5: =AND(B5,NOT(B6)) -> FALSE | B5: =0<=Inputs!B$1 -> TRUE | C5: =Table!C5<=Inputs!$B$6 -> TRUE | D5: =IF(AND($A5,C5,NOT(E5)),Table!D5,0) -> 0 | E5: =Table!E5<=Inputs!$B$6 -> TRUE | F5: =IF(AND($A5,E5,NOT(G5)),Table!F5,0) -> 0 | G5: =Table!G5<=Inputs!$B$6 -> FALSE | H5: =IF(AND($A5,G5,NOT(I5)),Table!H5,0) -> 0 | I5: =Table!I5<=Inputs!$B$6 -> FALSE | J5: =IF(AND($A5,I5,NOT(K5)),Table!J5,0) -> 0 | K5: =Table!K5<=Inputs!$B$6 -> FALSE | L5: =IF(AND($A5,K5,NOT(M5)),Table!L5,0) -> 0 | M5: =Table!M5<=Inputs!$B$6 -> FALSE | N5: =IF(AND($A5,M5,NOT(O5)),Table!N5,0) -> 0 | O5: =Table!O5<=Inputs!$B$6 -> FALSE | P5: =IF(AND($A5,O5,NOT(Q5)),Table!P5,0) -> 0 | Q5: =Table!Q5<=Inputs!$B$6 -> FALSE | R5: =IF(AND($A5,Q5,NOT(S5)),Table!R5,0) -> 0 | S5: =Table!S5<=Inputs!$B$6 -> FALSE | T5: =IF(AND($A5,S5,NOT(U5)),Table!T5,0) -> 0 | U5: =Table!U5<=Inputs!$B$6 -> FALSE | V5: =IF(AND($A5,U5,NOT(W5)),Table!V5,0) -> 0 | W5: =Table!W5<=Inputs!$B$6 -> FALSE | X5: =IF(AND($A5,W5,NOT(Y5)),Table!X5,0) -> 0 | Y5: =Table!Y5<=Inputs!$B$6 -> FALSE | Z5: =IF(AND($A5,Y5,NOT(AA5)),Table!Z5,0) -> 0 | AA5: =Table!AA5<=Inputs!$B$6 -> FALSE | AB5: =IF(AND($A5,AA5,NOT(AC5)),Table!AB5,0) -> 0 | AC5: =Table!AC5<=Inputs!$B$6 -> FALSE | AD5: =IF(AND($A5,AC5,NOT(AE5)),Table!AD5,0) -> 0 | AE5: =Table!AE5<=Inputs!$B$6 -> FALSE | AF5: =IF(AND($A5,AE5,NOT(AG5)),Table!AF5,0) -> 0 | AG5: =Table!AG5<=Inputs!$B$6 -> FALSE | AH5: =IF(AND($A5,AG5,NOT(AI5)),Table!AH5,0) -> 0
A6: =AND(B6,NOT(B7)) -> FALSE | B6: =2<=Inputs!B$1 -> TRUE | C6: =Table!C6<=Inputs!$B$6 -> TRUE | D6: =IF(AND($A6,C6,NOT(E6)),Table!D6,0) -> 0 | E6: =Table!E6<=Inputs!$B$6 -> TRUE | F6: =IF(AND($A6,E6,NOT(G6)),Table!F6,0) -> 0 | G6: =Table!G6<=Inputs!$B$6 -> FALSE | H6: =IF(AND($A6,G6,NOT(I6)),Table!H6,0) -> 0 | I6: =Table!I6<=Inputs!$B$6 -> FALSE | J6: =IF(AND($A6,I6,NOT(K6)),Table!J6,0) -> 0 | K6: =Table!K6<=Inputs!$B$6 -> FALSE | L6: =IF(AND($A6,K6,NOT(M6)),Table!L6,0) -> 0 | M6: =Table!M6<=Inputs!$B$6 -> FALSE | N6: =IF(AND($A6,M6,NOT(O6)),Table!N6,0) -> 0 | O6: =Table!O6<=Inputs!$B$6 -> FALSE | P6: =IF(AND($A6,O6,NOT(Q6)),Table!P6,0) -> 0 | Q6: =Table!Q6<=Inputs!$B$6 -> FALSE | R6: =IF(AND($A6,Q6,NOT(S6)),Table!R6,0) -> 0 | S6: =Table!S6<=Inputs!$B$6 -> FALSE | T6: =IF(AND($A6,S6,NOT(U6)),Table!T6,0) -> 0 | U6: =Table!U6<=Inputs!$B$6 -> FALSE | V6: =IF(AND($A6,U6,NOT(W6)),Table!V6,0) -> 0 | W6: =Table!W6<=Inputs!$B$6 -> FALSE | X6: =IF(AND($A6,W6,NOT(Y6)),Table!X6,0) -> 0 | Y6: =Table!Y6<=Inputs!$B$6 -> FALSE | Z6: =IF(AND($A6,Y6,NOT(AA6)),Table!Z6,0) -> 0 | AA6: =Table!AA6<=Inputs!$B$6 -> FALSE | AB6: =IF(AND($A6,AA6,NOT(AC6)),Table!AB6,0) -> 0 | AC6: =Table!AC6<=Inputs!$B$6 -> FALSE | AD6: =IF(AND($A6,AC6,NOT(AE6)),Table!AD6,0) -> 0 | AE6: =Table!AE6<=Inputs!$B$6 -> FALSE | AF6: =IF(AND($A6,AE6,NOT(AG6)),Table!AF6,0) -> 0 | AG6: =Table!AG6<=Inputs!$B$6 -> FALSE | AH6: =IF(AND($A6,AG6,NOT(AI6)),Table!AH6,0) -> 0
A7: =AND(B7,NOT(B8)) -> FALSE | B7: =Table!B7<=Inputs!B$1 -> TRUE | C7: =Table!C7<=Inputs!$B$6 -> TRUE | D7: =IF(AND($A7,C7,NOT(E7)),Table!D7,0) -> 0 | E7: =Table!E7<=Inputs!$B$6 -> TRUE | F7: =IF(AND($A7,E7,NOT(G7)),Table!F7,0) -> 0 | G7: =Table!G7<=Inputs!$B$6 -> FALSE | H7: =IF(AND($A7,G7,NOT(I7)),Table!H7,0) -> 0 | I7: =Table!I7<=Inputs!$B$6 -> FALSE | J7: =IF(AND($A7,I7,NOT(K7)),Table!J7,0) -> 0 | K7: =Table!K7<=Inputs!$B$6 -> FALSE | L7: =IF(AND($A7,K7,NOT(M7)),Table!L7,0) -> 0 | M7: =Table!M7<=Inputs!$B$6 -> FALSE | N7: =IF(AND($A7,M7,NOT(O7)),Table!N7,0) -> 0 | O7: =Table!O7<=Inputs!$B$6 -> FALSE | P7: =IF(AND($A7,O7,NOT(Q7)),Table!P7,0) -> 0 | Q7: =Table!Q7<=Inputs!$B$6 -> FALSE | R7: =IF(AND($A7,Q7,NOT(S7)),Table!R7,0) -> 0 | S7: =Table!S7<=Inputs!$B$6 -> FALSE | T7: =IF(AND($A7,S7,NOT(U7)),Table!T7,0) -> 0 | U7: =Table!U7<=Inputs!$B$6 -> FALSE | V7: =IF(AND($A7,U7,NOT(W7)),Table!V7,0) -> 0 | W7: =Table!W7<=Inputs!$B$6 -> FALSE | X7: =IF(AND($A7,W7,NOT(Y7)),Table!X7,0) -> 0 | Y7: =Table!Y7<=Inputs!$B$6 -> FALSE | Z7: =IF(AND($A7,Y7,NOT(AA7)),Table!Z7,0) -> 0 | AA7: =Table!AA7<=Inputs!$B$6 -> FALSE | AB7: =IF(AND($A7,AA7,NOT(AC7)),Table!AB7,0) -> 0 | AC7: =Table!AC7<=Inputs!$B$6 -> FALSE | AD7: =IF(AND($A7,AC7,NOT(AE7)),Table!AD7,0) -> 0 | AE7: =Table!AE7<=Inputs!$B$6 -> FALSE | AF7: =IF(AND($A7,AE7,NOT(AG7)),Table!AF7,0) -> 0 | AG7: =Table!AG7<=Inputs!$B$6 -> FALSE | AH7: =IF(AND($A7,AG7,NOT(AI7)),Table!AH7,0) -> 0
A8: =AND(B8,NOT(B9)) -> FALSE | B8: =Table!B8<=Inputs!B$1 -> TRUE | C8: =Table!C8<=Inputs!$B$6 -> TRUE | D8: =IF(AND($A8,C8,NOT(E8)),Table!D8,0) -> 0 | E8: =Table!E8<=Inputs!$B$6 -> TRUE | F8: =IF(AND($A8,E8,NOT(G8)),Table!F8,0) -> 0 | G8: =Table!G8<=Inputs!$B$6 -> FALSE | H8: =IF(AND($A8,G8,NOT(I8)),Table!H8,0) -> 0 | I8: =Table!I8<=Inputs!$B$6 -> FALSE | J8: =IF(AND($A8,I8,NOT(K8)),Table!J8,0) -> 0 | K8: =Table!K8<=Inputs!$B$6 -> FALSE | L8: =IF(AND($A8,K8,NOT(M8)),Table!L8,0) -> 0 | M8: =Table!M8<=Inputs!$B$6 -> FALSE | N8: =IF(AND($A8,M8,NOT(O8)),Table!N8,0) -> 0 | O8: =Table!O8<=Inputs!$B$6 -> FALSE | P8: =IF(AND($A8,O8,NOT(Q8)),Table!P8,0) -> 0 | Q8: =Table!Q8<=Inputs!$B$6 -> FALSE | R8: =IF(AND($A8,Q8,NOT(S8)),Table!R8,0) -> 0 | S8: =Table!S8<=Inputs!$B$6 -> FALSE | T8: =IF(AND($A8,S8,NOT(U8)),Table!T8,0) -> 0 | U8: =Table!U8<=Inputs!$B$6 -> FALSE | V8: =IF(AND($A8,U8,NOT(W8)),Table!V8,0) -> 0 | W8: =Table!W8<=Inputs!$B$6 -> FALSE | X8: =IF(AND($A8,W8,NOT(Y8)),Table!X8,0) -> 0 | Y8: =Table!Y8<=Inputs!$B$6 -> FALSE | Z8: =IF(AND($A8,Y8,NOT(AA8)),Table!Z8,0) -> 0 | AA8: =Table!AA8<=Inputs!$B$6 -> FALSE | AB8: =IF(AND($A8,AA8,NOT(AC8)),Table!AB8,0) -> 0 | AC8: =Table!AC8<=Inputs!$B$6 -> FALSE | AD8: =IF(AND($A8,AC8,NOT(AE8)),Table!AD8,0) -> 0 | AE8: =Table!AE8<=Inputs!$B$6 -> FALSE | AF8: =IF(AND($A8,AE8,NOT(AG8)),Table!AF8,0) -> 0 | AG8: =Table!AG8<=Inputs!$B$6 -> FALSE | AH8: =IF(AND($A8,AG8,NOT(AI8)),Table!AH8,0) -> 0
A9: FALSE | B9: =Table!B9<=Inputs!B$1 -> TRUE | C9: =Table!C9<=Inputs!$B$6 -> TRUE | D9: =IF(AND($A9,C9,NOT(E9)),Table!D9,0) -> 0 | E9: =Table!E9<=Inputs!$B$6 -> TRUE | F9: =IF(AND($A9,E9,NOT(G9)),Table!F9,0) -> 0 | G9: =Table!G9<=Inputs!$B$6 -> TRUE | H9: =IF(AND($A9,G9,NOT(I9)),Table!H9,0) -> 0 | I9: =Table!I9<=Inputs!$B$6 -> FALSE | J9: =IF(AND($A9,I9,NOT(K9)),Table!J9,0) -> 0 | K9: =Table!K9<=Inputs!$B$6 -> FALSE | L9: =IF(AND($A9,K9,NOT(M9)),Table!L9,0) -> 0 | M9: =Table!M9<=Inputs!$B$6 -> FALSE | N9: =IF(AND($A9,M9,NOT(O9)),Table!N9,0) -> 0 | O9: =Table!O9<=Inputs!$B$6 -> FALSE | P9: =IF(AND($A9,O9,NOT(Q9)),Table!P9,0) -> 0 | Q9: =Table!Q9<=Inputs!$B$6 -> FALSE | R9: =IF(AND($A9,Q9,NOT(S9)),Table!R9,0) -> 0 | S9: =Table!S9<=Inputs!$B$6 -> FALSE | T9: =IF(AND($A9,S9,NOT(U9)),Table!T9,0) -> 0 | U9: =Table!U9<=Inputs!$B$6 -> FALSE | V9: =IF(AND($A9,U9,NOT(W9)),Table!V9,0) -> 0 | W9: =Table!W9<=Inputs!$B$6 -> FALSE | X9: =IF(AND($A9,W9,NOT(Y9)),Table!X9,0) -> 0 | Y9: =Table!Y9<=Inputs!$B$6 -> FALSE | Z9: =IF(AND($A9,Y9,NOT(AA9)),Table!Z9,0) -> 0 | AA9: =Table!AA9<=Inputs!$B$6 -> FALSE | AB9: =IF(AND($A9,AA9,NOT(AC9)),Table!AB9,0) -> 0 | AC9: =Table!AC9<=Inputs!$B$6 -> FALSE | AD9: =IF(AND($A9,AC9,NOT(AE9)),Table!AD9,0) -> 0 | AE9: =Table!AE9<=Inputs!$B$6 -> FALSE | AF9: =IF(AND($A9,AE9,NOT(AG9)),Table!AF9,0) -> 0 | AG9: =Table!AG9<=Inputs!$B$6 -> FALSE | AH9: =IF(AND($A9,AG9,NOT(AI9)),Table!AH9,0) -> 0
A10: FALSE | B10: =Table!B10<=Inputs!B$1 -> TRUE | C10: =Table!C10<=Inputs!$B$6 -> TRUE | D10: =IF(AND($A10,C10,NOT(E10)),Table!D10,0) -> 0 | E10: =Table!E10<=Inputs!$B$6 -> TRUE | F10: =IF(AND($A10,E10,NOT(G10)),Table!F10,0) -> 0 | G10: =Table!G10<=Inputs!$B$6 -> TRUE | H10: =IF(AND($A10,G10,NOT(I10)),Table!H10,0) -> 0 | I10: =Table!I10<=Inputs!$B$6 -> FALSE | J10: =IF(AND($A10,I10,NOT(K10)),Table!J10,0) -> 0 | K10: =Table!K10<=Inputs!$B$6 -> FALSE | L10: =IF(AND($A10,K10,NOT(M10)),Table!L10,0) -> 0 | M10: =Table!M10<=Inputs!$B$6 -> FALSE | N10: =IF(AND($A10,M10,NOT(O10)),Table!N10,0) -> 0 | O10: =Table!O10<=Inputs!$B$6 -> FALSE | P10: =IF(AND($A10,O10,NOT(Q10)),Table!P10,0) -> 0 | Q10: =Table!Q10<=Inputs!$B$6 -> FALSE | R10: =IF(AND($A10,Q10,NOT(S10)),Table!R10,0) -> 0 | S10: =Table!S10<=Inputs!$B$6 -> FALSE | T10: =IF(AND($A10,S10,NOT(U10)),Table!T10,0) -> 0 | U10: =Table!U10<=Inputs!$B$6 -> FALSE | V10: =IF(AND($A10,U10,NOT(W10)),Table!V10,0) -> 0 | W10: =Table!W10<=Inputs!$B$6 -> FALSE | X10: =IF(AND($A10,W10,NOT(Y10)),Table!X10,0) -> 0 | Y10: =Table!Y10<=Inputs!$B$6 -> FALSE | Z10: =IF(AND($A10,Y10,NOT(AA10)),Table!Z10,0) -> 0 | AA10: =Table!AA10<=Inputs!$B$6 -> FALSE | AB10: =IF(AND($A10,AA10,NOT(AC10)),Table!AB10,0) -> 0 | AC10: =Table!AC10<=Inputs!$B$6 -> FALSE | AD10: =IF(AND($A10,AC10,NOT(AE10)),Table!AD10,0) -> 0 | AE10: =Table!AE10<=Inputs!$B$6 -> FALSE | AF10: =IF(AND($A10,AE10,NOT(AG10)),Table!AF10,0) -> 0 | AG10: =Table!AG10<=Inputs!$B$6 -> FALSE | AH10: =IF(AND($A10,AG10,NOT(AI10)),Table!AH10,0) -> 0
A11: FALSE | B11: =Table!B11<=Inputs!B$1 -> TRUE | C11: =Table!C11<=Inputs!$B$6 -> TRUE | D11: =IF(AND($A11,C11,NOT(E11)),Table!D11,0) -> 0 | E11: =Table!E11<=Inputs!$B$6 -> TRUE | F11: =IF(AND($A11,E11,NOT(G11)),Table!F11,0) -> 0 | G11: =Table!G11<=Inputs!$B$6 -> TRUE | H11: =IF(AND($A11,G11,NOT(I11)),Table!H11,0) -> 0 | I11: =Table!I11<=Inputs!$B$6 -> FALSE | J11: =IF(AND($A11,I11,NOT(K11)),Table!J11,0) -> 0 | K11: =Table!K11<=Inputs!$B$6 -> FALSE | L11: =IF(AND($A11,K11,NOT(M11)),Table!L11,0) -> 0 | M11: =Table!M11<=Inputs!$B$6 -> FALSE | N11: =IF(AND($A11,M11,NOT(O11)),Table!N11,0) -> 0 | O11: =Table!O11<=Inputs!$B$6 -> FALSE | P11: =IF(AND($A11,O11,NOT(Q11)),Table!P11,0) -> 0 | Q11: =Table!Q11<=Inputs!$B$6 -> FALSE | R11: =IF(AND($A11,Q11,NOT(S11)),Table!R11,0) -> 0 | S11: =Table!S11<=Inputs!$B$6 -> FALSE | T11: =IF(AND($A11,S11,NOT(U11)),Table!T11,0) -> 0 | U11: =Table!U11<=Inputs!$B$6 -> FALSE | V11: =IF(AND($A11,U11,NOT(W11)),Table!V11,0) -> 0 | W11: =Table!W11<=Inputs!$B$6 -> FALSE | X11: =IF(AND($A11,W11,NOT(Y11)),Table!X11,0) -> 0 | Y11: =Table!Y11<=Inputs!$B$6 -> FALSE | Z11: =IF(AND($A11,Y11,NOT(AA11)),Table!Z11,0) -> 0 | AA11: =Table!AA11<=Inputs!$B$6 -> FALSE | AB11: =IF(AND($A11,AA11,NOT(AC11)),Table!AB11,0) -> 0 | AC11: =Table!AC11<=Inputs!$B$6 -> FALSE | AD11: =IF(AND($A11,AC11,NOT(AE11)),Table!AD11,0) -> 0 | AE11: =Table!AE11<=Inputs!$B$6 -> FALSE | AF11: =IF(AND($A11,AE11,NOT(AG11)),Table!AF11,0) -> 0 | AG11: =Table!AG11<=Inputs!$B$6 -> FALSE | AH11: =IF(AND($A11,AG11,NOT(AI11)),Table!AH11,0) -> 0
A12: FALSE | B12: =Table!B12<=Inputs!B$1 -> TRUE | C12: =Table!C12<=Inputs!$B$6 -> TRUE | D12: =IF(AND($A12,C12,NOT(E12)),Table!D12,0) -> 0 | E12: =Table!E12<=Inputs!$B$6 -> TRUE | F12: =IF(AND($A12,E12,NOT(G12)),Table!F12,0) -> 0 | G12: =Table!G12<=Inputs!$B$6 -> TRUE | H12: =IF(AND($A12,G12,NOT(I12)),Table!H12,0) -> 0 | I12: =Table!I12<=Inputs!$B$6 -> FALSE | J12: =IF(AND($A12,I12,NOT(K12)),Table!J12,0) -> 0 | K12: =Table!K12<=Inputs!$B$6 -> FALSE | L12: =IF(AND($A12,K12,NOT(M12)),Table!L12,0) -> 0 | M12: =Table!M12<=Inputs!$B$6 -> FALSE | N12: =IF(AND($A12,M12,NOT(O12)),Table!N12,0) -> 0 | O12: =Table!O12<=Inputs!$B$6 -> FALSE | P12: =IF(AND($A12,O12,NOT(Q12)),Table!P12,0) -> 0 | Q12: =Table!Q12<=Inputs!$B$6 -> FALSE | R12: =IF(AND($A12,Q12,NOT(S12)),Table!R12,0) -> 0 | S12: =Table!S12<=Inputs!$B$6 -> FALSE | T12: =IF(AND($A12,S12,NOT(U12)),Table!T12,0) -> 0 | U12: =Table!U12<=Inputs!$B$6 -> FALSE | V12: =IF(AND($A12,U12,NOT(W12)),Table!V12,0) -> 0 | W12: =Table!W12<=Inputs!$B$6 -> FALSE | X12: =IF(AND($A12,W12,NOT(Y12)),Table!X12,0) -> 0 | Y12: =Table!Y12<=Inputs!$B$6 -> FALSE | Z12: =IF(AND($A12,Y12,NOT(AA12)),Table!Z12,0) -> 0 | AA12: =Table!AA12<=Inputs!$B$6 -> FALSE | AB12: =IF(AND($A12,AA12,NOT(AC12)),Table!AB12,0) -> 0 | AC12: =Table!AC12<=Inputs!$B$6 -> FALSE | AD12: =IF(AND($A12,AC12,NOT(AE12)),Table!AD12,0) -> 0 | AE12: =Table!AE12<=Inputs!$B$6 -> FALSE | AF12: =IF(AND($A12,AE12,NOT(AG12)),Table!AF12,0) -> 0 | AG12: =Table!AG12<=Inputs!$B$6 -> FALSE | AH12: =IF(AND($A12,AG12,NOT(AI12)),Table!AH12,0) -> 0
A13: FALSE | B13: =Table!B13<=Inputs!B$1 -> TRUE | C13: =Table!C13<=Inputs!$B$6 -> TRUE | D13: =IF(AND($A13,C13,NOT(E13)),Table!D13,0) -> 0 | E13: =Table!E13<=Inputs!$B$6 -> TRUE | F13: =IF(AND($A13,E13,NOT(G13)),Table!F13,0) -> 0 | G13: =Table!G13<=Inputs!$B$6 -> TRUE | H13: =IF(AND($A13,G13,NOT(I13)),Table!H13,0) -> 0 | I13: =Table!I13<=Inputs!$B$6 -> TRUE | J13: =IF(AND($A13,I13,NOT(K13)),Table!J13,0) -> 0 | K13: =Table!K13<=Inputs!$B$6 -> FALSE | L13: =IF(AND($A13,K13,NOT(M13)),Table!L13,0) -> 0 | M13: =Table!M13<=Inputs!$B$6 -> FALSE | N13: =IF(AND($A13,M13,NOT(O13)),Table!N13,0) -> 0 | O13: =Table!O13<=Inputs!$B$6 -> FALSE | P13: =IF(AND($A13,O13,NOT(Q13)),Table!P13,0) -> 0 | Q13: =Table!Q13<=Inputs!$B$6 -> FALSE | R13: =IF(AND($A13,Q13,NOT(S13)),Table!R13,0) -> 0 | S13: =Table!S13<=Inputs!$B$6 -> FALSE | T13: =IF(AND($A13,S13,NOT(U13)),Table!T13,0) -> 0 | U13: =Table!U13<=Inputs!$B$6 -> FALSE | V13: =IF(AND($A13,U13,NOT(W13)),Table!V13,0) -> 0 | W13: =Table!W13<=Inputs!$B$6 -> FALSE | X13: =IF(AND($A13,W13,NOT(Y13)),Table!X13,0) -> 0 | Y13: =Table!Y13<=Inputs!$B$6 -> FALSE | Z13: =IF(AND($A13,Y13,NOT(AA13)),Table!Z13,0) -> 0 | AA13: =Table!AA13<=Inputs!$B$6 -> FALSE | AB13: =IF(AND($A13,AA13,NOT(AC13)),Table!AB13,0) -> 0 | AC13: =Table!AC13<=Inputs!$B$6 -> FALSE | AD13: =IF(AND($A13,AC13,NOT(AE13)),Table!AD13,0) -> 0 | AE13: =Table!AE13<=Inputs!$B$6 -> FALSE | AF13: =IF(AND($A13,AE13,NOT(AG13)),Table!AF13,0) -> 0 | AG13: =Table!AG13<=Inputs!$B$6 -> FALSE | AH13: =IF(AND($A13,AG13,NOT(AI13)),Table!AH13,0) -> 0
A14: FALSE | B14: =Table!B14<=Inputs!B$1 -> TRUE | C14: =Table!C14<=Inputs!$B$6 -> TRUE | D14: =IF(AND($A14,C14,NOT(E14)),Table!D14,0) -> 0 | E14: =Table!E14<=Inputs!$B$6 -> TRUE | F14: =IF(AND($A14,E14,NOT(G14)),Table!F14,0) -> 0 | G14: =Table!G14<=Inputs!$B$6 -> TRUE | H14: =IF(AND($A14,G14,NOT(I14)),Table!H14,0) -> 0 | I14: =Table!I14<=Inputs!$B$6 -> TRUE | J14: =IF(AND($A14,I14,NOT(K14)),Table!J14,0) -> 0 | K14: =Table!K14<=Inputs!$B$6 -> FALSE | L14: =IF(AND($A14,K14,NOT(M14)),Table!L14,0) -> 0 | M14: =Table!M14<=Inputs!$B$6 -> FALSE | N14: =IF(AND($A14,M14,NOT(O14)),Table!N14,0) -> 0 | O14: =Table!O14<=Inputs!$B$6 -> FALSE | P14: =IF(AND($A14,O14,NOT(Q14)),Table!P14,0) -> 0 | Q14: =Table!Q14<=Inputs!$B$6 -> FALSE | R14: =IF(AND($A14,Q14,NOT(S14)),Table!R14,0) -> 0 | S14: =Table!S14<=Inputs!$B$6 -> FALSE | T14: =IF(AND($A14,S14,NOT(U14)),Table!T14,0) -> 0 | U14: =Table!U14<=Inputs!$B$6 -> FALSE | V14: =IF(AND($A14,U14,NOT(W14)),Table!V14,0) -> 0 | W14: =Table!W14<=Inputs!$B$6 -> FALSE | X14: =IF(AND($A14,W14,NOT(Y14)),Table!X14,0) -> 0 | Y14: =Table!Y14<=Inputs!$B$6 -> FALSE | Z14: =IF(AND($A14,Y14,NOT(AA14)),Table!Z14,0) -> 0 | AA14: =Table!AA14<=Inputs!$B$6 -> FALSE | AB14: =IF(AND($A14,AA14,NOT(AC14)),Table!AB14,0) -> 0 | AC14: =Table!AC14<=Inputs!$B$6 -> FALSE | AD14: =IF(AND($A14,AC14,NOT(AE14)),Table!AD14,0) -> 0 | AE14: =Table!AE14<=Inputs!$B$6 -> FALSE | AF14: =IF(AND($A14,AE14,NOT(AG14)),Table!AF14,0) -> 0 | AG14: =Table!AG14<=Inputs!$B$6 -> FALSE | AH14: =IF(AND($A14,AG14,NOT(AI14)),Table!AH14,0) -> 0
A15: TRUE | B15: =Table!B15<=Inputs!B$1 -> TRUE | C15: =Table!C15<=Inputs!$B$6 -> TRUE | D15: =IF(AND($A15,C15,NOT(E15)),Table!D15,0) -> 0 | E15: =Table!E15<=Inputs!$B$6 -> TRUE | F15: =IF(AND($A15,E15,NOT(G15)),Table!F15,0) -> 0 | G15: =Table!G15<=Inputs!$B$6 -> TRUE | H15: =IF(AND($A15,G15,NOT(I15)),Table!H15,0) -> 0 | I15: =Table!I15<=Inputs!$B$6 -> TRUE | J15: =IF(AND($A15,I15,NOT(K15)),Table!J15,0) -> 100 | K15: =Table!K15<=Inputs!$B$6 -> FALSE | L15: =IF(AND($A15,K15,NOT(M15)),Table!L15,0) -> 0 | M15: =Table!M15<=Inputs!$B$6 -> FALSE | N15: =IF(AND($A15,M15,NOT(O15)),Table!N15,0) -> 0 | O15: =Table!O15<=Inputs!$B$6 -> FALSE | P15: =IF(AND($A15,O15,NOT(Q15)),Table!P15,0) -> 0 | Q15: =Table!Q15<=Inputs!$B$6 -> FALSE | R15: =IF(AND($A15,Q15,NOT(S15)),Table!R15,0) -> 0 | S15: =Table!S15<=Inputs!$B$6 -> FALSE | T15: =IF(AND($A15,S15,NOT(U15)),Table!T15,0) -> 0 | U15: =Table!U15<=Inputs!$B$6 -> FALSE | V15: =IF(AND($A15,U15,NOT(W15)),Table!V15,0) -> 0 | W15: =Table!W15<=Inputs!$B$6 -> FALSE | X15: =IF(AND($A15,W15,NOT(Y15)),Table!X15,0) -> 0 | Y15: =Table!Y15<=Inputs!$B$6 -> FALSE | Z15: =IF(AND($A15,Y15,NOT(AA15)),Table!Z15,0) -> 0 | AA15: =Table!AA15<=Inputs!$B$6 -> FALSE | AB15: =IF(AND($A15,AA15,NOT(AC15)),Table!AB15,0) -> 0 | AC15: =Table!AC15<=Inputs!$B$6 -> FALSE | AD15: =IF(AND($A15,AC15,NOT(AE15)),Table!AD15,0) -> 0 | AE15: =Table!AE15<=Inputs!$B$6 -> FALSE | AF15: =IF(AND($A15,AE15,NOT(AG15)),Table!AF15,0) -> 0 | AG15: =Table!AG15<=Inputs!$B$6 -> FALSE | AH15: =IF(AND($A15,AG15,NOT(AI15)),Table!AH15,0) -> 0
A16: FALSE | B16: =Table!B16<=Inputs!B$1 -> FALSE | C16: =Table!C16<=Inputs!$B$6 -> TRUE | D16: =IF(AND($A16,C16,NOT(E16)),Table!D16,0) -> 0 | E16: =Table!E16<=Inputs!$B$6 -> TRUE | F16: =IF(AND($A16,E16,NOT(G16)),Table!F16,0) -> 0 | G16: =Table!G16<=Inputs!$B$6 -> TRUE | H16: =IF(AND($A16,G16,NOT(I16)),Table!H16,0) -> 0 | I16: =Table!I16<=Inputs!$B$6 -> TRUE | J16: =IF(AND($A16,I16,NOT(K16)),Table!J16,0) -> 0 | K16: =Table!K16<=Inputs!$B$6 -> FALSE | L16: =IF(AND($A16,K16,NOT(M16)),Table!L16,0) -> 0 | M16: =Table!M16<=Inputs!$B$6 -> FALSE | N16: =IF(AND($A16,M16,NOT(O16)),Table!N16,0) -> 0 | O16: =Table!O16<=Inputs!$B$6 -> FALSE | P16: =IF(AND($A16,O16,NOT(Q16)),Table!P16,0) -> 0 | Q16: =Table!Q16<=Inputs!$B$6 -> FALSE | R16: =IF(AND($A16,Q16,NOT(S16)),Table!R16,0) -> 0 | S16: =Table!S16<=Inputs!$B$6 -> FALSE | T16: =IF(AND($A16,S16,NOT(U16)),Table!T16,0) -> 0 | U16: =Table!U16<=Inputs!$B$6 -> FALSE | V16: =IF(AND($A16,U16,NOT(W16)),Table!V16,0) -> 0 | W16: =Table!W16<=Inputs!$B$6 -> FALSE | X16: =IF(AND($A16,W16,NOT(Y16)),Table!X16,0) -> 0 | Y16: =Table!Y16<=Inputs!$B$6 -> FALSE | Z16: =IF(AND($A16,Y16,NOT(AA16)),Table!Z16,0) -> 0 | AA16: =Table!AA16<=Inputs!$B$6 -> FALSE | AB16: =IF(AND($A16,AA16,NOT(AC16)),Table!AB16,0) -> 0 | AC16: =Table!AC16<=Inputs!$B$6 -> FALSE | AD16: =IF(AND($A16,AC16,NOT(AE16)),Table!AD16,0) -> 0 | AE16: =Table!AE16<=Inputs!$B$6 -> FALSE | AF16: =IF(AND($A16,AE16,NOT(AG16)),Table!AF16,0) -> 0 | AG16: =Table!AG16<=Inputs!$B$6 -> FALSE | AH16: =IF(AND($A16,AG16,NOT(AI16)),Table!AH16,0) -> 0
A17: FALSE | B17: =Table!B17<=Inputs!B$1 -> FALSE | C17: =Table!C17<=Inputs!$B$6 -> TRUE | D17: =IF(AND($A17,C17,NOT(E17)),Table!D17,0) -> 0 | E17: =Table!E17<=Inputs!$B$6 -> TRUE | F17: =IF(AND($A17,E17,NOT(G17)),Table!F17,0) -> 0 | G17: =Table!G17<=Inputs!$B$6 -> TRUE | H17: =IF(AND($A17,G17,NOT(I17)),Table!H17,0) -> 0 | I17: =Table!I17<=Inputs!$B$6 -> TRUE | J17: =IF(AND($A17,I17,NOT(K17)),Table!J17,0) -> 0 | K17: =Table!K17<=Inputs!$B$6 -> FALSE | L17: =IF(AND($A17,K17,NOT(M17)),Table!L17,0) -> 0 | M17: =Table!M17<=Inputs!$B$6 -> FALSE | N17: =IF(AND($A17,M17,NOT(O17)),Table!N17,0) -> 0 | O17: =Table!O17<=Inputs!$B$6 -> FALSE | P17: =IF(AND($A17,O17,NOT(Q17)),Table!P17,0) -> 0 | Q17: =Table!Q17<=Inputs!$B$6 -> FALSE | R17: =IF(AND($A17,Q17,NOT(S17)),Table!R17,0) -> 0 | S17: =Table!S17<=Inputs!$B$6 -> FALSE | T17: =IF(AND($A17,S17,NOT(U17)),Table!T17,0) -> 0 | U17: =Table!U17<=Inputs!$B$6 -> FALSE | V17: =IF(AND($A17,U17,NOT(W17)),Table!V17,0) -> 0 | W17: =Table!W17<=Inputs!$B$6 -> FALSE | X17: =IF(AND($A17,W17,NOT(Y17)),Table!X17,0) -> 0 | Y17: =Table!Y17<=Inputs!$B$6 -> FALSE | Z17: =IF(AND($A17,Y17,NOT(AA17)),Table!Z17,0) -> 0 | AA17: =Table!AA17<=Inputs!$B$6 -> FALSE | AB17: =IF(AND($A17,AA17,NOT(AC17)),Table!AB17,0) -> 0 | AC17: =Table!AC17<=Inputs!$B$6 -> FALSE | AD17: =IF(AND($A17,AC17,NOT(AE17)),Table!AD17,0) -> 0 | AE17: =Table!AE17<=Inputs!$B$6 -> FALSE | AF17: =IF(AND($A17,AE17,NOT(AG17)),Table!AF17,0) -> 0 | AG17: =Table!AG17<=Inputs!$B$6 -> FALSE | AH17: =IF(AND($A17,AG17,NOT(AI17)),Table!AH17,0) -> 0
A18: FALSE | B18: =Table!B18<=Inputs!B$1 -> FALSE | C18: =Table!C18<=Inputs!$B$6 -> TRUE | D18: =IF(AND($A18,C18,NOT(E18)),Table!D18,0) -> 0 | E18: =Table!E18<=Inputs!$B$6 -> TRUE | F18: =IF(AND($A18,E18,NOT(G18)),Table!F18,0) -> 0 | G18: =Table!G18<=Inputs!$B$6 -> TRUE | H18: =IF(AND($A18,G18,NOT(I18)),Table!H18,0) -> 0 | I18: =Table!I18<=Inputs!$B$6 -> TRUE | J18: =IF(AND($A18,I18,NOT(K18)),Table!J18,0) -> 0 | K18: =Table!K18<=Inputs!$B$6 -> TRUE | L18: =IF(AND($A18,K18,NOT(M18)),Table!L18,0) -> 0 | M18: =Table!M18<=Inputs!$B$6 -> FALSE | N18: =IF(AND($A18,M18,NOT(O18)),Table!N18,0) -> 0 | O18: =Table!O18<=Inputs!$B$6 -> FALSE | P18: =IF(AND($A18,O18,NOT(Q18)),Table!P18,0) -> 0 | Q18: =Table!Q18<=Inputs!$B$6 -> FALSE | R18: =IF(AND($A18,Q18,NOT(S18)),Table!R18,0) -> 0 | S18: =Table!S18<=Inputs!$B$6 -> FALSE | T18: =IF(AND($A18,S18,NOT(U18)),Table!T18,0) -> 0 | U18: =Table!U18<=Inputs!$B$6 -> FALSE | V18: =IF(AND($A18,U18,NOT(W18)),Table!V18,0) -> 0 | W18: =Table!W18<=Inputs!$B$6 -> FALSE | X18: =IF(AND($A18,W18,NOT(Y18)),Table!X18,0) -> 0 | Y18: =Table!Y18<=Inputs!$B$6 -> FALSE | Z18: =IF(AND($A18,Y18,NOT(AA18)),Table!Z18,0) -> 0 | AA18: =Table!AA18<=Inputs!$B$6 -> FALSE | AB18: =IF(AND($A18,AA18,NOT(AC18)),Table!AB18,0) -> 0 | AC18: =Table!AC18<=Inputs!$B$6 -> FALSE | AD18: =IF(AND($A18,AC18,NOT(AE18)),Table!AD18,0) -> 0 | AE18: =Table!AE18<=Inputs!$B$6 -> FALSE | AF18: =IF(AND($A18,AE18,NOT(AG18)),Table!AF18,0) -> 0 | AG18: =Table!AG18<=Inputs!$B$6 -> FALSE | AH18: =IF(AND($A18,AG18,NOT(AI18)),Table!AH18,0) -> 0
A19: FALSE | B19: =Table!B19<=Inputs!B$1 -> FALSE | C19: =Table!C19<=Inputs!$B$6 -> TRUE | D19: =IF(AND($A19,C19,NOT(E19)),Table!D19,0) -> 0 | E19: =Table!E19<=Inputs!$B$6 -> TRUE | F19: =IF(AND($A19,E19,NOT(G19)),Table!F19,0) -> 0 | G19: =Table!G19<=Inputs!$B$6 -> TRUE | H19: =IF(AND($A19,G19,NOT(I19)),Table!H19,0) -> 0 | I19: =Table!I19<=Inputs!$B$6 -> TRUE | J19: =IF(AND($A19,I19,NOT(K19)),Table!J19,0) -> 0 | K19: =Table!K19<=Inputs!$B$6 -> TRUE | L19: =IF(AND($A19,K19,NOT(M19)),Table!L19,0) -> 0 | M19: =Table!M19<=Inputs!$B$6 -> FALSE | N19: =IF(AND($A19,M19,NOT(O19)),Table!N19,0) -> 0 | O19: =Table!O19<=Inputs!$B$6 -> FALSE | P19: =IF(AND($A19,O19,NOT(Q19)),Table!P19,0) -> 0 | Q19: =Table!Q19<=Inputs!$B$6 -> FALSE | R19: =IF(AND($A19,Q19,NOT(S19)),Table!R19,0) -> 0 | S19: =Table!S19<=Inputs!$B$6 -> FALSE | T19: =IF(AND($A19,S19,NOT(U19)),Table!T19,0) -> 0 | U19: =Table!U19<=Inputs!$B$6 -> FALSE | V19: =IF(AND($A19,U19,NOT(W19)),Table!V19,0) -> 0 | W19: =Table!W19<=Inputs!$B$6 -> FALSE | X19: =IF(AND($A19,W19,NOT(Y19)),Table!X19,0) -> 0 | Y19: =Table!Y19<=Inputs!$B$6 -> FALSE | Z19: =IF(AND($A19,Y19,NOT(AA19)),Table!Z19,0) -> 0 | AA19: =Table!AA19<=Inputs!$B$6 -> FALSE | AB19: =IF(AND($A19,AA19,NOT(AC19)),Table!AB19,0) -> 0 | AC19: =Table!AC19<=Inputs!$B$6 -> FALSE | AD19: =IF(AND($A19,AC19,NOT(AE19)),Table!AD19,0) -> 0 | AE19: =Table!AE19<=Inputs!$B$6 -> FALSE | AF19: =IF(AND($A19,AE19,NOT(AG19)),Table!AF19,0) -> 0 | AG19: =Table!AG19<=Inputs!$B$6 -> FALSE | AH19: =IF(AND($A19,AG19,NOT(AI19)),Table!AH19,0) -> 0
A20: FALSE | B20: =Table!B20<=Inputs!B$1 -> FALSE | C20: =Table!C20<=Inputs!$B$6 -> TRUE | D20: =IF(AND($A20,C20,NOT(E20)),Table!D20,0) -> 0 | E20: =Table!E20<=Inputs!$B$6 -> TRUE | F20: =IF(AND($A20,E20,NOT(G20)),Table!F20,0) -> 0 | G20: =Table!G20<=Inputs!$B$6 -> TRUE | H20: =IF(AND($A20,G20,NOT(I20)),Table!H20,0) -> 0 | I20: =Table!I20<=Inputs!$B$6 -> TRUE | J20: =IF(AND($A20,I20,NOT(K20)),Table!J20,0) -> 0 | K20: =Table!K20<=Inputs!$B$6 -> TRUE | L20: =IF(AND($A20,K20,NOT(M20)),Table!L20,0) -> 0 | M20: =Table!M20<=Inputs!$B$6 -> FALSE | N20: =IF(AND($A20,M20,NOT(O20)),Table!N20,0) -> 0 | O20: =Table!O20<=Inputs!$B$6 -> FALSE | P20: =IF(AND($A20,O20,NOT(Q20)),Table!P20,0) -> 0 | Q20: =Table!Q20<=Inputs!$B$6 -> FALSE | R20: =IF(AND($A20,Q20,NOT(S20)),Table!R20,0) -> 0 | S20: =Table!S20<=Inputs!$B$6 -> FALSE | T20: =IF(AND($A20,S20,NOT(U20)),Table!T20,0) -> 0 | U20: =Table!U20<=Inputs!$B$6 -> FALSE | V20: =IF(AND($A20,U20,NOT(W20)),Table!V20,0) -> 0 | W20: =Table!W20<=Inputs!$B$6 -> FALSE | X20: =IF(AND($A20,W20,NOT(Y20)),Table!X20,0) -> 0 | Y20: =Table!Y20<=Inputs!$B$6 -> FALSE | Z20: =IF(AND($A20,Y20,NOT(AA20)),Table!Z20,0) -> 0 | AA20: =Table!AA20<=Inputs!$B$6 -> FALSE | AB20: =IF(AND($A20,AA20,NOT(AC20)),Table!AB20,0) -> 0 | AC20: =Table!AC20<=Inputs!$B$6 -> FALSE | AD20: =IF(AND($A20,AC20,NOT(AE20)),Table!AD20,0) -> 0 | AE20: =Table!AE20<=Inputs!$B$6 -> FALSE | AF20: =IF(AND($A20,AE20,NOT(AG20)),Table!AF20,0) -> 0 | AG20: =Table!AG20<=Inputs!$B$6 -> FALSE | AH20: =IF(AND($A20,AG20,NOT(AI20)),Table!AH20,0) -> 0
A21: FALSE | B21: =Table!B21<=Inputs!B$1 -> FALSE | C21: =Table!C21<=Inputs!$B$6 -> TRUE | D21: =IF(AND($A21,C21,NOT(E21)),Table!D21,0) -> 0 | E21: =Table!E21<=Inputs!$B$6 -> TRUE | F21: =IF(AND($A21,E21,NOT(G21)),Table!F21,0) -> 0 | G21: =Table!G21<=Inputs!$B$6 -> TRUE | H21: =IF(AND($A21,G21,NOT(I21)),Table!H21,0) -> 0 | I21: =Table!I21<=Inputs!$B$6 -> TRUE | J21: =IF(AND($A21,I21,NOT(K21)),Table!J21,0) -> 0 | K21: =Table!K21<=Inputs!$B$6 -> TRUE | L21: =IF(AND($A21,K21,NOT(M21)),Table!L21,0) -> 0 | M21: =Table!M21<=Inputs!$B$6 -> FALSE | N21: =IF(AND($A21,M21,NOT(O21)),Table!N21,0) -> 0 | O21: =Table!O21<=Inputs!$B$6 -> FALSE | P21: =IF(AND($A21,O21,NOT(Q21)),Table!P21,0) -> 0 | Q21: =Table!Q21<=Inputs!$B$6 -> FALSE | R21: =IF(AND($A21,Q21,NOT(S21)),Table!R21,0) -> 0 | S21: =Table!S21<=Inputs!$B$6 -> FALSE | T21: =IF(AND($A21,S21,NOT(U21)),Table!T21,0) -> 0 | U21: =Table!U21<=Inputs!$B$6 -> FALSE | V21: =IF(AND($A21,U21,NOT(W21)),Table!V21,0) -> 0 | W21: =Table!W21<=Inputs!$B$6 -> FALSE | X21: =IF(AND($A21,W21,NOT(Y21)),Table!X21,0) -> 0 | Y21: =Table!Y21<=Inputs!$B$6 -> FALSE | Z21: =IF(AND($A21,Y21,NOT(AA21)),Table!Z21,0) -> 0 | AA21: =Table!AA21<=Inputs!$B$6 -> FALSE | AB21: =IF(AND($A21,AA21,NOT(AC21)),Table!AB21,0) -> 0 | AC21: =Table!AC21<=Inputs!$B$6 -> FALSE | AD21: =IF(AND($A21,AC21,NOT(AE21)),Table!AD21,0) -> 0 | AE21: =Table!AE21<=Inputs!$B$6 -> FALSE | AF21: =IF(AND($A21,AE21,NOT(AG21)),Table!AF21,0) -> 0 | AG21: =Table!AG21<=Inputs!$B$6 -> FALSE | AH21: =IF(AND($A21,AG21,NOT(AI21)),Table!AH21,0) -> 0
A22: FALSE | B22: =Table!B22<=Inputs!B$1 -> FALSE | C22: =Table!C22<=Inputs!$B$6 -> TRUE | D22: =IF(AND($A22,C22,NOT(E22)),Table!D22,0) -> 0 | E22: =Table!E22<=Inputs!$B$6 -> TRUE | F22: =IF(AND($A22,E22,NOT(G22)),Table!F22,0) -> 0 | G22: =Table!G22<=Inputs!$B$6 -> TRUE | H22: =IF(AND($A22,G22,NOT(I22)),Table!H22,0) -> 0 | I22: =Table!I22<=Inputs!$B$6 -> TRUE | J22: =IF(AND($A22,I22,NOT(K22)),Table!J22,0) -> 0 | K22: =Table!K22<=Inputs!$B$6 -> TRUE | L22: =IF(AND($A22,K22,NOT(M22)),Table!L22,0) -> 0 | M22: =Table!M22<=Inputs!$B$6 -> TRUE | N22: =IF(AND($A22,M22,NOT(O22)),Table!N22,0) -> 0 | O22: =Table!O22<=Inputs!$B$6 -> FALSE | P22: =IF(AND($A22,O22,NOT(Q22)),Table!P22,0) -> 0 | Q22: =Table!Q22<=Inputs!$B$6 -> FALSE | R22: =IF(AND($A22,Q22,NOT(S22)),Table!R22,0) -> 0 | S22: =Table!S22<=Inputs!$B$6 -> FALSE | T22: =IF(AND($A22,S22,NOT(U22)),Table!T22,0) -> 0 | U22: =Table!U22<=Inputs!$B$6 -> FALSE | V22: =IF(AND($A22,U22,NOT(W22)),Table!V22,0) -> 0 | W22: =Table!W22<=Inputs!$B$6 -> FALSE | X22: =IF(AND($A22,W22,NOT(Y22)),Table!X22,0) -> 0 | Y22: =Table!Y22<=Inputs!$B$6 -> FALSE | Z22: =IF(AND($A22,Y22,NOT(AA22)),Table!Z22,0) -> 0 | AA22: =Table!AA22<=Inputs!$B$6 -> FALSE | AB22: =IF(AND($A22,AA22,NOT(AC22)),Table!AB22,0) -> 0 | AC22: =Table!AC22<=Inputs!$B$6 -> FALSE | AD22: =IF(AND($A22,AC22,NOT(AE22)),Table!AD22,0) -> 0 | AE22: =Table!AE22<=Inputs!$B$6 -> FALSE | AF22: =IF(AND($A22,AE22,NOT(AG22)),Table!AF22,0) -> 0 | AG22: =Table!AG22<=Inputs!$B$6 -> FALSE | AH22: =IF(AND($A22,AG22,NOT(AI22)),Table!AH22,0) -> 0
A23: FALSE | B23: =Table!B23<=Inputs!B$1 -> FALSE | C23: =Table!C23<=Inputs!$B$6 -> TRUE | D23: =IF(AND($A23,C23,NOT(E23)),Table!D23,0) -> 0 | E23: =Table!E23<=Inputs!$B$6 -> TRUE | F23: =IF(AND($A23,E23,NOT(G23)),Table!F23,0) -> 0 | G23: =Table!G23<=Inputs!$B$6 -> TRUE | H23: =IF(AND($A23,G23,NOT(I23)),Table!H23,0) -> 0 | I23: =Table!I23<=Inputs!$B$6 -> TRUE | J23: =IF(AND($A23,I23,NOT(K23)),Table!J23,0) -> 0 | K23: =Table!K23<=Inputs!$B$6 -> TRUE | L23: =IF(AND($A23,K23,NOT(M23)),Table!L23,0) -> 0 | M23: =Table!M23<=Inputs!$B$6 -> TRUE | N23: =IF(AND($A23,M23,NOT(O23)),Table!N23,0) -> 0 | O23: =Table!O23<=Inputs!$B$6 -> FALSE | P23: =IF(AND($A23,O23,NOT(Q23)),Table!P23,0) -> 0 | Q23: =Table!Q23<=Inputs!$B$6 -> FALSE | R23: =IF(AND($A23,Q23,NOT(S23)),Table!R23,0) -> 0 | S23: =Table!S23<=Inputs!$B$6 -> FALSE | T23: =IF(AND($A23,S23,NOT(U23)),Table!T23,0) -> 0 | U23: =Table!U23<=Inputs!$B$6 -> FALSE | V23: =IF(AND($A23,U23,NOT(W23)),Table!V23,0) -> 0 | W23: =Table!W23<=Inputs!$B$6 -> FALSE | X23: =IF(AND($A23,W23,NOT(Y23)),Table!X23,0) -> 0 | Y23: =Table!Y23<=Inputs!$B$6 -> FALSE | Z23: =IF(AND($A23,Y23,NOT(AA23)),Table!Z23,0) -> 0 | AA23: =Table!AA23<=Inputs!$B$6 -> FALSE | AB23: =IF(AND($A23,AA23,NOT(AC23)),Table!AB23,0) -> 0 | AC23: =Table!AC23<=Inputs!$B$6 -> FALSE | AD23: =IF(AND($A23,AC23,NOT(AE23)),Table!AD23,0) -> 0 | AE23: =Table!AE23<=Inputs!$B$6 -> FALSE | AF23: =IF(AND($A23,AE23,NOT(AG23)),Table!AF23,0) -> 0 | AG23: =Table!AG23<=Inputs!$B$6 -> FALSE | AH23: =IF(AND($A23,AG23,NOT(AI23)),Table!AH23,0) -> 0
A24: FALSE | B24: =Table!B24<=Inputs!B$1 -> FALSE | C24: =Table!C24<=Inputs!$B$6 -> TRUE | D24: =IF(AND($A24,C24,NOT(E24)),Table!D24,0) -> 0 | E24: =Table!E24<=Inputs!$B$6 -> TRUE | F24: =IF(AND($A24,E24,NOT(G24)),Table!F24,0) -> 0 | G24: =Table!G24<=Inputs!$B$6 -> TRUE | H24: =IF(AND($A24,G24,NOT(I24)),Table!H24,0) -> 0 | I24: =Table!I24<=Inputs!$B$6 -> TRUE | J24: =IF(AND($A24,I24,NOT(K24)),Table!J24,0) -> 0 | K24: =Table!K24<=Inputs!$B$6 -> TRUE | L24: =IF(AND($A24,K24,NOT(M24)),Table!L24,0) -> 0 | M24: =Table!M24<=Inputs!$B$6 -> TRUE | N24: =IF(AND($A24,M24,NOT(O24)),Table!N24,0) -> 0 | O24: =Table!O24<=Inputs!$B$6 -> FALSE | P24: =IF(AND($A24,O24,NOT(Q24)),Table!P24,0) -> 0 | Q24: =Table!Q24<=Inputs!$B$6 -> FALSE | R24: =IF(AND($A24,Q24,NOT(S24)),Table!R24,0) -> 0 | S24: =Table!S24<=Inputs!$B$6 -> FALSE | T24: =IF(AND($A24,S24,NOT(U24)),Table!T24,0) -> 0 | U24: =Table!U24<=Inputs!$B$6 -> FALSE | V24: =IF(AND($A24,U24,NOT(W24)),Table!V24,0) -> 0 | W24: =Table!W24<=Inputs!$B$6 -> FALSE | X24: =IF(AND($A24,W24,NOT(Y24)),Table!X24,0) -> 0 | Y24: =Table!Y24<=Inputs!$B$6 -> FALSE | Z24: =IF(AND($A24,Y24,NOT(AA24)),Table!Z24,0) -> 0 | AA24: =Table!AA24<=Inputs!$B$6 -> FALSE | AB24: =IF(AND($A24,AA24,NOT(AC24)),Table!AB24,0) -> 0 | AC24: =Table!AC24<=Inputs!$B$6 -> FALSE | AD24: =IF(AND($A24,AC24,NOT(AE24)),Table!AD24,0) -> 0 | AE24: =Table!AE24<=Inputs!$B$6 -> FALSE | AF24: =IF(AND($A24,AE24,NOT(AG24)),Table!AF24,0) -> 0 | AG24: =Table!AG24<=Inputs!$B$6 -> FALSE | AH24: =IF(AND($A24,AG24,NOT(AI24)),Table!AH24,0) -> 0
A25: FALSE | B25: =Table!B25<=Inputs!B$1 -> FALSE | C25: =Table!C25<=Inputs!$B$6 -> TRUE | D25: =IF(AND($A25,C25,NOT(E25)),Table!D25,0) -> 0 | E25: =Table!E25<=Inputs!$B$6 -> TRUE | F25: =IF(AND($A25,E25,NOT(G25)),Table!F25,0) -> 0 | G25: =Table!G25<=Inputs!$B$6 -> TRUE | H25: =IF(AND($A25,G25,NOT(I25)),Table!H25,0) -> 0 | I25: =Table!I25<=Inputs!$B$6 -> TRUE | J25: =IF(AND($A25,I25,NOT(K25)),Table!J25,0) -> 0 | K25: =Table!K25<=Inputs!$B$6 -> TRUE | L25: =IF(AND($A25,K25,NOT(M25)),Table!L25,0) -> 0 | M25: =Table!M25<=Inputs!$B$6 -> TRUE | N25: =IF(AND($A25,M25,NOT(O25)),Table!N25,0) -> 0 | O25: =Table!O25<=Inputs!$B$6 -> FALSE | P25: =IF(AND($A25,O25,NOT(Q25)),Table!P25,0) -> 0 | Q25: =Table!Q25<=Inputs!$B$6 -> FALSE | R25: =IF(AND($A25,Q25,NOT(S25)),Table!R25,0) -> 0 | S25: =Table!S25<=Inputs!$B$6 -> FALSE | T25: =IF(AND($A25,S25,NOT(U25)),Table!T25,0) -> 0 | U25: =Table!U25<=Inputs!$B$6 -> FALSE | V25: =IF(AND($A25,U25,NOT(W25)),Table!V25,0) -> 0 | W25: =Table!W25<=Inputs!$B$6 -> FALSE | X25: =IF(AND($A25,W25,NOT(Y25)),Table!X25,0) -> 0 | Y25: =Table!Y25<=Inputs!$B$6 -> FALSE | Z25: =IF(AND($A25,Y25,NOT(AA25)),Table!Z25,0) -> 0 | AA25: =Table!AA25<=Inputs!$B$6 -> FALSE | AB25: =IF(AND($A25,AA25,NOT(AC25)),Table!AB25,0) -> 0 | AC25: =Table!AC25<=Inputs!$B$6 -> FALSE | AD25: =IF(AND($A25,AC25,NOT(AE25)),Table!AD25,0) -> 0 | AE25: =Table!AE25<=Inputs!$B$6 -> FALSE | AF25: =IF(AND($A25,AE25,NOT(AG25)),Table!AF25,0) -> 0 | AG25: =Table!AG25<=Inputs!$B$6 -> FALSE | AH25: =IF(AND($A25,AG25,NOT(AI25)),Table!AH25,0) -> 0
A26: FALSE | B26: =Table!B26<=Inputs!B$1 -> FALSE | C26: =Table!C26<=Inputs!$B$6 -> TRUE | D26: =IF(AND($A26,C26,NOT(E26)),Table!D26,0) -> 0 | E26: =Table!E26<=Inputs!$B$6 -> TRUE | F26: =IF(AND($A26,E26,NOT(G26)),Table!F26,0) -> 0 | G26: =Table!G26<=Inputs!$B$6 -> TRUE | H26: =IF(AND($A26,G26,NOT(I26)),Table!H26,0) -> 0 | I26: =Table!I26<=Inputs!$B$6 -> TRUE | J26: =IF(AND($A26,I26,NOT(K26)),Table!J26,0) -> 0 | K26: =Table!K26<=Inputs!$B$6 -> TRUE | L26: =IF(AND($A26,K26,NOT(M26)),Table!L26,0) -> 0 | M26: =Table!M26<=Inputs!$B$6 -> TRUE | N26: =IF(AND($A26,M26,NOT(O26)),Table!N26,0) -> 0 | O26: =Table!O26<=Inputs!$B$6 -> FALSE | P26: =IF(AND($A26,O26,NOT(Q26)),Table!P26,0) -> 0 | Q26: =Table!Q26<=Inputs!$B$6 -> FALSE | R26: =IF(AND($A26,Q26,NOT(S26)),Table!R26,0) -> 0 | S26: =Table!S26<=Inputs!$B$6 -> FALSE | T26: =IF(AND($A26,S26,NOT(U26)),Table!T26,0) -> 0 | U26: =Table!U26<=Inputs!$B$6 -> FALSE | V26: =IF(AND($A26,U26,NOT(W26)),Table!V26,0) -> 0 | W26: =Table!W26<=Inputs!$B$6 -> FALSE | X26: =IF(AND($A26,W26,NOT(Y26)),Table!X26,0) -> 0 | Y26: =Table!Y26<=Inputs!$B$6 -> FALSE | Z26: =IF(AND($A26,Y26,NOT(AA26)),Table!Z26,0) -> 0 | AA26: =Table!AA26<=Inputs!$B$6 -> FALSE | AB26: =IF(AND($A26,AA26,NOT(AC26)),Table!AB26,0) -> 0 | AC26: =Table!AC26<=Inputs!$B$6 -> FALSE | AD26: =IF(AND($A26,AC26,NOT(AE26)),Table!AD26,0) -> 0 | AE26: =Table!AE26<=Inputs!$B$6 -> FALSE | AF26: =IF(AND($A26,AE26,NOT(AG26)),Table!AF26,0) -> 0 | AG26: =Table!AG26<=Inputs!$B$6 -> FALSE | AH26: =IF(AND($A26,AG26,NOT(AI26)),Table!AH26,0) -> 0
A27: FALSE | B27: =Table!B27<=Inputs!B$1 -> FALSE | C27: =Table!C27<=Inputs!$B$6 -> TRUE | D27: =IF(AND($A27,C27,NOT(E27)),Table!D27,0) -> 0 | E27: =Table!E27<=Inputs!$B$6 -> TRUE | F27: =IF(AND($A27,E27,NOT(G27)),Table!F27,0) -> 0 | G27: =Table!G27<=Inputs!$B$6 -> TRUE | H27: =IF(AND($A27,G27,NOT(I27)),Table!H27,0) -> 0 | I27: =Table!I27<=Inputs!$B$6 -> TRUE | J27: =IF(AND($A27,I27,NOT(K27)),Table!J27,0) -> 0 | K27: =Table!K27<=Inputs!$B$6 -> TRUE | L27: =IF(AND($A27,K27,NOT(M27)),Table!L27,0) -> 0 | M27: =Table!M27<=Inputs!$B$6 -> TRUE | N27: =IF(AND($A27,M27,NOT(O27)),Table!N27,0) -> 0 | O27: =Table!O27<=Inputs!$B$6 -> TRUE | P27: =IF(AND($A27,O27,NOT(Q27)),Table!P27,0) -> 0 | Q27: =Table!Q27<=Inputs!$B$6 -> FALSE | R27: =IF(AND($A27,Q27,NOT(S27)),Table!R27,0) -> 0 | S27: =Table!S27<=Inputs!$B$6 -> FALSE | T27: =IF(AND($A27,S27,NOT(U27)),Table!T27,0) -> 0 | U27: =Table!U27<=Inputs!$B$6 -> FALSE | V27: =IF(AND($A27,U27,NOT(W27)),Table!V27,0) -> 0 | W27: =Table!W27<=Inputs!$B$6 -> FALSE | X27: =IF(AND($A27,W27,NOT(Y27)),Table!X27,0) -> 0 | Y27: =Table!Y27<=Inputs!$B$6 -> FALSE | Z27: =IF(AND($A27,Y27,NOT(AA27)),Table!Z27,0) -> 0 | AA27: =Table!AA27<=Inputs!$B$6 -> FALSE | AB27: =IF(AND($A27,AA27,NOT(AC27)),Table!AB27,0) -> 0 | AC27: =Table!AC27<=Inputs!$B$6 -> FALSE | AD27: =IF(AND($A27,AC27,NOT(AE27)),Table!AD27,0) -> 0 | AE27: =Table!AE27<=Inputs!$B$6 -> FALSE | AF27: =IF(AND($A27,AE27,NOT(AG27)),Table!AF27,0) -> 0 | AG27: =Table!AG27<=Inputs!$B$6 -> FALSE | AH27: =IF(AND($A27,AG27,NOT(AI27)),Table!AH27,0) -> 0
A28: FALSE | B28: =Table!B28<=Inputs!B$1 -> FALSE | C28: =Table!C28<=Inputs!$B$6 -> TRUE | D28: =IF(AND($A28,C28,NOT(E28)),Table!D28,0) -> 0 | E28: =Table!E28<=Inputs!$B$6 -> TRUE | F28: =IF(AND($A28,E28,NOT(G28)),Table!F28,0) -> 0 | G28: =Table!G28<=Inputs!$B$6 -> TRUE | H28: =IF(AND($A28,G28,NOT(I28)),Table!H28,0) -> 0 | I28: =Table!I28<=Inputs!$B$6 -> TRUE | J28: =IF(AND($A28,I28,NOT(K28)),Table!J28,0) -> 0 | K28: =Table!K28<=Inputs!$B$6 -> TRUE | L28: =IF(AND($A28,K28,NOT(M28)),Table!L28,0) -> 0 | M28: =Table!M28<=Inputs!$B$6 -> TRUE | N28: =IF(AND($A28,M28,NOT(O28)),Table!N28,0) -> 0 | O28: =Table!O28<=Inputs!$B$6 -> TRUE | P28: =IF(AND($A28,O28,NOT(Q28)),Table!P28,0) -> 0 | Q28: =Table!Q28<=Inputs!$B$6 -> FALSE | R28: =IF(AND($A28,Q28,NOT(S28)),Table!R28,0) -> 0 | S28: =Table!S28<=Inputs!$B$6 -> FALSE | T28: =IF(AND($A28,S28,NOT(U28)),Table!T28,0) -> 0 | U28: =Table!U28<=Inputs!$B$6 -> FALSE | V28: =IF(AND($A28,U28,NOT(W28)),Table!V28,0) -> 0 | W28: =Table!W28<=Inputs!$B$6 -> FALSE | X28: =IF(AND($A28,W28,NOT(Y28)),Table!X28,0) -> 0 | Y28: =Table!Y28<=Inputs!$B$6 -> FALSE | Z28: =IF(AND($A28,Y28,NOT(AA28)),Table!Z28,0) -> 0 | AA28: =Table!AA28<=Inputs!$B$6 -> FALSE | AB28: =IF(AND($A28,AA28,NOT(AC28)),Table!AB28,0) -> 0 | AC28: =Table!AC28<=Inputs!$B$6 -> FALSE | AD28: =IF(AND($A28,AC28,NOT(AE28)),Table!AD28,0) -> 0 | AE28: =Table!AE28<=Inputs!$B$6 -> FALSE | AF28: =IF(AND($A28,AE28,NOT(AG28)),Table!AF28,0) -> 0 | AG28: =Table!AG28<=Inputs!$B$6 -> FALSE | AH28: =IF(AND($A28,AG28,NOT(AI28)),Table!AH28,0) -> 0
A29: FALSE | B29: =Table!B29<=Inputs!B$1 -> FALSE | C29: =Table!C29<=Inputs!$B$6 -> TRUE | D29: =IF(AND($A29,C29,NOT(E29)),Table!D29,0) -> 0 | E29: =Table!E29<=Inputs!$B$6 -> TRUE | F29: =IF(AND($A29,E29,NOT(G29)),Table!F29,0) -> 0 | G29: =Table!G29<=Inputs!$B$6 -> TRUE | H29: =IF(AND($A29,G29,NOT(I29)),Table!H29,0) -> 0 | I29: =Table!I29<=Inputs!$B$6 -> TRUE | J29: =IF(AND($A29,I29,NOT(K29)),Table!J29,0) -> 0 | K29: =Table!K29<=Inputs!$B$6 -> TRUE | L29: =IF(AND($A29,K29,NOT(M29)),Table!L29,0) -> 0 | M29: =Table!M29<=Inputs!$B$6 -> TRUE | N29: =IF(AND($A29,M29,NOT(O29)),Table!N29,0) -> 0 | O29: =Table!O29<=Inputs!$B$6 -> TRUE | P29: =IF(AND($A29,O29,NOT(Q29)),Table!P29,0) -> 0 | Q29: =Table!Q29<=Inputs!$B$6 -> FALSE | R29: =IF(AND($A29,Q29,NOT(S29)),Table!R29,0) -> 0 | S29: =Table!S29<=Inputs!$B$6 -> FALSE | T29: =IF(AND($A29,S29,NOT(U29)),Table!T29,0) -> 0 | U29: =Table!U29<=Inputs!$B$6 -> FALSE | V29: =IF(AND($A29,U29,NOT(W29)),Table!V29,0) -> 0 | W29: =Table!W29<=Inputs!$B$6 -> FALSE | X29: =IF(AND($A29,W29,NOT(Y29)),Table!X29,0) -> 0 | Y29: =Table!Y29<=Inputs!$B$6 -> FALSE | Z29: =IF(AND($A29,Y29,NOT(AA29)),Table!Z29,0) -> 0 | AA29: =Table!AA29<=Inputs!$B$6 -> FALSE | AB29: =IF(AND($A29,AA29,NOT(AC29)),Table!AB29,0) -> 0 | AC29: =Table!AC29<=Inputs!$B$6 -> FALSE | AD29: =IF(AND($A29,AC29,NOT(AE29)),Table!AD29,0) -> 0 | AE29: =Table!AE29<=Inputs!$B$6 -> FALSE | AF29: =IF(AND($A29,AE29,NOT(AG29)),Table!AF29,0) -> 0 | AG29: =Table!AG29<=Inputs!$B$6 -> FALSE | AH29: =IF(AND($A29,AG29,NOT(AI29)),Table!AH29,0) -> 0
A30: FALSE | B30: =Table!B30<=Inputs!B$1 -> FALSE | C30: =Table!C30<=Inputs!$B$6 -> TRUE | D30: =IF(AND($A30,C30,NOT(E30)),Table!D30,0) -> 0 | E30: =Table!E30<=Inputs!$B$6 -> TRUE | F30: =IF(AND($A30,E30,NOT(G30)),Table!F30,0) -> 0 | G30: =Table!G30<=Inputs!$B$6 -> TRUE | H30: =IF(AND($A30,G30,NOT(I30)),Table!H30,0) -> 0 | I30: =Table!I30<=Inputs!$B$6 -> TRUE | J30: =IF(AND($A30,I30,NOT(K30)),Table!J30,0) -> 0 | K30: =Table!K30<=Inputs!$B$6 -> TRUE | L30: =IF(AND($A30,K30,NOT(M30)),Table!L30,0) -> 0 | M30: =Table!M30<=Inputs!$B$6 -> TRUE | N30: =IF(AND($A30,M30,NOT(O30)),Table!N30,0) -> 0 | O30: =Table!O30<=Inputs!$B$6 -> TRUE | P30: =IF(AND($A30,O30,NOT(Q30)),Table!P30,0) -> 0 | Q30: =Table!Q30<=Inputs!$B$6 -> FALSE | R30: =IF(AND($A30,Q30,NOT(S30)),Table!R30,0) -> 0 | S30: =Table!S30<=Inputs!$B$6 -> FALSE | T30: =IF(AND($A30,S30,NOT(U30)),Table!T30,0) -> 0 | U30: =Table!U30<=Inputs!$B$6 -> FALSE | V30: =IF(AND($A30,U30,NOT(W30)),Table!V30,0) -> 0 | W30: =Table!W30<=Inputs!$B$6 -> FALSE | X30: =IF(AND($A30,W30,NOT(Y30)),Table!X30,0) -> 0 | Y30: =Table!Y30<=Inputs!$B$6 -> FALSE | Z30: =IF(AND($A30,Y30,NOT(AA30)),Table!Z30,0) -> 0 | AA30: =Table!AA30<=Inputs!$B$6 -> FALSE | AB30: =IF(AND($A30,AA30,NOT(AC30)),Table!AB30,0) -> 0 | AC30: =Table!AC30<=Inputs!$B$6 -> FALSE | AD30: =IF(AND($A30,AC30,NOT(AE30)),Table!AD30,0) -> 0 | AE30: =Table!AE30<=Inputs!$B$6 -> FALSE | AF30: =IF(AND($A30,AE30,NOT(AG30)),Table!AF30,0) -> 0 | AG30: =Table!AG30<=Inputs!$B$6 -> FALSE | AH30: =IF(AND($A30,AG30,NOT(AI30)),Table!AH30,0) -> 0
A31: FALSE | B31: =Table!B31<=Inputs!B$1 -> FALSE | C31: =Table!C31<=Inputs!$B$6 -> TRUE | D31: =IF(AND($A31,C31,NOT(E31)),Table!D31,0) -> 0 | E31: =Table!E31<=Inputs!$B$6 -> TRUE | F31: =IF(AND($A31,E31,NOT(G31)),Table!F31,0) -> 0 | G31: =Table!G31<=Inputs!$B$6 -> TRUE | H31: =IF(AND($A31,G31,NOT(I31)),Table!H31,0) -> 0 | I31: =Table!I31<=Inputs!$B$6 -> TRUE | J31: =IF(AND($A31,I31,NOT(K31)),Table!J31,0) -> 0 | K31: =Table!K31<=Inputs!$B$6 -> TRUE | L31: =IF(AND($A31,K31,NOT(M31)),Table!L31,0) -> 0 | M31: =Table!M31<=Inputs!$B$6 -> TRUE | N31: =IF(AND($A31,M31,NOT(O31)),Table!N31,0) -> 0 | O31: =Table!O31<=Inputs!$B$6 -> TRUE | P31: =IF(AND($A31,O31,NOT(Q31)),Table!P31,0) -> 0 | Q31: =Table!Q31<=Inputs!$B$6 -> TRUE | R31: =IF(AND($A31,Q31,NOT(S31)),Table!R31,0) -> 0 | S31: =Table!S31<=Inputs!$B$6 -> FALSE | T31: =IF(AND($A31,S31,NOT(U31)),Table!T31,0) -> 0 | U31: =Table!U31<=Inputs!$B$6 -> FALSE | V31: =IF(AND($A31,U31,NOT(W31)),Table!V31,0) -> 0 | W31: =Table!W31<=Inputs!$B$6 -> FALSE | X31: =IF(AND($A31,W31,NOT(Y31)),Table!X31,0) -> 0 | Y31: =Table!Y31<=Inputs!$B$6 -> FALSE | Z31: =IF(AND($A31,Y31,NOT(AA31)),Table!Z31,0) -> 0 | AA31: =Table!AA31<=Inputs!$B$6 -> FALSE | AB31: =IF(AND($A31,AA31,NOT(AC31)),Table!AB31,0) -> 0 | AC31: =Table!AC31<=Inputs!$B$6 -> FALSE | AD31: =IF(AND($A31,AC31,NOT(AE31)),Table!AD31,0) -> 0 | AE31: =Table!AE31<=Inputs!$B$6 -> FALSE | AF31: =IF(AND($A31,AE31,NOT(AG31)),Table!AF31,0) -> 0 | AG31: =Table!AG31<=Inputs!$B$6 -> FALSE | AH31: =IF(AND($A31,AG31,NOT(AI31)),Table!AH31,0) -> 0
A32: FALSE | B32: =Table!B32<=Inputs!B$1 -> FALSE | C32: =Table!C32<=Inputs!$B$6 -> TRUE | D32: =IF(AND($A32,C32,NOT(E32)),Table!D32,0) -> 0 | E32: =Table!E32<=Inputs!$B$6 -> TRUE | F32: =IF(AND($A32,E32,NOT(G32)),Table!F32,0) -> 0 | G32: =Table!G32<=Inputs!$B$6 -> TRUE | H32: =IF(AND($A32,G32,NOT(I32)),Table!H32,0) -> 0 | I32: =Table!I32<=Inputs!$B$6 -> TRUE | J32: =IF(AND($A32,I32,NOT(K32)),Table!J32,0) -> 0 | K32: =Table!K32<=Inputs!$B$6 -> TRUE | L32: =IF(AND($A32,K32,NOT(M32)),Table!L32,0) -> 0 | M32: =Table!M32<=Inputs!$B$6 -> TRUE | N32: =IF(AND($A32,M32,NOT(O32)),Table!N32,0) -> 0 | O32: =Table!O32<=Inputs!$B$6 -> TRUE | P32: =IF(AND($A32,O32,NOT(Q32)),Table!P32,0) -> 0 | Q32: =Table!Q32<=Inputs!$B$6 -> TRUE | R32: =IF(AND($A32,Q32,NOT(S32)),Table!R32,0) -> 0 | S32: =Table!S32<=Inputs!$B$6 -> FALSE | T32: =IF(AND($A32,S32,NOT(U32)),Table!T32,0) -> 0 | U32: =Table!U32<=Inputs!$B$6 -> FALSE | V32: =IF(AND($A32,U32,NOT(W32)),Table!V32,0) -> 0 | W32: =Table!W32<=Inputs!$B$6 -> FALSE | X32: =IF(AND($A32,W32,NOT(Y32)),Table!X32,0) -> 0 | Y32: =Table!Y32<=Inputs!$B$6 -> FALSE | Z32: =IF(AND($A32,Y32,NOT(AA32)),Table!Z32,0) -> 0 | AA32: =Table!AA32<=Inputs!$B$6 -> FALSE | AB32: =IF(AND($A32,AA32,NOT(AC32)),Table!AB32,0) -> 0 | AC32: =Table!AC32<=Inputs!$B$6 -> FALSE | AD32: =IF(AND($A32,AC32,NOT(AE32)),Table!AD32,0) -> 0 | AE32: =Table!AE32<=Inputs!$B$6 -> FALSE | AF32: =IF(AND($A32,AE32,NOT(AG32)),Table!AF32,0) -> 0 | AG32: =Table!AG32<=Inputs!$B$6 -> FALSE | AH32: =IF(AND($A32,AG32,NOT(AI32)),Table!AH32,0) -> 0
A33: FALSE | B33: =Table!B33<=Inputs!B$1 -> FALSE | C33: =Table!C33<=Inputs!$B$6 -> TRUE | D33: =IF(AND($A33,C33,NOT(E33)),Table!D33,0) -> 0 | E33: =Table!E33<=Inputs!$B$6 -> TRUE | F33: =IF(AND($A33,E33,NOT(G33)),Table!F33,0) -> 0 | G33: =Table!G33<=Inputs!$B$6 -> TRUE | H33: =IF(AND($A33,G33,NOT(I33)),Table!H33,0) -> 0 | I33: =Table!I33<=Inputs!$B$6 -> TRUE | J33: =IF(AND($A33,I33,NOT(K33)),Table!J33,0) -> 0 | K33: =Table!K33<=Inputs!$B$6 -> TRUE | L33: =IF(AND($A33,K33,NOT(M33)),Table!L33,0) -> 0 | M33: =Table!M33<=Inputs!$B$6 -> TRUE | N33: =IF(AND($A33,M33,NOT(O33)),Table!N33,0) -> 0 | O33: =Table!O33<=Inputs!$B$6 -> TRUE | P33: =IF(AND($A33,O33,NOT(Q33)),Table!P33,0) -> 0 | Q33: =Table!Q33<=Inputs!$B$6 -> TRUE | R33: =IF(AND($A33,Q33,NOT(S33)),Table!R33,0) -> 0 | S33: =Table!S33<=Inputs!$B$6 -> FALSE | T33: =IF(AND($A33,S33,NOT(U33)),Table!T33,0) -> 0 | U33: =Table!U33<=Inputs!$B$6 -> FALSE | V33: =IF(AND($A33,U33,NOT(W33)),Table!V33,0) -> 0 | W33: =Table!W33<=Inputs!$B$6 -> FALSE | X33: =IF(AND($A33,W33,NOT(Y33)),Table!X33,0) -> 0 | Y33: =Table!Y33<=Inputs!$B$6 -> FALSE | Z33: =IF(AND($A33,Y33,NOT(AA33)),Table!Z33,0) -> 0 | AA33: =Table!AA33<=Inputs!$B$6 -> FALSE | AB33: =IF(AND($A33,AA33,NOT(AC33)),Table!AB33,0) -> 0 | AC33: =Table!AC33<=Inputs!$B$6 -> FALSE | AD33: =IF(AND($A33,AC33,NOT(AE33)),Table!AD33,0) -> 0 | AE33: =Table!AE33<=Inputs!$B$6 -> FALSE | AF33: =IF(AND($A33,AE33,NOT(AG33)),Table!AF33,0) -> 0 | AG33: =Table!AG33<=Inputs!$B$6 -> FALSE | AH33: =IF(AND($A33,AG33,NOT(AI33)),Table!AH33,0) -> 0
A34: FALSE | B34: =Table!B34<=Inputs!B$1 -> FALSE | C34: =Table!C34<=Inputs!$B$6 -> TRUE | D34: =IF(AND($A34,C34,NOT(E34)),Table!D34,0) -> 0 | E34: =Table!E34<=Inputs!$B$6 -> TRUE | F34: =IF(AND($A34,E34,NOT(G34)),Table!F34,0) -> 0 | G34: =Table!G34<=Inputs!$B$6 -> TRUE | H34: =IF(AND($A34,G34,NOT(I34)),Table!H34,0) -> 0 | I34: =Table!I34<=Inputs!$B$6 -> TRUE | J34: =IF(AND($A34,I34,NOT(K34)),Table!J34,0) -> 0 | K34: =Table!K34<=Inputs!$B$6 -> TRUE | L34: =IF(AND($A34,K34,NOT(M34)),Table!L34,0) -> 0 | M34: =Table!M34<=Inputs!$B$6 -> TRUE | N34: =IF(AND($A34,M34,NOT(O34)),Table!N34,0) -> 0 | O34: =Table!O34<=Inputs!$B$6 -> TRUE | P34: =IF(AND($A34,O34,NOT(Q34)),Table!P34,0) -> 0 | Q34: =Table!Q34<=Inputs!$B$6 -> TRUE | R34: =IF(AND($A34,Q34,NOT(S34)),Table!R34,0) -> 0 | S34: =Table!S34<=Inputs!$B$6 -> FALSE | T34: =IF(AND($A34,S34,NOT(U34)),Table!T34,0) -> 0 | U34: =Table!U34<=Inputs!$B$6 -> FALSE | V34: =IF(AND($A34,U34,NOT(W34)),Table!V34,0) -> 0 | W34: =Table!W34<=Inputs!$B$6 -> FALSE | X34: =IF(AND($A34,W34,NOT(Y34)),Table!X34,0) -> 0 | Y34: =Table!Y34<=Inputs!$B$6 -> FALSE | Z34: =IF(AND($A34,Y34,NOT(AA34)),Table!Z34,0) -> 0 | AA34: =Table!AA34<=Inputs!$B$6 -> FALSE | AB34: =IF(AND($A34,AA34,NOT(AC34)),Table!AB34,0) -> 0 | AC34: =Table!AC34<=Inputs!$B$6 -> FALSE | AD34: =IF(AND($A34,AC34,NOT(AE34)),Table!AD34,0) -> 0 | AE34: =Table!AE34<=Inputs!$B$6 -> FALSE | AF34: =IF(AND($A34,AE34,NOT(AG34)),Table!AF34,0) -> 0 | AG34: =Table!AG34<=Inputs!$B$6 -> FALSE | AH34: =IF(AND($A34,AG34,NOT(AI34)),Table!AH34,0) -> 0
A35: FALSE | B35: =Table!B35<=Inputs!B$1 -> FALSE | C35: =Table!C35<=Inputs!$B$6 -> TRUE | D35: =IF(AND($A35,C35,NOT(E35)),Table!D35,0) -> 0 | E35: =Table!E35<=Inputs!$B$6 -> TRUE | F35: =IF(AND($A35,E35,NOT(G35)),Table!F35,0) -> 0 | G35: =Table!G35<=Inputs!$B$6 -> TRUE | H35: =IF(AND($A35,G35,NOT(I35)),Table!H35,0) -> 0 | I35: =Table!I35<=Inputs!$B$6 -> TRUE | J35: =IF(AND($A35,I35,NOT(K35)),Table!J35,0) -> 0 | K35: =Table!K35<=Inputs!$B$6 -> TRUE | L35: =IF(AND($A35,K35,NOT(M35)),Table!L35,0) -> 0 | M35: =Table!M35<=Inputs!$B$6 -> TRUE | N35: =IF(AND($A35,M35,NOT(O35)),Table!N35,0) -> 0 | O35: =Table!O35<=Inputs!$B$6 -> TRUE | P35: =IF(AND($A35,O35,NOT(Q35)),Table!P35,0) -> 0 | Q35: =Table!Q35<=Inputs!$B$6 -> TRUE | R35: =IF(AND($A35,Q35,NOT(S35)),Table!R35,0) -> 0 | S35: =Table!S35<=Inputs!$B$6 -> TRUE | T35: =IF(AND($A35,S35,NOT(U35)),Table!T35,0) -> 0 | U35: =Table!U35<=Inputs!$B$6 -> FALSE | V35: =IF(AND($A35,U35,NOT(W35)),Table!V35,0) -> 0 | W35: =Table!W35<=Inputs!$B$6 -> FALSE | X35: =IF(AND($A35,W35,NOT(Y35)),Table!X35,0) -> 0 | Y35: =Table!Y35<=Inputs!$B$6 -> FALSE | Z35: =IF(AND($A35,Y35,NOT(AA35)),Table!Z35,0) -> 0 | AA35: =Table!AA35<=Inputs!$B$6 -> FALSE | AB35: =IF(AND($A35,AA35,NOT(AC35)),Table!AB35,0) -> 0 | AC35: =Table!AC35<=Inputs!$B$6 -> FALSE | AD35: =IF(AND($A35,AC35,NOT(AE35)),Table!AD35,0) -> 0 | AE35: =Table!AE35<=Inputs!$B$6 -> FALSE | AF35: =IF(AND($A35,AE35,NOT(AG35)),Table!AF35,0) -> 0 | AG35: =Table!AG35<=Inputs!$B$6 -> FALSE | AH35: =IF(AND($A35,AG35,NOT(AI35)),Table!AH35,0) -> 0
A36: FALSE | B36: =Table!B36<=Inputs!B$1 -> FALSE | C36: =Table!C36<=Inputs!$B$6 -> TRUE | D36: =IF(AND($A36,C36,NOT(E36)),Table!D36,0) -> 0 | E36: =Table!E36<=Inputs!$B$6 -> TRUE | F36: =IF(AND($A36,E36,NOT(G36)),Table!F36,0) -> 0 | G36: =Table!G36<=Inputs!$B$6 -> TRUE | H36: =IF(AND($A36,G36,NOT(I36)),Table!H36,0) -> 0 | I36: =Table!I36<=Inputs!$B$6 -> TRUE | J36: =IF(AND($A36,I36,NOT(K36)),Table!J36,0) -> 0 | K36: =Table!K36<=Inputs!$B$6 -> TRUE | L36: =IF(AND($A36,K36,NOT(M36)),Table!L36,0) -> 0 | M36: =Table!M36<=Inputs!$B$6 -> TRUE | N36: =IF(AND($A36,M36,NOT(O36)),Table!N36,0) -> 0 | O36: =Table!O36<=Inputs!$B$6 -> TRUE | P36: =IF(AND($A36,O36,NOT(Q36)),Table!P36,0) -> 0 | Q36: =Table!Q36<=Inputs!$B$6 -> TRUE | R36: =IF(AND($A36,Q36,NOT(S36)),Table!R36,0) -> 0 | S36: =Table!S36<=Inputs!$B$6 -> TRUE | T36: =IF(AND($A36,S36,NOT(U36)),Table!T36,0) -> 0 | U36: =Table!U36<=Inputs!$B$6 -> FALSE | V36: =IF(AND($A36,U36,NOT(W36)),Table!V36,0) -> 0 | W36: =Table!W36<=Inputs!$B$6 -> FALSE | X36: =IF(AND($A36,W36,NOT(Y36)),Table!X36,0) -> 0 | Y36: =Table!Y36<=Inputs!$B$6 -> FALSE | Z36: =IF(AND($A36,Y36,NOT(AA36)),Table!Z36,0) -> 0 | AA36: =Table!AA36<=Inputs!$B$6 -> FALSE | AB36: =IF(AND($A36,AA36,NOT(AC36)),Table!AB36,0) -> 0 | AC36: =Table!AC36<=Inputs!$B$6 -> FALSE | AD36: =IF(AND($A36,AC36,NOT(AE36)),Table!AD36,0) -> 0 | AE36: =Table!AE36<=Inputs!$B$6 -> FALSE | AF36: =IF(AND($A36,AE36,NOT(AG36)),Table!AF36,0) -> 0 | AG36: =Table!AG36<=Inputs!$B$6 -> FALSE | AH36: =IF(AND($A36,AG36,NOT(AI36)),Table!AH36,0) -> 0
D38: =SUM(D6:D36) -> 0 | F38: =SUM(F6:F36) -> 0 | H38: =SUM(H6:H36) -> 0 | J38: =SUM(J6:J36) -> 100 | L38: =SUM(L6:L36) -> 0 | N38: =SUM(N6:N36) -> 0 | P38: =SUM(P6:P36) -> 0 | R38: =SUM(R6:R36) -> 0 | T38: =SUM(T6:T36) -> 0 | V38: =SUM(V6:V36) -> 0 | X38: =SUM(X6:X36) -> 0 | Z38: =SUM(Z6:Z36) -> 0 | AB38: =SUM(AB6:AB36) -> 0 | AD38: =SUM(AD6:AD36) -> 0 | AF38: =SUM(AF6:AF36) -> 0 | AH38: =SUM(AH6:AH36) -> 0
D40: =SUM(D38:AH38) -> 100

Sheet Table Reader (2)
A5: =AND(B5,NOT(B6)) -> FALSE | B5: =0<=Inputs!B$2 -> TRUE | C5: =Table!C5<=Inputs!$B$6 -> TRUE | D5: =IF(AND(A5,AH5+AF5+AD5+AB5+Z5+X5+V5+T5+R5+P5+N5+L5+J5+H5+F5=0),Table!D5,0) -> 0 | E5: =Table!E5<=Inputs!$B$6 -> TRUE | F5: =IF(AND($A5,C5,NOT(E5)),Table!F5,0) -> 0 | G5: =Table!G5<=Inputs!$B$6 -> FALSE | H5: =IF(AND($A5,E5,NOT(G5)),Table!H5,0) -> 0 | I5: =Table!I5<=Inputs!$B$6 -> FALSE | J5: =IF(AND($A5,G5,NOT(I5)),Table!J5,0) -> 0 | K5: =Table!K5<=Inputs!$B$6 -> FALSE | L5: =IF(AND($A5,I5,NOT(K5)),Table!L5,0) -> 0 | M5: =Table!M5<=Inputs!$B$6 -> FALSE | N5: =IF(AND($A5,K5,NOT(M5)),Table!N5,0) -> 0 | O5: =Table!O5<=Inputs!$B$6 -> FALSE | P5: =IF(AND($A5,M5,NOT(O5)),Table!P5,0) -> 0 | Q5: =Table!Q5<=Inputs!$B$6 -> FALSE | R5: =IF(AND($A5,O5,NOT(Q5)),Table!R5,0) -> 0 | S5: =Table!S5<=Inputs!$B$6 -> FALSE | T5: =IF(AND($A5,Q5,NOT(S5)),Table!T5,0) -> 0 | U5: =Table!U5<=Inputs!$B$6 -> FALSE | V5: =IF(AND($A5,S5,NOT(U5)),Table!V5,0) -> 0 | W5: =Table!W5<=Inputs!$B$6 -> FALSE | X5: =IF(AND($A5,U5,NOT(W5)),Table!X5,0) -> 0 | Y5: =Table!Y5<=Inputs!$B$6 -> FALSE | Z5: =IF(AND($A5,W5,NOT(Y5)),Table!Z5,0) -> 0 | AA5: =Table!AA5<=Inputs!$B$6 -> FALSE | AB5: =IF(AND($A5,Y5,NOT(AA5)),Table!AB5,0) -> 0 | AC5: =Table!AC5<=Inputs!$B$6 -> FALSE | AD5: =IF(AND($A5,AA5,NOT(AC5)),Table!AD5,0) -> 0 | AE5: =Table!AE5<=Inputs!$B$6 -> FALSE | AF5: =IF(AND($A5,AC5,NOT(AE5)),Table!AF5,0) -> 0 | AG5: =Table!AG5<=Inputs!$B$6 -> FALSE | AH5: =IF(AND($A5,AE5,NOT(AG5)),Table!AH5,0) -> 0
A6: =AND(B6,NOT(B7)) -> FALSE | B6: =2<=Inputs!B$2 -> TRUE | C6: =Table!C6<=Inputs!$B$6 -> TRUE | D6: =IF(AND(A6,AH6+AF6+AD6+AB6+Z6+X6+V6+T6+R6+P6+N6+L6+J6+H6+F6=0),Table!D6,0) -> 0 | E6: =Table!E6<=Inputs!$B$6 -> TRUE | F6: =IF(AND($A6,C6,NOT(E6)),Table!F6,0) -> 0 | G6: =Table!G6<=Inputs!$B$6 -> FALSE | H6: =IF(AND($A6,E6,NOT(G6)),Table!H6,0) -> 0 | I6: =Table!I6<=Inputs!$B$6 -> FALSE | J6: =IF(AND($A6,G6,NOT(I6)),Table!J6,0) -> 0 | K6: =Table!K6<=Inputs!$B$6 -> FALSE | L6: =IF(AND($A6,I6,NOT(K6)),Table!L6,0) -> 0 | M6: =Table!M6<=Inputs!$B$6 -> FALSE | N6: =IF(AND($A6,K6,NOT(M6)),Table!N6,0) -> 0 | O6: =Table!O6<=Inputs!$B$6 -> FALSE | P6: =IF(AND($A6,M6,NOT(O6)),Table!P6,0) -> 0 | Q6: =Table!Q6<=Inputs!$B$6 -> FALSE | R6: =IF(AND($A6,O6,NOT(Q6)),Table!R6,0) -> 0 | S6: =Table!S6<=Inputs!$B$6 -> FALSE | T6: =IF(AND($A6,Q6,NOT(S6)),Table!T6,0) -> 0 | U6: =Table!U6<=Inputs!$B$6 -> FALSE | V6: =IF(AND($A6,S6,NOT(U6)),Table!V6,0) -> 0 | W6: =Table!W6<=Inputs!$B$6 -> FALSE | X6: =IF(AND($A6,U6,NOT(W6)),Table!X6,0) -> 0 | Y6: =Table!Y6<=Inputs!$B$6 -> FALSE | Z6: =IF(AND($A6,W6,NOT(Y6)),Table!Z6,0) -> 0 | AA6: =Table!AA6<=Inputs!$B$6 -> FALSE | AB6: =IF(AND($A6,Y6,NOT(AA6)),Table!AB6,0) -> 0 | AC6: =Table!AC6<=Inputs!$B$6 -> FALSE | AD6: =IF(AND($A6,AA6,NOT(AC6)),Table!AD6,0) -> 0 | AE6: =Table!AE6<=Inputs!$B$6 -> FALSE | AF6: =IF(AND($A6,AC6,NOT(AE6)),Table!AF6,0) -> 0 | AG6: =Table!AG6<=Inputs!$B$6 -> FALSE | AH6: =IF(AND($A6,AE6,NOT(AG6)),Table!AH6,0) -> 0
A7: =AND(B7,NOT(B8)) -> FALSE | B7: =Table!B7<=Inputs!B$2 -> TRUE | C7: =Table!C7<=Inputs!$B$6 -> TRUE | D7: =IF(AND(A7,AH7+AF7+AD7+AB7+Z7+X7+V7+T7+R7+P7+N7+L7+J7+H7+F7=0),Table!D7,0) -> 0 | E7: =Table!E7<=Inputs!$B$6 -> TRUE | F7: =IF(AND($A7,C7,NOT(E7)),Table!F7,0) -> 0 | G7: =Table!G7<=Inputs!$B$6 -> FALSE | H7: =IF(AND($A7,E7,NOT(G7)),Table!H7,0) -> 0 | I7: =Table!I7<=Inputs!$B$6 -> FALSE | J7: =IF(AND($A7,G7,NOT(I7)),Table!J7,0) -> 0 | K7: =Table!K7<=Inputs!$B$6 -> FALSE | L7: =IF(AND($A7,I7,NOT(K7)),Table!L7,0) -> 0 | M7: =Table!M7<=Inputs!$B$6 -> FALSE | N7: =IF(AND($A7,K7,NOT(M7)),Table!N7,0) -> 0 | O7: =Table!O7<=Inputs!$B$6 -> FALSE | P7: =IF(AND($A7,M7,NOT(O7)),Table!P7,0) -> 0 | Q7: =Table!Q7<=Inputs!$B$6 -> FALSE | R7: =IF(AND($A7,O7,NOT(Q7)),Table!R7,0) -> 0 | S7: =Table!S7<=Inputs!$B$6 -> FALSE | T7: =IF(AND($A7,Q7,NOT(S7)),Table!T7,0) -> 0 | U7: =Table!U7<=Inputs!$B$6 -> FALSE | V7: =IF(AND($A7,S7,NOT(U7)),Table!V7,0) -> 0 | W7: =Table!W7<=Inputs!$B$6 -> FALSE | X7: =IF(AND($A7,U7,NOT(W7)),Table!X7,0) -> 0 | Y7: =Table!Y7<=Inputs!$B$6 -> FALSE | Z7: =IF(AND($A7,W7,NOT(Y7)),Table!Z7,0) -> 0 | AA7: =Table!AA7<=Inputs!$B$6 -> FALSE | AB7: =IF(AND($A7,Y7,NOT(AA7)),Table!AB7,0) -> 0 | AC7: =Table!AC7<=Inputs!$B$6 -> FALSE | AD7: =IF(AND($A7,AA7,NOT(AC7)),Table!AD7,0) -> 0 | AE7: =Table!AE7<=Inputs!$B$6 -> FALSE | AF7: =IF(AND($A7,AC7,NOT(AE7)),Table!AF7,0) -> 0 | AG7: =Table!AG7<=Inputs!$B$6 -> FALSE | AH7: =IF(AND($A7,AE7,NOT(AG7)),Table!AH7,0) -> 0
A8: =AND(B8,NOT(B9)) -> FALSE | B8: =Table!B8<=Inputs!B$2 -> TRUE | C8: =Table!C8<=Inputs!$B$6 -> TRUE | D8: =IF(AND(A8,AH8+AF8+AD8+AB8+Z8+X8+V8+T8+R8+P8+N8+L8+J8+H8+F8=0),Table!D8,0) -> 0 | E8: =Table!E8<=Inputs!$B$6 -> TRUE | F8: =IF(AND($A8,C8,NOT(E8)),Table!F8,0) -> 0 | G8: =Table!G8<=Inputs!$B$6 -> FALSE | H8: =IF(AND($A8,E8,NOT(G8)),Table!H8,0) -> 0 | I8: =Table!I8<=Inputs!$B$6 -> FALSE | J8: =IF(AND($A8,G8,NOT(I8)),Table!J8,0) -> 0 | K8: =Table!K8<=Inputs!$B$6 -> FALSE | L8: =IF(AND($A8,I8,NOT(K8)),Table!L8,0) -> 0 | M8: =Table!M8<=Inputs!$B$6 -> FALSE | N8: =IF(AND($A8,K8,NOT(M8)),Table!N8,0) -> 0 | O8: =Table!O8<=Inputs!$B$6 -> FALSE | P8: =IF(AND($A8,M8,NOT(O8)),Table!P8,0) -> 0 | Q8: =Table!Q8<=Inputs!$B$6 -> FALSE | R8: =IF(AND($A8,O8,NOT(Q8)),Table!R8,0) -> 0 | S8: =Table!S8<=Inputs!$B$6 -> FALSE | T8: =IF(AND($A8,Q8,NOT(S8)),Table!T8,0) -> 0 | U8: =Table!U8<=Inputs!$B$6 -> FALSE | V8: =IF(AND($A8,S8,NOT(U8)),Table!V8,0) -> 0 | W8: =Table!W8<=Inputs!$B$6 -> FALSE | X8: =IF(AND($A8,U8,NOT(W8)),Table!X8,0) -> 0 | Y8: =Table!Y8<=Inputs!$B$6 -> FALSE | Z8: =IF(AND($A8,W8,NOT(Y8)),Table!Z8,0) -> 0 | AA8: =Table!AA8<=Inputs!$B$6 -> FALSE | AB8: =IF(AND($A8,Y8,NOT(AA8)),Table!AB8,0) -> 0 | AC8: =Table!AC8<=Inputs!$B$6 -> FALSE | AD8: =IF(AND($A8,AA8,NOT(AC8)),Table!AD8,0) -> 0 | AE8: =Table!AE8<=Inputs!$B$6 -> FALSE | AF8: =IF(AND($A8,AC8,NOT(AE8)),Table!AF8,0) -> 0 | AG8: =Table!AG8<=Inputs!$B$6 -> FALSE | AH8: =IF(AND($A8,AE8,NOT(AG8)),Table!AH8,0) -> 0
A9: FALSE | B9: =Table!B9<=Inputs!B$2 -> TRUE | C9: =Table!C9<=Inputs!$B$6 -> TRUE | D9: =IF(AND(A9,AH9+AF9+AD9+AB9+Z9+X9+V9+T9+R9+P9+N9+L9+J9+H9+F9=0),Table!D9,0) -> 0 | E9: =Table!E9<=Inputs!$B$6 -> TRUE | F9: =IF(AND($A9,C9,NOT(E9)),Table!F9,0) -> 0 | G9: =Table!G9<=Inputs!$B$6 -> TRUE | H9: =IF(AND($A9,E9,NOT(G9)),Table!H9,0) -> 0 | I9: =Table!I9<=Inputs!$B$6 -> FALSE | J9: =IF(AND($A9,G9,NOT(I9)),Table!J9,0) -> 0 | K9: =Table!K9<=Inputs!$B$6 -> FALSE | L9: =IF(AND($A9,I9,NOT(K9)),Table!L9,0) -> 0 | M9: =Table!M9<=Inputs!$B$6 -> FALSE | N9: =IF(AND($A9,K9,NOT(M9)),Table!N9,0) -> 0 | O9: =Table!O9<=Inputs!$B$6 -> FALSE | P9: =IF(AND($A9,M9,NOT(O9)),Table!P9,0) -> 0 | Q9: =Table!Q9<=Inputs!$B$6 -> FALSE | R9: =IF(AND($A9,O9,NOT(Q9)),Table!R9,0) -> 0 | S9: =Table!S9<=Inputs!$B$6 -> FALSE | T9: =IF(AND($A9,Q9,NOT(S9)),Table!T9,0) -> 0 | U9: =Table!U9<=Inputs!$B$6 -> FALSE | V9: =IF(AND($A9,S9,NOT(U9)),Table!V9,0) -> 0 | W9: =Table!W9<=Inputs!$B$6 -> FALSE | X9: =IF(AND($A9,U9,NOT(W9)),Table!X9,0) -> 0 | Y9: =Table!Y9<=Inputs!$B$6 -> FALSE | Z9: =IF(AND($A9,W9,NOT(Y9)),Table!Z9,0) -> 0 | AA9: =Table!AA9<=Inputs!$B$6 -> FALSE | AB9: =IF(AND($A9,Y9,NOT(AA9)),Table!AB9,0) -> 0 | AC9: =Table!AC9<=Inputs!$B$6 -> FALSE | AD9: =IF(AND($A9,AA9,NOT(AC9)),Table!AD9,0) -> 0 | AE9: =Table!AE9<=Inputs!$B$6 -> FALSE | AF9: =IF(AND($A9,AC9,NOT(AE9)),Table!AF9,0) -> 0 | AG9: =Table!AG9<=Inputs!$B$6 -> FALSE | AH9: =IF(AND($A9,AE9,NOT(AG9)),Table!AH9,0) -> 0
A10: FALSE | B10: =Table!B10<=Inputs!B$2 -> TRUE | C10: =Table!C10<=Inputs!$B$6 -> TRUE | D10: =IF(AND(A10,AH10+AF10+AD10+AB10+Z10+X10+V10+T10+R10+P10+N10+L10+J10+H10+F10=0),Table!D10,0) -> 0 | E10: =Table!E10<=Inputs!$B$6 -> TRUE | F10: =IF(AND($A10,C10,NOT(E10)),Table!F10,0) -> 0 | G10: =Table!G10<=Inputs!$B$6 -> TRUE | H10: =IF(AND($A10,E10,NOT(G10)),Table!H10,0) -> 0 | I10: =Table!I10<=Inputs!$B$6 -> FALSE | J10: =IF(AND($A10,G10,NOT(I10)),Table!J10,0) -> 0 | K10: =Table!K10<=Inputs!$B$6 -> FALSE | L10: =IF(AND($A10,I10,NOT(K10)),Table!L10,0) -> 0 | M10: =Table!M10<=Inputs!$B$6 -> FALSE | N10: =IF(AND($A10,K10,NOT(M10)),Table!N10,0) -> 0 | O10: =Table!O10<=Inputs!$B$6 -> FALSE | P10: =IF(AND($A10,M10,NOT(O10)),Table!P10,0) -> 0 | Q10: =Table!Q10<=Inputs!$B$6 -> FALSE | R10: =IF(AND($A10,O10,NOT(Q10)),Table!R10,0) -> 0 | S10: =Table!S10<=Inputs!$B$6 -> FALSE | T10: =IF(AND($A10,Q10,NOT(S10)),Table!T10,0) -> 0 | U10: =Table!U10<=Inputs!$B$6 -> FALSE | V10: =IF(AND($A10,S10,NOT(U10)),Table!V10,0) -> 0 | W10: =Table!W10<=Inputs!$B$6 -> FALSE | X10: =IF(AND($A10,U10,NOT(W10)),Table!X10,0) -> 0 | Y10: =Table!Y10<=Inputs!$B$6 -> FALSE | Z10: =IF(AND($A10,W10,NOT(Y10)),Table!Z10,0) -> 0 | AA10: =Table!AA10<=Inputs!$B$6 -> FALSE | AB10: =IF(AND($A10,Y10,NOT(AA10)),Table!AB10,0) -> 0 | AC10: =Table!AC10<=Inputs!$B$6 -> FALSE | AD10: =IF(AND($A10,AA10,NOT(AC10)),Table!AD10,0) -> 0 | AE10: =Table!AE10<=Inputs!$B$6 -> FALSE | AF10: =IF(AND($A10,AC10,NOT(AE10)),Table!AF10,0) -> 0 | AG10: =Table!AG10<=Inputs!$B$6 -> FALSE | AH10: =IF(AND($A10,AE10,NOT(AG10)),Table!AH10,0) -> 0
A11: FALSE | B11: =Table!B11<=Inputs!B$2 -> TRUE | C11: =Table!C11<=Inputs!$B$6 -> TRUE | D11: =IF(AND(A11,AH11+AF11+AD11+AB11+Z11+X11+V11+T11+R11+P11+N11+L11+J11+H11+F11=0),Table!D11,0) -> 0 | E11: =Table!E11<=Inputs!$B$6 -> TRUE | F11: =IF(AND($A11,C11,NOT(E11)),Table!F11,0) -> 0 | G11: =Table!G11<=Inputs!$B$6 -> TRUE | H11: =IF(AND($A11,E11,NOT(G11)),Table!H11,0) -> 0 | I11: =Table!I11<=Inputs!$B$6 -> FALSE | J11: =IF(AND($A11,G11,NOT(I11)),Table!J11,0) -> 0 | K11: =Table!K11<=Inputs!$B$6 -> FALSE | L11: =IF(AND($A11,I11,NOT(K11)),Table!L11,0) -> 0 | M11: =Table!M11<=Inputs!$B$6 -> FALSE | N11: =IF(AND($A11,K11,NOT(M11)),Table!N11,0) -> 0 | O11: =Table!O11<=Inputs!$B$6 -> FALSE | P11: =IF(AND($A11,M11,NOT(O11)),Table!P11,0) -> 0 | Q11: =Table!Q11<=Inputs!$B$6 -> FALSE | R11: =IF(AND($A11,O11,NOT(Q11)),Table!R11,0) -> 0 | S11: =Table!S11<=Inputs!$B$6 -> FALSE | T11: =IF(AND($A11,Q11,NOT(S11)),Table!T11,0) -> 0 | U11: =Table!U11<=Inputs!$B$6 -> FALSE | V11: =IF(AND($A11,S11,NOT(U11)),Table!V11,0) -> 0 | W11: =Table!W11<=Inputs!$B$6 -> FALSE | X11: =IF(AND($A11,U11,NOT(W11)),Table!X11,0) -> 0 | Y11: =Table!Y11<=Inputs!$B$6 -> FALSE | Z11: =IF(AND($A11,W11,NOT(Y11)),Table!Z11,0) -> 0 | AA11: =Table!AA11<=Inputs!$B$6 -> FALSE | AB11: =IF(AND($A11,Y11,NOT(AA11)),Table!AB11,0) -> 0 | AC11: =Table!AC11<=Inputs!$B$6 -> FALSE | AD11: =IF(AND($A11,AA11,NOT(AC11)),Table!AD11,0) -> 0 | AE11: =Table!AE11<=Inputs!$B$6 -> FALSE | AF11: =IF(AND($A11,AC11,NOT(AE11)),Table!AF11,0) -> 0 | AG11: =Table!AG11<=Inputs!$B$6 -> FALSE | AH11: =IF(AND($A11,AE11,NOT(AG11)),Table!AH11,0) -> 0
A12: FALSE | B12: =Table!B12<=Inputs!B$2 -> TRUE | C12: =Table!C12<=Inputs!$B$6 -> TRUE | D12: =IF(AND(A12,AH12+AF12+AD12+AB12+Z12+X12+V12+T12+R12+P12+N12+L12+J12+H12+F12=0),Table!D12,0) -> 0 | E12: =Table!E12<=Inputs!$B$6 -> TRUE | F12: =IF(AND($A12,C12,NOT(E12)),Table!F12,0) -> 0 | G12: =Table!G12<=Inputs!$B$6 -> TRUE | H12: =IF(AND($A12,E12,NOT(G12)),Table!H12,0) -> 0 | I12: =Table!I12<=Inputs!$B$6 -> FALSE | J12: =IF(AND($A12,G12,NOT(I12)),Table!J12,0) -> 0 | K12: =Table!K12<=Inputs!$B$6 -> FALSE | L12: =IF(AND($A12,I12,NOT(K12)),Table!L12,0) -> 0 | M12: =Table!M12<=Inputs!$B$6 -> FALSE | N12: =IF(AND($A12,K12,NOT(M12)),Table!N12,0) -> 0 | O12: =Table!O12<=Inputs!$B$6 -> FALSE | P12: =IF(AND($A12,M12,NOT(O12)),Table!P12,0) -> 0 | Q12: =Table!Q12<=Inputs!$B$6 -> FALSE | R12: =IF(AND($A12,O12,NOT(Q12)),Table!R12,0) -> 0 | S12: =Table!S12<=Inputs!$B$6 -> FALSE | T12: =IF(AND($A12,Q12,NOT(S12)),Table!T12,0) -> 0 | U12: =Table!U12<=Inputs!$B$6 -> FALSE | V12: =IF(AND($A12,S12,NOT(U12)),Table!V12,0) -> 0 | W12: =Table!W12<=Inputs!$B$6 -> FALSE | X12: =IF(AND($A12,U12,NOT(W12)),Table!X12,0) -> 0 | Y12: =Table!Y12<=Inputs!$B$6 -> FALSE | Z12: =IF(AND($A12,W12,NOT(Y12)),Table!Z12,0) -> 0 | AA12: =Table!AA12<=Inputs!$B$6 -> FALSE | AB12: =IF(AND($A12,Y12,NOT(AA12)),Table!AB12,0) -> 0 | AC12: =Table!AC12<=Inputs!$B$6 -> FALSE | AD12: =IF(AND($A12,AA12,NOT(AC12)),Table!AD12,0) -> 0 | AE12: =Table!AE12<=Inputs!$B$6 -> FALSE | AF12: =IF(AND($A12,AC12,NOT(AE12)),Table!AF12,0) -> 0 | AG12: =Table!AG12<=Inputs!$B$6 -> FALSE | AH12: =IF(AND($A12,AE12,NOT(AG12)),Table!AH12,0) -> 0
A13: FALSE | B13: =Table!B13<=Inputs!B$2 -> TRUE | C13: =Table!C13<=Inputs!$B$6 -> TRUE | D13: =IF(AND(A13,AH13+AF13+AD13+AB13+Z13+X13+V13+T13+R13+P13+N13+L13+J13+H13+F13=0),Table!D13,0) -> 0 | E13: =Table!E13<=Inputs!$B$6 -> TRUE | F13: =IF(AND($A13,C13,NOT(E13)),Table!F13,0) -> 0 | G13: =Table!G13<=Inputs!$B$6 -> TRUE | H13: =IF(AND($A13,E13,NOT(G13)),Table!H13,0) -> 0 | I13: =Table!I13<=Inputs!$B$6 -> TRUE | J13: =IF(AND($A13,G13,NOT(I13)),Table!J13,0) -> 0 | K13: =Table!K13<=Inputs!$B$6 -> FALSE | L13: =IF(AND($A13,I13,NOT(K13)),Table!L13,0) -> 0 | M13: =Table!M13<=Inputs!$B$6 -> FALSE | N13: =IF(AND($A13,K13,NOT(M13)),Table!N13,0) -> 0 | O13: =Table!O13<=Inputs!$B$6 -> FALSE | P13: =IF(AND($A13,M13,NOT(O13)),Table!P13,0) -> 0 | Q13: =Table!Q13<=Inputs!$B$6 -> FALSE | R13: =IF(AND($A13,O13,NOT(Q13)),Table!R13,0) -> 0 | S13: =Table!S13<=Inputs!$B$6 -> FALSE | T13: =IF(AND($A13,Q13,NOT(S13)),Table!T13,0) -> 0 | U13: =Table!U13<=Inputs!$B$6 -> FALSE | V13: =IF(AND($A13,S13,NOT(U13)),Table!V13,0) -> 0 | W13: =Table!W13<=Inputs!$B$6 -> FALSE | X13: =IF(AND($A13,U13,NOT(W13)),Table!X13,0) -> 0 | Y13: =Table!Y13<=Inputs!$B$6 -> FALSE | Z13: =IF(AND($A13,W13,NOT(Y13)),Table!Z13,0) -> 0 | AA13: =Table!AA13<=Inputs!$B$6 -> FALSE | AB13: =IF(AND($A13,Y13,NOT(AA13)),Table!AB13,0) -> 0 | AC13: =Table!AC13<=Inputs!$B$6 -> FALSE | AD13: =IF(AND($A13,AA13,NOT(AC13)),Table!AD13,0) -> 0 | AE13: =Table!AE13<=Inputs!$B$6 -> FALSE | AF13: =IF(AND($A13,AC13,NOT(AE13)),Table!AF13,0) -> 0 | AG13: =Table!AG13<=Inputs!$B$6 -> FALSE | AH13: =IF(AND($A13,AE13,NOT(AG13)),Table!AH13,0) -> 0
A14: FALSE | B14: =Table!B14<=Inputs!B$2 -> TRUE | C14: =Table!C14<=Inputs!$B$6 -> TRUE | D14: =IF(AND(A14,AH14+AF14+AD14+AB14+Z14+X14+V14+T14+R14+P14+N14+L14+J14+H14+F14=0),Table!D14,0) -> 0 | E14: =Table!E14<=Inputs!$B$6 -> TRUE | F14: =IF(AND($A14,C14,NOT(E14)),Table!F14,0) -> 0 | G14: =Table!G14<=Inputs!$B$6 -> TRUE | H14: =IF(AND($A14,E14,NOT(G14)),Table!H14,0) -> 0 | I14: =Table!I14<=Inputs!$B$6 -> TRUE | J14: =IF(AND($A14,G14,NOT(I14)),Table!J14,0) -> 0 | K14: =Table!K14<=Inputs!$B$6 -> FALSE | L14: =IF(AND($A14,I14,NOT(K14)),Table!L14,0) -> 0 | M14: =Table!M14<=Inputs!$B$6 -> FALSE | N14: =IF(AND($A14,K14,NOT(M14)),Table!N14,0) -> 0 | O14: =Table!O14<=Inputs!$B$6 -> FALSE | P14: =IF(AND($A14,M14,NOT(O14)),Table!P14,0) -> 0 | Q14: =Table!Q14<=Inputs!$B$6 -> FALSE | R14: =IF(AND($A14,O14,NOT(Q14)),Table!R14,0) -> 0 | S14: =Table!S14<=Inputs!$B$6 -> FALSE | T14: =IF(AND($A14,Q14,NOT(S14)),Table!T14,0) -> 0 | U14: =Table!U14<=Inputs!$B$6 -> FALSE | V14: =IF(AND($A14,S14,NOT(U14)),Table!V14,0) -> 0 | W14: =Table!W14<=Inputs!$B$6 -> FALSE | X14: =IF(AND($A14,U14,NOT(W14)),Table!X14,0) -> 0 | Y14: =Table!Y14<=Inputs!$B$6 -> FALSE | Z14: =IF(AND($A14,W14,NOT(Y14)),Table!Z14,0) -> 0 | AA14: =Table!AA14<=Inputs!$B$6 -> FALSE | AB14: =IF(AND($A14,Y14,NOT(AA14)),Table!AB14,0) -> 0 | AC14: =Table!AC14<=Inputs!$B$6 -> FALSE | AD14: =IF(AND($A14,AA14,NOT(AC14)),Table!AD14,0) -> 0 | AE14: =Table!AE14<=Inputs!$B$6 -> FALSE | AF14: =IF(AND($A14,AC14,NOT(AE14)),Table!AF14,0) -> 0 | AG14: =Table!AG14<=Inputs!$B$6 -> FALSE | AH14: =IF(AND($A14,AE14,NOT(AG14)),Table!AH14,0) -> 0
A15: FALSE | B15: =Table!B15<=Inputs!B$2 -> TRUE | C15: =Table!C15<=Inputs!$B$6 -> TRUE | D15: =IF(AND(A15,AH15+AF15+AD15+AB15+Z15+X15+V15+T15+R15+P15+N15+L15+J15+H15+F15=0),Table!D15,0) -> 0 | E15: =Table!E15<=Inputs!$B$6 -> TRUE | F15: =IF(AND($A15,C15,NOT(E15)),Table!F15,0) -> 0 | G15: =Table!G15<=Inputs!$B$6 -> TRUE | H15: =IF(AND($A15,E15,NOT(G15)),Table!H15,0) -> 0 | I15: =Table!I15<=Inputs!$B$6 -> TRUE | J15: =IF(AND($A15,G15,NOT(I15)),Table!J15,0) -> 0 | K15: =Table!K15<=Inputs!$B$6 -> FALSE | L15: =IF(AND($A15,I15,NOT(K15)),Table!L15,0) -> 0 | M15: =Table!M15<=Inputs!$B$6 -> FALSE | N15: =IF(AND($A15,K15,NOT(M15)),Table!N15,0) -> 0 | O15: =Table!O15<=Inputs!$B$6 -> FALSE | P15: =IF(AND($A15,M15,NOT(O15)),Table!P15,0) -> 0 | Q15: =Table!Q15<=Inputs!$B$6 -> FALSE | R15: =IF(AND($A15,O15,NOT(Q15)),Table!R15,0) -> 0 | S15: =Table!S15<=Inputs!$B$6 -> FALSE | T15: =IF(AND($A15,Q15,NOT(S15)),Table!T15,0) -> 0 | U15: =Table!U15<=Inputs!$B$6 -> FALSE | V15: =IF(AND($A15,S15,NOT(U15)),Table!V15,0) -> 0 | W15: =Table!W15<=Inputs!$B$6 -> FALSE | X15: =IF(AND($A15,U15,NOT(W15)),Table!X15,0) -> 0 | Y15: =Table!Y15<=Inputs!$B$6 -> FALSE | Z15: =IF(AND($A15,W15,NOT(Y15)),Table!Z15,0) -> 0 | AA15: =Table!AA15<=Inputs!$B$6 -> FALSE | AB15: =IF(AND($A15,Y15,NOT(AA15)),Table!AB15,0) -> 0 | AC15: =Table!AC15<=Inputs!$B$6 -> FALSE | AD15: =IF(AND($A15,AA15,NOT(AC15)),Table!AD15,0) -> 0 | AE15: =Table!AE15<=Inputs!$B$6 -> FALSE | AF15: =IF(AND($A15,AC15,NOT(AE15)),Table!AF15,0) -> 0 | AG15: =Table!AG15<=Inputs!$B$6 -> FALSE | AH15: =IF(AND($A15,AE15,NOT(AG15)),Table!AH15,0) -> 0
A16: FALSE | B16: =Table!B16<=Inputs!B$2 -> TRUE | C16: =Table!C16<=Inputs!$B$6 -> TRUE | D16: =IF(AND(A16,AH16+AF16+AD16+AB16+Z16+X16+V16+T16+R16+P16+N16+L16+J16+H16+F16=0),Table!D16,0) -> 0 | E16: =Table!E16<=Inputs!$B$6 -> TRUE | F16: =IF(AND($A16,C16,NOT(E16)),Table!F16,0) -> 0 | G16: =Table!G16<=Inputs!$B$6 -> TRUE | H16: =IF(AND($A16,E16,NOT(G16)),Table!H16,0) -> 0 | I16: =Table!I16<=Inputs!$B$6 -> TRUE | J16: =IF(AND($A16,G16,NOT(I16)),Table!J16,0) -> 0 | K16: =Table!K16<=Inputs!$B$6 -> FALSE | L16: =IF(AND($A16,I16,NOT(K16)),Table!L16,0) -> 0 | M16: =Table!M16<=Inputs!$B$6 -> FALSE | N16: =IF(AND($A16,K16,NOT(M16)),Table!N16,0) -> 0 | O16: =Table!O16<=Inputs!$B$6 -> FALSE | P16: =IF(AND($A16,M16,NOT(O16)),Table!P16,0) -> 0 | Q16: =Table!Q16<=Inputs!$B$6 -> FALSE | R16: =IF(AND($A16,O16,NOT(Q16)),Table!R16,0) -> 0 | S16: =Table!S16<=Inputs!$B$6 -> FALSE | T16: =IF(AND($A16,Q16,NOT(S16)),Table!T16,0) -> 0 | U16: =Table!U16<=Inputs!$B$6 -> FALSE | V16: =IF(AND($A16,S16,NOT(U16)),Table!V16,0) -> 0 | W16: =Table!W16<=Inputs!$B$6 -> FALSE | X16: =IF(AND($A16,U16,NOT(W16)),Table!X16,0) -> 0 | Y16: =Table!Y16<=Inputs!$B$6 -> FALSE | Z16: =IF(AND($A16,W16,NOT(Y16)),Table!Z16,0) -> 0 | AA16: =Table!AA16<=Inputs!$B$6 -> FALSE | AB16: =IF(AND($A16,Y16,NOT(AA16)),Table!AB16,0) -> 0 | AC16: =Table!AC16<=Inputs!$B$6 -> FALSE | AD16: =IF(AND($A16,AA16,NOT(AC16)),Table!AD16,0) -> 0 | AE16: =Table!AE16<=Inputs!$B$6 -> FALSE | AF16: =IF(AND($A16,AC16,NOT(AE16)),Table!AF16,0) -> 0 | AG16: =Table!AG16<=Inputs!$B$6 -> FALSE | AH16: =IF(AND($A16,AE16,NOT(AG16)),Table!AH16,0) -> 0
A17: FALSE | B17: =Table!B17<=Inputs!B$2 -> TRUE | C17: =Table!C17<=Inputs!$B$6 -> TRUE | D17: =IF(AND(A17,AH17+AF17+AD17+AB17+Z17+X17+V17+T17+R17+P17+N17+L17+J17+H17+F17=0),Table!D17,0) -> 0 | E17: =Table!E17<=Inputs!$B$6 -> TRUE | F17: =IF(AND($A17,C17,NOT(E17)),Table!F17,0) -> 0 | G17: =Table!G17<=Inputs!$B$6 -> TRUE | H17: =IF(AND($A17,E17,NOT(G17)),Table!H17,0) -> 0 | I17: =Table!I17<=Inputs!$B$6 -> TRUE | J17: =IF(AND($A17,G17,NOT(I17)),Table!J17,0) -> 0 | K17: =Table!K17<=Inputs!$B$6 -> FALSE | L17: =IF(AND($A17,I17,NOT(K17)),Table!L17,0) -> 0 | M17: =Table!M17<=Inputs!$B$6 -> FALSE | N17: =IF(AND($A17,K17,NOT(M17)),Table!N17,0) -> 0 | O17: =Table!O17<=Inputs!$B$6 -> FALSE | P17: =IF(AND($A17,M17,NOT(O17)),Table!P17,0) -> 0 | Q17: =Table!Q17<=Inputs!$B$6 -> FALSE | R17: =IF(AND($A17,O17,NOT(Q17)),Table!R17,0) -> 0 | S17: =Table!S17<=Inputs!$B$6 -> FALSE | T17: =IF(AND($A17,Q17,NOT(S17)),Table!T17,0) -> 0 | U17: =Table!U17<=Inputs!$B$6 -> FALSE | V17: =IF(AND($A17,S17,NOT(U17)),Table!V17,0) -> 0 | W17: =Table!W17<=Inputs!$B$6 -> FALSE | X17: =IF(AND($A17,U17,NOT(W17)),Table!X17,0) -> 0 | Y17: =Table!Y17<=Inputs!$B$6 -> FALSE | Z17: =IF(AND($A17,W17,NOT(Y17)),Table!Z17,0) -> 0 | AA17: =Table!AA17<=Inputs!$B$6 -> FALSE | AB17: =IF(AND($A17,Y17,NOT(AA17)),Table!AB17,0) -> 0 | AC17: =Table!AC17<=Inputs!$B$6 -> FALSE | AD17: =IF(AND($A17,AA17,NOT(AC17)),Table!AD17,0) -> 0 | AE17: =Table!AE17<=Inputs!$B$6 -> FALSE | AF17: =IF(AND($A17,AC17,NOT(AE17)),Table!AF17,0) -> 0 | AG17: =Table!AG17<=Inputs!$B$6 -> FALSE | AH17: =IF(AND($A17,AE17,NOT(AG17)),Table!AH17,0) -> 0
A18: FALSE | B18: =Table!B18<=Inputs!B$2 -> TRUE | C18: =Table!C18<=Inputs!$B$6 -> TRUE | D18: =IF(AND(A18,AH18+AF18+AD18+AB18+Z18+X18+V18+T18+R18+P18+N18+L18+J18+H18+F18=0),Table!D18,0) -> 0 | E18: =Table!E18<=Inputs!$B$6 -> TRUE | F18: =IF(AND($A18,C18,NOT(E18)),Table!F18,0) -> 0 | G18: =Table!G18<=Inputs!$B$6 -> TRUE | H18: =IF(AND($A18,E18,NOT(G18)),Table!H18,0) -> 0 | I18: =Table!I18<=Inputs!$B$6 -> TRUE | J18: =IF(AND($A18,G18,NOT(I18)),Table!J18,0) -> 0 | K18: =Table!K18<=Inputs!$B$6 -> TRUE | L18: =IF(AND($A18,I18,NOT(K18)),Table!L18,0) -> 0 | M18: =Table!M18<=Inputs!$B$6 -> FALSE | N18: =IF(AND($A18,K18,NOT(M18)),Table!N18,0) -> 0 | O18: =Table!O18<=Inputs!$B$6 -> FALSE | P18: =IF(AND($A18,M18,NOT(O18)),Table!P18,0) -> 0 | Q18: =Table!Q18<=Inputs!$B$6 -> FALSE | R18: =IF(AND($A18,O18,NOT(Q18)),Table!R18,0) -> 0 | S18: =Table!S18<=Inputs!$B$6 -> FALSE | T18: =IF(AND($A18,Q18,NOT(S18)),Table!T18,0) -> 0 | U18: =Table!U18<=Inputs!$B$6 -> FALSE | V18: =IF(AND($A18,S18,NOT(U18)),Table!V18,0) -> 0 | W18: =Table!W18<=Inputs!$B$6 -> FALSE | X18: =IF(AND($A18,U18,NOT(W18)),Table!X18,0) -> 0 | Y18: =Table!Y18<=Inputs!$B$6 -> FALSE | Z18: =IF(AND($A18,W18,NOT(Y18)),Table!Z18,0) -> 0 | AA18: =Table!AA18<=Inputs!$B$6 -> FALSE | AB18: =IF(AND($A18,Y18,NOT(AA18)),Table!AB18,0) -> 0 | AC18: =Table!AC18<=Inputs!$B$6 -> FALSE | AD18: =IF(AND($A18,AA18,NOT(AC18)),Table!AD18,0) -> 0 | AE18: =Table!AE18<=Inputs!$B$6 -> FALSE | AF18: =IF(AND($A18,AC18,NOT(AE18)),Table!AF18,0) -> 0 | AG18: =Table!AG18<=Inputs!$B$6 -> FALSE | AH18: =IF(AND($A18,AE18,NOT(AG18)),Table!AH18,0) -> 0
A19: FALSE | B19: =Table!B19<=Inputs!B$2 -> TRUE | C19: =Table!C19<=Inputs!$B$6 -> TRUE | D19: =IF(AND(A19,AH19+AF19+AD19+AB19+Z19+X19+V19+T19+R19+P19+N19+L19+J19+H19+F19=0),Table!D19,0) -> 0 | E19: =Table!E19<=Inputs!$B$6 -> TRUE | F19: =IF(AND($A19,C19,NOT(E19)),Table!F19,0) -> 0 | G19: =Table!G19<=Inputs!$B$6 -> TRUE | H19: =IF(AND($A19,E19,NOT(G19)),Table!H19,0) -> 0 | I19: =Table!I19<=Inputs!$B$6 -> TRUE | J19: =IF(AND($A19,G19,NOT(I19)),Table!J19,0) -> 0 | K19: =Table!K19<=Inputs!$B$6 -> TRUE | L19: =IF(AND($A19,I19,NOT(K19)),Table!L19,0) -> 0 | M19: =Table!M19<=Inputs!$B$6 -> FALSE | N19: =IF(AND($A19,K19,NOT(M19)),Table!N19,0) -> 0 | O19: =Table!O19<=Inputs!$B$6 -> FALSE | P19: =IF(AND($A19,M19,NOT(O19)),Table!P19,0) -> 0 | Q19: =Table!Q19<=Inputs!$B$6 -> FALSE | R19: =IF(AND($A19,O19,NOT(Q19)),Table!R19,0) -> 0 | S19: =Table!S19<=Inputs!$B$6 -> FALSE | T19: =IF(AND($A19,Q19,NOT(S19)),Table!T19,0) -> 0 | U19: =Table!U19<=Inputs!$B$6 -> FALSE | V19: =IF(AND($A19,S19,NOT(U19)),Table!V19,0) -> 0 | W19: =Table!W19<=Inputs!$B$6 -> FALSE | X19: =IF(AND($A19,U19,NOT(W19)),Table!X19,0) -> 0 | Y19: =Table!Y19<=Inputs!$B$6 -> FALSE | Z19: =IF(AND($A19,W19,NOT(Y19)),Table!Z19,0) -> 0 | AA19: =Table!AA19<=Inputs!$B$6 -> FALSE | AB19: =IF(AND($A19,Y19,NOT(AA19)),Table!AB19,0) -> 0 | AC19: =Table!AC19<=Inputs!$B$6 -> FALSE | AD19: =IF(AND($A19,AA19,NOT(AC19)),Table!AD19,0) -> 0 | AE19: =Table!AE19<=Inputs!$B$6 -> FALSE | AF19: =IF(AND($A19,AC19,NOT(AE19)),Table!AF19,0) -> 0 | AG19: =Table!AG19<=Inputs!$B$6 -> FALSE | AH19: =IF(AND($A19,AE19,NOT(AG19)),Table!AH19,0) -> 0
A20: FALSE | B20: =Table!B20<=Inputs!B$2 -> TRUE | C20: =Table!C20<=Inputs!$B$6 -> TRUE | D20: =IF(AND(A20,AH20+AF20+AD20+AB20+Z20+X20+V20+T20+R20+P20+N20+L20+J20+H20+F20=0),Table!D20,0) -> 0 | E20: =Table!E20<=Inputs!$B$6 -> TRUE | F20: =IF(AND($A20,C20,NOT(E20)),Table!F20,0) -> 0 | G20: =Table!G20<=Inputs!$B$6 -> TRUE | H20: =IF(AND($A20,E20,NOT(G20)),Table!H20,0) -> 0 | I20: =Table!I20<=Inputs!$B$6 -> TRUE | J20: =IF(AND($A20,G20,NOT(I20)),Table!J20,0) -> 0 | K20: =Table!K20<=Inputs!$B$6 -> TRUE | L20: =IF(AND($A20,I20,NOT(K20)),Table!L20,0) -> 0 | M20: =Table!M20<=Inputs!$B$6 -> FALSE | N20: =IF(AND($A20,K20,NOT(M20)),Table!N20,0) -> 0 | O20: =Table!O20<=Inputs!$B$6 -> FALSE | P20: =IF(AND($A20,M20,NOT(O20)),Table!P20,0) -> 0 | Q20: =Table!Q20<=Inputs!$B$6 -> FALSE | R20: =IF(AND($A20,O20,NOT(Q20)),Table!R20,0) -> 0 | S20: =Table!S20<=Inputs!$B$6 -> FALSE | T20: =IF(AND($A20,Q20,NOT(S20)),Table!T20,0) -> 0 | U20: =Table!U20<=Inputs!$B$6 -> FALSE | V20: =IF(AND($A20,S20,NOT(U20)),Table!V20,0) -> 0 | W20: =Table!W20<=Inputs!$B$6 -> FALSE | X20: =IF(AND($A20,U20,NOT(W20)),Table!X20,0) -> 0 | Y20: =Table!Y20<=Inputs!$B$6 -> FALSE | Z20: =IF(AND($A20,W20,NOT(Y20)),Table!Z20,0) -> 0 | AA20: =Table!AA20<=Inputs!$B$6 -> FALSE | AB20: =IF(AND($A20,Y20,NOT(AA20)),Table!AB20,0) -> 0 | AC20: =Table!AC20<=Inputs!$B$6 -> FALSE | AD20: =IF(AND($A20,AA20,NOT(AC20)),Table!AD20,0) -> 0 | AE20: =Table!AE20<=Inputs!$B$6 -> FALSE | AF20: =IF(AND($A20,AC20,NOT(AE20)),Table!AF20,0) -> 0 | AG20: =Table!AG20<=Inputs!$B$6 -> FALSE | AH20: =IF(AND($A20,AE20,NOT(AG20)),Table!AH20,0) -> 0
A21: FALSE | B21: =Table!B21<=Inputs!B$2 -> TRUE | C21: =Table!C21<=Inputs!$B$6 -> TRUE | D21: =IF(AND(A21,AH21+AF21+AD21+AB21+Z21+X21+V21+T21+R21+P21+N21+L21+J21+H21+F21=0),Table!D21,0) -> 0 | E21: =Table!E21<=Inputs!$B$6 -> TRUE | F21: =IF(AND($A21,C21,NOT(E21)),Table!F21,0) -> 0 | G21: =Table!G21<=Inputs!$B$6 -> TRUE | H21: =IF(AND($A21,E21,NOT(G21)),Table!H21,0) -> 0 | I21: =Table!I21<=Inputs!$B$6 -> TRUE | J21: =IF(AND($A21,G21,NOT(I21)),Table!J21,0) -> 0 | K21: =Table!K21<=Inputs!$B$6 -> TRUE | L21: =IF(AND($A21,I21,NOT(K21)),Table!L21,0) -> 0 | M21: =Table!M21<=Inputs!$B$6 -> FALSE | N21: =IF(AND($A21,K21,NOT(M21)),Table!N21,0) -> 0 | O21: =Table!O21<=Inputs!$B$6 -> FALSE | P21: =IF(AND($A21,M21,NOT(O21)),Table!P21,0) -> 0 | Q21: =Table!Q21<=Inputs!$B$6 -> FALSE | R21: =IF(AND($A21,O21,NOT(Q21)),Table!R21,0) -> 0 | S21: =Table!S21<=Inputs!$B$6 -> FALSE | T21: =IF(AND($A21,Q21,NOT(S21)),Table!T21,0) -> 0 | U21: =Table!U21<=Inputs!$B$6 -> FALSE | V21: =IF(AND($A21,S21,NOT(U21)),Table!V21,0) -> 0 | W21: =Table!W21<=Inputs!$B$6 -> FALSE | X21: =IF(AND($A21,U21,NOT(W21)),Table!X21,0) -> 0 | Y21: =Table!Y21<=Inputs!$B$6 -> FALSE | Z21: =IF(AND($A21,W21,NOT(Y21)),Table!Z21,0) -> 0 | AA21: =Table!AA21<=Inputs!$B$6 -> FALSE | AB21: =IF(AND($A21,Y21,NOT(AA21)),Table!AB21,0) -> 0 | AC21: =Table!AC21<=Inputs!$B$6 -> FALSE | AD21: =IF(AND($A21,AA21,NOT(AC21)),Table!AD21,0) -> 0 | AE21: =Table!AE21<=Inputs!$B$6 -> FALSE | AF21: =IF(AND($A21,AC21,NOT(AE21)),Table!AF21,0) -> 0 | AG21: =Table!AG21<=Inputs!$B$6 -> FALSE | AH21: =IF(AND($A21,AE21,NOT(AG21)),Table!AH21,0) -> 0
A22: FALSE | B22: =Table!B22<=Inputs!B$2 -> TRUE | C22: =Table!C22<=Inputs!$B$6 -> TRUE | D22: =IF(AND(A22,AH22+AF22+AD22+AB22+Z22+X22+V22+T22+R22+P22+N22+L22+J22+H22+F22=0),Table!D22,0) -> 0 | E22: =Table!E22<=Inputs!$B$6 -> TRUE | F22: =IF(AND($A22,C22,NOT(E22)),Table!F22,0) -> 0 | G22: =Table!G22<=Inputs!$B$6 -> TRUE | H22: =IF(AND($A22,E22,NOT(G22)),Table!H22,0) -> 0 | I22: =Table!I22<=Inputs!$B$6 -> TRUE | J22: =IF(AND($A22,G22,NOT(I22)),Table!J22,0) -> 0 | K22: =Table!K22<=Inputs!$B$6 -> TRUE | L22: =IF(AND($A22,I22,NOT(K22)),Table!L22,0) -> 0 | M22: =Table!M22<=Inputs!$B$6 -> TRUE | N22: =IF(AND($A22,K22,NOT(M22)),Table!N22,0) -> 0 | O22: =Table!O22<=Inputs!$B$6 -> FALSE | P22: =IF(AND($A22,M22,NOT(O22)),Table!P22,0) -> 0 | Q22: =Table!Q22<=Inputs!$B$6 -> FALSE | R22: =IF(AND($A22,O22,NOT(Q22)),Table!R22,0) -> 0 | S22: =Table!S22<=Inputs!$B$6 -> FALSE | T22: =IF(AND($A22,Q22,NOT(S22)),Table!T22,0) -> 0 | U22: =Table!U22<=Inputs!$B$6 -> FALSE | V22: =IF(AND($A22,S22,NOT(U22)),Table!V22,0) -> 0 | W22: =Table!W22<=Inputs!$B$6 -> FALSE | X22: =IF(AND($A22,U22,NOT(W22)),Table!X22,0) -> 0 | Y22: =Table!Y22<=Inputs!$B$6 -> FALSE | Z22: =IF(AND($A22,W22,NOT(Y22)),Table!Z22,0) -> 0 | AA22: =Table!AA22<=Inputs!$B$6 -> FALSE | AB22: =IF(AND($A22,Y22,NOT(AA22)),Table!AB22,0) -> 0 | AC22: =Table!AC22<=Inputs!$B$6 -> FALSE | AD22: =IF(AND($A22,AA22,NOT(AC22)),Table!AD22,0) -> 0 | AE22: =Table!AE22<=Inputs!$B$6 -> FALSE | AF22: =IF(AND($A22,AC22,NOT(AE22)),Table!AF22,0) -> 0 | AG22: =Table!AG22<=Inputs!$B$6 -> FALSE | AH22: =IF(AND($A22,AE22,NOT(AG22)),Table!AH22,0) -> 0
A23: FALSE | B23: =Table!B23<=Inputs!B$2 -> TRUE | C23: =Table!C23<=Inputs!$B$6 -> TRUE | D23: =IF(AND(A23,AH23+AF23+AD23+AB23+Z23+X23+V23+T23+R23+P23+N23+L23+J23+H23+F23=0),Table!D23,0) -> 0 | E23: =Table!E23<=Inputs!$B$6 -> TRUE | F23: =IF(AND($A23,C23,NOT(E23)),Table!F23,0) -> 0 | G23: =Table!G23<=Inputs!$B$6 -> TRUE | H23: =IF(AND($A23,E23,NOT(G23)),Table!H23,0) -> 0 | I23: =Table!I23<=Inputs!$B$6 -> TRUE | J23: =IF(AND($A23,G23,NOT(I23)),Table!J23,0) -> 0 | K23: =Table!K23<=Inputs!$B$6 -> TRUE | L23: =IF(AND($A23,I23,NOT(K23)),Table!L23,0) -> 0 | M23: =Table!M23<=Inputs!$B$6 -> TRUE | N23: =IF(AND($A23,K23,NOT(M23)),Table!N23,0) -> 0 | O23: =Table!O23<=Inputs!$B$6 -> FALSE | P23: =IF(AND($A23,M23,NOT(O23)),Table!P23,0) -> 0 | Q23: =Table!Q23<=Inputs!$B$6 -> FALSE | R23: =IF(AND($A23,O23,NOT(Q23)),Table!R23,0) -> 0 | S23: =Table!S23<=Inputs!$B$6 -> FALSE | T23: =IF(AND($A23,Q23,NOT(S23)),Table!T23,0) -> 0 | U23: =Table!U23<=Inputs!$B$6 -> FALSE | V23: =IF(AND($A23,S23,NOT(U23)),Table!V23,0) -> 0 | W23: =Table!W23<=Inputs!$B$6 -> FALSE | X23: =IF(AND($A23,U23,NOT(W23)),Table!X23,0) -> 0 | Y23: =Table!Y23<=Inputs!$B$6 -> FALSE | Z23: =IF(AND($A23,W23,NOT(Y23)),Table!Z23,0) -> 0 | AA23: =Table!AA23<=Inputs!$B$6 -> FALSE | AB23: =IF(AND($A23,Y23,NOT(AA23)),Table!AB23,0) -> 0 | AC23: =Table!AC23<=Inputs!$B$6 -> FALSE | AD23: =IF(AND($A23,AA23,NOT(AC23)),Table!AD23,0) -> 0 | AE23: =Table!AE23<=Inputs!$B$6 -> FALSE | AF23: =IF(AND($A23,AC23,NOT(AE23)),Table!AF23,0) -> 0 | AG23: =Table!AG23<=Inputs!$B$6 -> FALSE | AH23: =IF(AND($A23,AE23,NOT(AG23)),Table!AH23,0) -> 0
A24: FALSE | B24: =Table!B24<=Inputs!B$2 -> TRUE | C24: =Table!C24<=Inputs!$B$6 -> TRUE | D24: =IF(AND(A24,AH24+AF24+AD24+AB24+Z24+X24+V24+T24+R24+P24+N24+L24+J24+H24+F24=0),Table!D24,0) -> 0 | E24: =Table!E24<=Inputs!$B$6 -> TRUE | F24: =IF(AND($A24,C24,NOT(E24)),Table!F24,0) -> 0 | G24: =Table!G24<=Inputs!$B$6 -> TRUE | H24: =IF(AND($A24,E24,NOT(G24)),Table!H24,0) -> 0 | I24: =Table!I24<=Inputs!$B$6 -> TRUE | J24: =IF(AND($A24,G24,NOT(I24)),Table!J24,0) -> 0 | K24: =Table!K24<=Inputs!$B$6 -> TRUE | L24: =IF(AND($A24,I24,NOT(K24)),Table!L24,0) -> 0 | M24: =Table!M24<=Inputs!$B$6 -> TRUE | N24: =IF(AND($A24,K24,NOT(M24)),Table!N24,0) -> 0 | O24: =Table!O24<=Inputs!$B$6 -> FALSE | P24: =IF(AND($A24,M24,NOT(O24)),Table!P24,0) -> 0 | Q24: =Table!Q24<=Inputs!$B$6 -> FALSE | R24: =IF(AND($A24,O24,NOT(Q24)),Table!R24,0) -> 0 | S24: =Table!S24<=Inputs!$B$6 -> FALSE | T24: =IF(AND($A24,Q24,NOT(S24)),Table!T24,0) -> 0 | U24: =Table!U24<=Inputs!$B$6 -> FALSE | V24: =IF(AND($A24,S24,NOT(U24)),Table!V24,0) -> 0 | W24: =Table!W24<=Inputs!$B$6 -> FALSE | X24: =IF(AND($A24,U24,NOT(W24)),Table!X24,0) -> 0 | Y24: =Table!Y24<=Inputs!$B$6 -> FALSE | Z24: =IF(AND($A24,W24,NOT(Y24)),Table!Z24,0) -> 0 | AA24: =Table!AA24<=Inputs!$B$6 -> FALSE | AB24: =IF(AND($A24,Y24,NOT(AA24)),Table!AB24,0) -> 0 | AC24: =Table!AC24<=Inputs!$B$6 -> FALSE | AD24: =IF(AND($A24,AA24,NOT(AC24)),Table!AD24,0) -> 0 | AE24: =Table!AE24<=Inputs!$B$6 -> FALSE | AF24: =IF(AND($A24,AC24,NOT(AE24)),Table!AF24,0) -> 0 | AG24: =Table!AG24<=Inputs!$B$6 -> FALSE | AH24: =IF(AND($A24,AE24,NOT(AG24)),Table!AH24,0) -> 0
A25: FALSE | B25: =Table!B25<=Inputs!B$2 -> TRUE | C25: =Table!C25<=Inputs!$B$6 -> TRUE | D25: =IF(AND(A25,AH25+AF25+AD25+AB25+Z25+X25+V25+T25+R25+P25+N25+L25+J25+H25+F25=0),Table!D25,0) -> 0 | E25: =Table!E25<=Inputs!$B$6 -> TRUE | F25: =IF(AND($A25,C25,NOT(E25)),Table!F25,0) -> 0 | G25: =Table!G25<=Inputs!$B$6 -> TRUE | H25: =IF(AND($A25,E25,NOT(G25)),Table!H25,0) -> 0 | I25: =Table!I25<=Inputs!$B$6 -> TRUE | J25: =IF(AND($A25,G25,NOT(I25)),Table!J25,0) -> 0 | K25: =Table!K25<=Inputs!$B$6 -> TRUE | L25: =IF(AND($A25,I25,NOT(K25)),Table!L25,0) -> 0 | M25: =Table!M25<=Inputs!$B$6 -> TRUE | N25: =IF(AND($A25,K25,NOT(M25)),Table!N25,0) -> 0 | O25: =Table!O25<=Inputs!$B$6 -> FALSE | P25: =IF(AND($A25,M25,NOT(O25)),Table!P25,0) -> 0 | Q25: =Table!Q25<=Inputs!$B$6 -> FALSE | R25: =IF(AND($A25,O25,NOT(Q25)),Table!R25,0) -> 0 | S25: =Table!S25<=Inputs!$B$6 -> FALSE | T25: =IF(AND($A25,Q25,NOT(S25)),Table!T25,0) -> 0 | U25: =Table!U25<=Inputs!$B$6 -> FALSE | V25: =IF(AND($A25,S25,NOT(U25)),Table!V25,0) -> 0 | W25: =Table!W25<=Inputs!$B$6 -> FALSE | X25: =IF(AND($A25,U25,NOT(W25)),Table!X25,0) -> 0 | Y25: =Table!Y25<=Inputs!$B$6 -> FALSE | Z25: =IF(AND($A25,W25,NOT(Y25)),Table!Z25,0) -> 0 | AA25: =Table!AA25<=Inputs!$B$6 -> FALSE | AB25: =IF(AND($A25,Y25,NOT(AA25)),Table!AB25,0) -> 0 | AC25: =Table!AC25<=Inputs!$B$6 -> FALSE | AD25: =IF(AND($A25,AA25,NOT(AC25)),Table!AD25,0) -> 0 | AE25: =Table!AE25<=Inputs!$B$6 -> FALSE | AF25: =IF(AND($A25,AC25,NOT(AE25)),Table!AF25,0) -> 0 | AG25: =Table!AG25<=Inputs!$B$6 -> FALSE | AH25: =IF(AND($A25,AE25,NOT(AG25)),Table!AH25,0) -> 0
A26: FALSE | B26: =Table!B26<=Inputs!B$2 -> TRUE | C26: =Table!C26<=Inputs!$B$6 -> TRUE | D26: =IF(AND(A26,AH26+AF26+AD26+AB26+Z26+X26+V26+T26+R26+P26+N26+L26+J26+H26+F26=0),Table!D26,0) -> 0 | E26: =Table!E26<=Inputs!$B$6 -> TRUE | F26: =IF(AND($A26,C26,NOT(E26)),Table!F26,0) -> 0 | G26: =Table!G26<=Inputs!$B$6 -> TRUE | H26: =IF(AND($A26,E26,NOT(G26)),Table!H26,0) -> 0 | I26: =Table!I26<=Inputs!$B$6 -> TRUE | J26: =IF(AND($A26,G26,NOT(I26)),Table!J26,0) -> 0 | K26: =Table!K26<=Inputs!$B$6 -> TRUE | L26: =IF(AND($A26,I26,NOT(K26)),Table!L26,0) -> 0 | M26: =Table!M26<=Inputs!$B$6 -> TRUE | N26: =IF(AND($A26,K26,NOT(M26)),Table!N26,0) -> 0 | O26: =Table!O26<=Inputs!$B$6 -> FALSE | P26: =IF(AND($A26,M26,NOT(O26)),Table!P26,0) -> 0 | Q26: =Table!Q26<=Inputs!$B$6 -> FALSE | R26: =IF(AND($A26,O26,NOT(Q26)),Table!R26,0) -> 0 | S26: =Table!S26<=Inputs!$B$6 -> FALSE | T26: =IF(AND($A26,Q26,NOT(S26)),Table!T26,0) -> 0 | U26: =Table!U26<=Inputs!$B$6 -> FALSE | V26: =IF(AND($A26,S26,NOT(U26)),Table!V26,0) -> 0 | W26: =Table!W26<=Inputs!$B$6 -> FALSE | X26: =IF(AND($A26,U26,NOT(W26)),Table!X26,0) -> 0 | Y26: =Table!Y26<=Inputs!$B$6 -> FALSE | Z26: =IF(AND($A26,W26,NOT(Y26)),Table!Z26,0) -> 0 | AA26: =Table!AA26<=Inputs!$B$6 -> FALSE | AB26: =IF(AND($A26,Y26,NOT(AA26)),Table!AB26,0) -> 0 | AC26: =Table!AC26<=Inputs!$B$6 -> FALSE | AD26: =IF(AND($A26,AA26,NOT(AC26)),Table!AD26,0) -> 0 | AE26: =Table!AE26<=Inputs!$B$6 -> FALSE | AF26: =IF(AND($A26,AC26,NOT(AE26)),Table!AF26,0) -> 0 | AG26: =Table!AG26<=Inputs!$B$6 -> FALSE | AH26: =IF(AND($A26,AE26,NOT(AG26)),Table!AH26,0) -> 0
A27: FALSE | B27: =Table!B27<=Inputs!B$2 -> TRUE | C27: =Table!C27<=Inputs!$B$6 -> TRUE | D27: =IF(AND(A27,AH27+AF27+AD27+AB27+Z27+X27+V27+T27+R27+P27+N27+L27+J27+H27+F27=0),Table!D27,0) -> 0 | E27: =Table!E27<=Inputs!$B$6 -> TRUE | F27: =IF(AND($A27,C27,NOT(E27)),Table!F27,0) -> 0 | G27: =Table!G27<=Inputs!$B$6 -> TRUE | H27: =IF(AND($A27,E27,NOT(G27)),Table!H27,0) -> 0 | I27: =Table!I27<=Inputs!$B$6 -> TRUE | J27: =IF(AND($A27,G27,NOT(I27)),Table!J27,0) -> 0 | K27: =Table!K27<=Inputs!$B$6 -> TRUE | L27: =IF(AND($A27,I27,NOT(K27)),Table!L27,0) -> 0 | M27: =Table!M27<=Inputs!$B$6 -> TRUE | N27: =IF(AND($A27,K27,NOT(M27)),Table!N27,0) -> 0 | O27: =Table!O27<=Inputs!$B$6 -> TRUE | P27: =IF(AND($A27,M27,NOT(O27)),Table!P27,0) -> 0 | Q27: =Table!Q27<=Inputs!$B$6 -> FALSE | R27: =IF(AND($A27,O27,NOT(Q27)),Table!R27,0) -> 0 | S27: =Table!S27<=Inputs!$B$6 -> FALSE | T27: =IF(AND($A27,Q27,NOT(S27)),Table!T27,0) -> 0 | U27: =Table!U27<=Inputs!$B$6 -> FALSE | V27: =IF(AND($A27,S27,NOT(U27)),Table!V27,0) -> 0 | W27: =Table!W27<=Inputs!$B$6 -> FALSE | X27: =IF(AND($A27,U27,NOT(W27)),Table!X27,0) -> 0 | Y27: =Table!Y27<=Inputs!$B$6 -> FALSE | Z27: =IF(AND($A27,W27,NOT(Y27)),Table!Z27,0) -> 0 | AA27: =Table!AA27<=Inputs!$B$6 -> FALSE | AB27: =IF(AND($A27,Y27,NOT(AA27)),Table!AB27,0) -> 0 | AC27: =Table!AC27<=Inputs!$B$6 -> FALSE | AD27: =IF(AND($A27,AA27,NOT(AC27)),Table!AD27,0) -> 0 | AE27: =Table!AE27<=Inputs!$B$6 -> FALSE | AF27: =IF(AND($A27,AC27,NOT(AE27)),Table!AF27,0) -> 0 | AG27: =Table!AG27<=Inputs!$B$6 -> FALSE | AH27: =IF(AND($A27,AE27,NOT(AG27)),Table!AH27,0) -> 0
A28: FALSE | B28: =Table!B28<=Inputs!B$2 -> TRUE | C28: =Table!C28<=Inputs!$B$6 -> TRUE | D28: =IF(AND(A28,AH28+AF28+AD28+AB28+Z28+X28+V28+T28+R28+P28+N28+L28+J28+H28+F28=0),Table!D28,0) -> 0 | E28: =Table!E28<=Inputs!$B$6 -> TRUE | F28: =IF(AND($A28,C28,NOT(E28)),Table!F28,0) -> 0 | G28: =Table!G28<=Inputs!$B$6 -> TRUE | H28: =IF(AND($A28,E28,NOT(G28)),Table!H28,0) -> 0 | I28: =Table!I28<=Inputs!$B$6 -> TRUE | J28: =IF(AND($A28,G28,NOT(I28)),Table!J28,0) -> 0 | K28: =Table!K28<=Inputs!$B$6 -> TRUE | L28: =IF(AND($A28,I28,NOT(K28)),Table!L28,0) -> 0 | M28: =Table!M28<=Inputs!$B$6 -> TRUE | N28: =IF(AND($A28,K28,NOT(M28)),Table!N28,0) -> 0 | O28: =Table!O28<=Inputs!$B$6 -> TRUE | P28: =IF(AND($A28,M28,NOT(O28)),Table!P28,0) -> 0 | Q28: =Table!Q28<=Inputs!$B$6 -> FALSE | R28: =IF(AND($A28,O28,NOT(Q28)),Table!R28,0) -> 0 | S28: =Table!S28<=Inputs!$B$6 -> FALSE | T28: =IF(AND($A28,Q28,NOT(S28)),Table!T28,0) -> 0 | U28: =Table!U28<=Inputs!$B$6 -> FALSE | V28: =IF(AND($A28,S28,NOT(U28)),Table!V28,0) -> 0 | W28: =Table!W28<=Inputs!$B$6 -> FALSE | X28: =IF(AND($A28,U28,NOT(W28)),Table!X28,0) -> 0 | Y28: =Table!Y28<=Inputs!$B$6 -> FALSE | Z28: =IF(AND($A28,W28,NOT(Y28)),Table!Z28,0) -> 0 | AA28: =Table!AA28<=Inputs!$B$6 -> FALSE | AB28: =IF(AND($A28,Y28,NOT(AA28)),Table!AB28,0) -> 0 | AC28: =Table!AC28<=Inputs!$B$6 -> FALSE | AD28: =IF(AND($A28,AA28,NOT(AC28)),Table!AD28,0) -> 0 | AE28: =Table!AE28<=Inputs!$B$6 -> FALSE | AF28: =IF(AND($A28,AC28,NOT(AE28)),Table!AF28,0) -> 0 | AG28: =Table!AG28<=Inputs!$B$6 -> FALSE | AH28: =IF(AND($A28,AE28,NOT(AG28)),Table!AH28,0) -> 0
A29: FALSE | B29: =Table!B29<=Inputs!B$2 -> TRUE | C29: =Table!C29<=Inputs!$B$6 -> TRUE | D29: =IF(AND(A29,AH29+AF29+AD29+AB29+Z29+X29+V29+T29+R29+P29+N29+L29+J29+H29+F29=0),Table!D29,0) -> 0 | E29: =Table!E29<=Inputs!$B$6 -> TRUE | F29: =IF(AND($A29,C29,NOT(E29)),Table!F29,0) -> 0 | G29: =Table!G29<=Inputs!$B$6 -> TRUE | H29: =IF(AND($A29,E29,NOT(G29)),Table!H29,0) -> 0 | I29: =Table!I29<=Inputs!$B$6 -> TRUE | J29: =IF(AND($A29,G29,NOT(I29)),Table!J29,0) -> 0 | K29: =Table!K29<=Inputs!$B$6 -> TRUE | L29: =IF(AND($A29,I29,NOT(K29)),Table!L29,0) -> 0 | M29: =Table!M29<=Inputs!$B$6 -> TRUE | N29: =IF(AND($A29,K29,NOT(M29)),Table!N29,0) -> 0 | O29: =Table!O29<=Inputs!$B$6 -> TRUE | P29: =IF(AND($A29,M29,NOT(O29)),Table!P29,0) -> 0 | Q29: =Table!Q29<=Inputs!$B$6 -> FALSE | R29: =IF(AND($A29,O29,NOT(Q29)),Table!R29,0) -> 0 | S29: =Table!S29<=Inputs!$B$6 -> FALSE | T29: =IF(AND($A29,Q29,NOT(S29)),Table!T29,0) -> 0 | U29: =Table!U29<=Inputs!$B$6 -> FALSE | V29: =IF(AND($A29,S29,NOT(U29)),Table!V29,0) -> 0 | W29: =Table!W29<=Inputs!$B$6 -> FALSE | X29: =IF(AND($A29,U29,NOT(W29)),Table!X29,0) -> 0 | Y29: =Table!Y29<=Inputs!$B$6 -> FALSE | Z29: =IF(AND($A29,W29,NOT(Y29)),Table!Z29,0) -> 0 | AA29: =Table!AA29<=Inputs!$B$6 -> FALSE | AB29: =IF(AND($A29,Y29,NOT(AA29)),Table!AB29,0) -> 0 | AC29: =Table!AC29<=Inputs!$B$6 -> FALSE | AD29: =IF(AND($A29,AA29,NOT(AC29)),Table!AD29,0) -> 0 | AE29: =Table!AE29<=Inputs!$B$6 -> FALSE | AF29: =IF(AND($A29,AC29,NOT(AE29)),Table!AF29,0) -> 0 | AG29: =Table!AG29<=Inputs!$B$6 -> FALSE | AH29: =IF(AND($A29,AE29,NOT(AG29)),Table!AH29,0) -> 0
A30: FALSE | B30: =Table!B30<=Inputs!B$2 -> TRUE | C30: =Table!C30<=Inputs!$B$6 -> TRUE | D30: =IF(AND(A30,AH30+AF30+AD30+AB30+Z30+X30+V30+T30+R30+P30+N30+L30+J30+H30+F30=0),Table!D30,0) -> 0 | E30: =Table!E30<=Inputs!$B$6 -> TRUE | F30: =IF(AND($A30,C30,NOT(E30)),Table!F30,0) -> 0 | G30: =Table!G30<=Inputs!$B$6 -> TRUE | H30: =IF(AND($A30,E30,NOT(G30)),Table!H30,0) -> 0 | I30: =Table!I30<=Inputs!$B$6 -> TRUE | J30: =IF(AND($A30,G30,NOT(I30)),Table!J30,0) -> 0 | K30: =Table!K30<=Inputs!$B$6 -> TRUE | L30: =IF(AND($A30,I30,NOT(K30)),Table!L30,0) -> 0 | M30: =Table!M30<=Inputs!$B$6 -> TRUE | N30: =IF(AND($A30,K30,NOT(M30)),Table!N30,0) -> 0 | O30: =Table!O30<=Inputs!$B$6 -> TRUE | P30: =IF(AND($A30,M30,NOT(O30)),Table!P30,0) -> 0 | Q30: =Table!Q30<=Inputs!$B$6 -> FALSE | R30: =IF(AND($A30,O30,NOT(Q30)),Table!R30,0) -> 0 | S30: =Table!S30<=Inputs!$B$6 -> FALSE | T30: =IF(AND($A30,Q30,NOT(S30)),Table!T30,0) -> 0 | U30: =Table!U30<=Inputs!$B$6 -> FALSE | V30: =IF(AND($A30,S30,NOT(U30)),Table!V30,0) -> 0 | W30: =Table!W30<=Inputs!$B$6 -> FALSE | X30: =IF(AND($A30,U30,NOT(W30)),Table!X30,0) -> 0 | Y30: =Table!Y30<=Inputs!$B$6 -> FALSE | Z30: =IF(AND($A30,W30,NOT(Y30)),Table!Z30,0) -> 0 | AA30: =Table!AA30<=Inputs!$B$6 -> FALSE | AB30: =IF(AND($A30,Y30,NOT(AA30)),Table!AB30,0) -> 0 | AC30: =Table!AC30<=Inputs!$B$6 -> FALSE | AD30: =IF(AND($A30,AA30,NOT(AC30)),Table!AD30,0) -> 0 | AE30: =Table!AE30<=Inputs!$B$6 -> FALSE | AF30: =IF(AND($A30,AC30,NOT(AE30)),Table!AF30,0) -> 0 | AG30: =Table!AG30<=Inputs!$B$6 -> FALSE | AH30: =IF(AND($A30,AE30,NOT(AG30)),Table!AH30,0) -> 0
A31: TRUE | B31: =Table!B31<=Inputs!B$2 -> TRUE | C31: =Table!C31<=Inputs!$B$6 -> TRUE | D31: =IF(AND(A31,AH31+AF31+AD31+AB31+Z31+X31+V31+T31+R31+P31+N31+L31+J31+H31+F31=0),Table!D31,0) -> 0 | E31: =Table!E31<=Inputs!$B$6 -> TRUE | F31: =IF(AND($A31,C31,NOT(E31)),Table!F31,0) -> 0 | G31: =Table!G31<=Inputs!$B$6 -> TRUE | H31: =IF(AND($A31,E31,NOT(G31)),Table!H31,0) -> 0 | I31: =Table!I31<=Inputs!$B$6 -> TRUE | J31: =IF(AND($A31,G31,NOT(I31)),Table!J31,0) -> 0 | K31: =Table!K31<=Inputs!$B$6 -> TRUE | L31: =IF(AND($A31,I31,NOT(K31)),Table!L31,0) -> 0 | M31: =Table!M31<=Inputs!$B$6 -> TRUE | N31: =IF(AND($A31,K31,NOT(M31)),Table!N31,0) -> 0 | O31: =Table!O31<=Inputs!$B$6 -> TRUE | P31: =IF(AND($A31,M31,NOT(O31)),Table!P31,0) -> 0 | Q31: =Table!Q31<=Inputs!$B$6 -> TRUE | R31: =IF(AND($A31,O31,NOT(Q31)),Table!R31,0) -> 0 | S31: =Table!S31<=Inputs!$B$6 -> FALSE | T31: =IF(AND($A31,Q31,NOT(S31)),Table!T31,0) -> 220 | U31: =Table!U31<=Inputs!$B$6 -> FALSE | V31: =IF(AND($A31,S31,NOT(U31)),Table!V31,0) -> 0 | W31: =Table!W31<=Inputs!$B$6 -> FALSE | X31: =IF(AND($A31,U31,NOT(W31)),Table!X31,0) -> 0 | Y31: =Table!Y31<=Inputs!$B$6 -> FALSE | Z31: =IF(AND($A31,W31,NOT(Y31)),Table!Z31,0) -> 0 | AA31: =Table!AA31<=Inputs!$B$6 -> FALSE | AB31: =IF(AND($A31,Y31,NOT(AA31)),Table!AB31,0) -> 0 | AC31: =Table!AC31<=Inputs!$B$6 -> FALSE | AD31: =IF(AND($A31,AA31,NOT(AC31)),Table!AD31,0) -> 0 | AE31: =Table!AE31<=Inputs!$B$6 -> FALSE | AF31: =IF(AND($A31,AC31,NOT(AE31)),Table!AF31,0) -> 0 | AG31: =Table!AG31<=Inputs!$B$6 -> FALSE | AH31: =IF(AND($A31,AE31,NOT(AG31)),Table!AH31,0) -> 0
A32: FALSE | B32: =Table!B32<=Inputs!B$2 -> FALSE | C32: =Table!C32<=Inputs!$B$6 -> TRUE | D32: =IF(AND(A32,AH32+AF32+AD32+AB32+Z32+X32+V32+T32+R32+P32+N32+L32+J32+H32+F32=0),Table!D32,0) -> 0 | E32: =Table!E32<=Inputs!$B$6 -> TRUE | F32: =IF(AND($A32,C32,NOT(E32)),Table!F32,0) -> 0 | G32: =Table!G32<=Inputs!$B$6 -> TRUE | H32: =IF(AND($A32,E32,NOT(G32)),Table!H32,0) -> 0 | I32: =Table!I32<=Inputs!$B$6 -> TRUE | J32: =IF(AND($A32,G32,NOT(I32)),Table!J32,0) -> 0 | K32: =Table!K32<=Inputs!$B$6 -> TRUE | L32: =IF(AND($A32,I32,NOT(K32)),Table!L32,0) -> 0 | M32: =Table!M32<=Inputs!$B$6 -> TRUE | N32: =IF(AND($A32,K32,NOT(M32)),Table!N32,0) -> 0 | O32: =Table!O32<=Inputs!$B$6 -> TRUE | P32: =IF(AND($A32,M32,NOT(O32)),Table!P32,0) -> 0 | Q32: =Table!Q32<=Inputs!$B$6 -> TRUE | R32: =IF(AND($A32,O32,NOT(Q32)),Table!R32,0) -> 0 | S32: =Table!S32<=Inputs!$B$6 -> FALSE | T32: =IF(AND($A32,Q32,NOT(S32)),Table!T32,0) -> 0 | U32: =Table!U32<=Inputs!$B$6 -> FALSE | V32: =IF(AND($A32,S32,NOT(U32)),Table!V32,0) -> 0 | W32: =Table!W32<=Inputs!$B$6 -> FALSE | X32: =IF(AND($A32,U32,NOT(W32)),Table!X32,0) -> 0 | Y32: =Table!Y32<=Inputs!$B$6 -> FALSE | Z32: =IF(AND($A32,W32,NOT(Y32)),Table!Z32,0) -> 0 | AA32: =Table!AA32<=Inputs!$B$6 -> FALSE | AB32: =IF(AND($A32,Y32,NOT(AA32)),Table!AB32,0) -> 0 | AC32: =Table!AC32<=Inputs!$B$6 -> FALSE | AD32: =IF(AND($A32,AA32,NOT(AC32)),Table!AD32,0) -> 0 | AE32: =Table!AE32<=Inputs!$B$6 -> FALSE | AF32: =IF(AND($A32,AC32,NOT(AE32)),Table!AF32,0) -> 0 | AG32: =Table!AG32<=Inputs!$B$6 -> FALSE | AH32: =IF(AND($A32,AE32,NOT(AG32)),Table!AH32,0) -> 0
A33: FALSE | B33: =Table!B33<=Inputs!B$2 -> FALSE | C33: =Table!C33<=Inputs!$B$6 -> TRUE | D33: =IF(AND(A33,AH33+AF33+AD33+AB33+Z33+X33+V33+T33+R33+P33+N33+L33+J33+H33+F33=0),Table!D33,0) -> 0 | E33: =Table!E33<=Inputs!$B$6 -> TRUE | F33: =IF(AND($A33,C33,NOT(E33)),Table!F33,0) -> 0 | G33: =Table!G33<=Inputs!$B$6 -> TRUE | H33: =IF(AND($A33,E33,NOT(G33)),Table!H33,0) -> 0 | I33: =Table!I33<=Inputs!$B$6 -> TRUE | J33: =IF(AND($A33,G33,NOT(I33)),Table!J33,0) -> 0 | K33: =Table!K33<=Inputs!$B$6 -> TRUE | L33: =IF(AND($A33,I33,NOT(K33)),Table!L33,0) -> 0 | M33: =Table!M33<=Inputs!$B$6 -> TRUE | N33: =IF(AND($A33,K33,NOT(M33)),Table!N33,0) -> 0 | O33: =Table!O33<=Inputs!$B$6 -> TRUE | P33: =IF(AND($A33,M33,NOT(O33)),Table!P33,0) -> 0 | Q33: =Table!Q33<=Inputs!$B$6 -> TRUE | R33: =IF(AND($A33,O33,NOT(Q33)),Table!R33,0) -> 0 | S33: =Table!S33<=Inputs!$B$6 -> FALSE | T33: =IF(AND($A33,Q33,NOT(S33)),Table!T33,0) -> 0 | U33: =Table!U33<=Inputs!$B$6 -> FALSE | V33: =IF(AND($A33,S33,NOT(U33)),Table!V33,0) -> 0 | W33: =Table!W33<=Inputs!$B$6 -> FALSE | X33: =IF(AND($A33,U33,NOT(W33)),Table!X33,0) -> 0 | Y33: =Table!Y33<=Inputs!$B$6 -> FALSE | Z33: =IF(AND($A33,W33,NOT(Y33)),Table!Z33,0) -> 0 | AA33: =Table!AA33<=Inputs!$B$6 -> FALSE | AB33: =IF(AND($A33,Y33,NOT(AA33)),Table!AB33,0) -> 0 | AC33: =Table!AC33<=Inputs!$B$6 -> FALSE | AD33: =IF(AND($A33,AA33,NOT(AC33)),Table!AD33,0) -> 0 | AE33: =Table!AE33<=Inputs!$B$6 -> FALSE | AF33: =IF(AND($A33,AC33,NOT(AE33)),Table!AF33,0) -> 0 | AG33: =Table!AG33<=Inputs!$B$6 -> FALSE | AH33: =IF(AND($A33,AE33,NOT(AG33)),Table!AH33,0) -> 0
A34: FALSE | B34: =Table!B34<=Inputs!B$2 -> FALSE | C34: =Table!C34<=Inputs!$B$6 -> TRUE | D34: =IF(AND(A34,AH34+AF34+AD34+AB34+Z34+X34+V34+T34+R34+P34+N34+L34+J34+H34+F34=0),Table!D34,0) -> 0 | E34: =Table!E34<=Inputs!$B$6 -> TRUE | F34: =IF(AND($A34,C34,NOT(E34)),Table!F34,0) -> 0 | G34: =Table!G34<=Inputs!$B$6 -> TRUE | H34: =IF(AND($A34,E34,NOT(G34)),Table!H34,0) -> 0 | I34: =Table!I34<=Inputs!$B$6 -> TRUE | J34: =IF(AND($A34,G34,NOT(I34)),Table!J34,0) -> 0 | K34: =Table!K34<=Inputs!$B$6 -> TRUE | L34: =IF(AND($A34,I34,NOT(K34)),Table!L34,0) -> 0 | M34: =Table!M34<=Inputs!$B$6 -> TRUE | N34: =IF(AND($A34,K34,NOT(M34)),Table!N34,0) -> 0 | O34: =Table!O34<=Inputs!$B$6 -> TRUE | P34: =IF(AND($A34,M34,NOT(O34)),Table!P34,0) -> 0 | Q34: =Table!Q34<=Inputs!$B$6 -> TRUE | R34: =IF(AND($A34,O34,NOT(Q34)),Table!R34,0) -> 0 | S34: =Table!S34<=Inputs!$B$6 -> FALSE | T34: =IF(AND($A34,Q34,NOT(S34)),Table!T34,0) -> 0 | U34: =Table!U34<=Inputs!$B$6 -> FALSE | V34: =IF(AND($A34,S34,NOT(U34)),Table!V34,0) -> 0 | W34: =Table!W34<=Inputs!$B$6 -> FALSE | X34: =IF(AND($A34,U34,NOT(W34)),Table!X34,0) -> 0 | Y34: =Table!Y34<=Inputs!$B$6 -> FALSE | Z34: =IF(AND($A34,W34,NOT(Y34)),Table!Z34,0) -> 0 | AA34: =Table!AA34<=Inputs!$B$6 -> FALSE | AB34: =IF(AND($A34,Y34,NOT(AA34)),Table!AB34,0) -> 0 | AC34: =Table!AC34<=Inputs!$B$6 -> FALSE | AD34: =IF(AND($A34,AA34,NOT(AC34)),Table!AD34,0) -> 0 | AE34: =Table!AE34<=Inputs!$B$6 -> FALSE | AF34: =IF(AND($A34,AC34,NOT(AE34)),Table!AF34,0) -> 0 | AG34: =Table!AG34<=Inputs!$B$6 -> FALSE | AH34: =IF(AND($A34,AE34,NOT(AG34)),Table!AH34,0) -> 0
A35: FALSE | B35: =Table!B35<=Inputs!B$2 -> FALSE | C35: =Table!C35<=Inputs!$B$6 -> TRUE | D35: =IF(AND(A35,AH35+AF35+AD35+AB35+Z35+X35+V35+T35+R35+P35+N35+L35+J35+H35+F35=0),Table!D35,0) -> 0 | E35: =Table!E35<=Inputs!$B$6 -> TRUE | F35: =IF(AND($A35,C35,NOT(E35)),Table!F35,0) -> 0 | G35: =Table!G35<=Inputs!$B$6 -> TRUE | H35: =IF(AND($A35,E35,NOT(G35)),Table!H35,0) -> 0 | I35: =Table!I35<=Inputs!$B$6 -> TRUE | J35: =IF(AND($A35,G35,NOT(I35)),Table!J35,0) -> 0 | K35: =Table!K35<=Inputs!$B$6 -> TRUE | L35: =IF(AND($A35,I35,NOT(K35)),Table!L35,0) -> 0 | M35: =Table!M35<=Inputs!$B$6 -> TRUE | N35: =IF(AND($A35,K35,NOT(M35)),Table!N35,0) -> 0 | O35: =Table!O35<=Inputs!$B$6 -> TRUE | P35: =IF(AND($A35,M35,NOT(O35)),Table!P35,0) -> 0 | Q35: =Table!Q35<=Inputs!$B$6 -> TRUE | R35: =IF(AND($A35,O35,NOT(Q35)),Table!R35,0) -> 0 | S35: =Table!S35<=Inputs!$B$6 -> TRUE | T35: =IF(AND($A35,Q35,NOT(S35)),Table!T35,0) -> 0 | U35: =Table!U35<=Inputs!$B$6 -> FALSE | V35: =IF(AND($A35,S35,NOT(U35)),Table!V35,0) -> 0 | W35: =Table!W35<=Inputs!$B$6 -> FALSE | X35: =IF(AND($A35,U35,NOT(W35)),Table!X35,0) -> 0 | Y35: =Table!Y35<=Inputs!$B$6 -> FALSE | Z35: =IF(AND($A35,W35,NOT(Y35)),Table!Z35,0) -> 0 | AA35: =Table!AA35<=Inputs!$B$6 -> FALSE | AB35: =IF(AND($A35,Y35,NOT(AA35)),Table!AB35,0) -> 0 | AC35: =Table!AC35<=Inputs!$B$6 -> FALSE | AD35: =IF(AND($A35,AA35,NOT(AC35)),Table!AD35,0) -> 0 | AE35: =Table!AE35<=Inputs!$B$6 -> FALSE | AF35: =IF(AND($A35,AC35,NOT(AE35)),Table!AF35,0) -> 0 | AG35: =Table!AG35<=Inputs!$B$6 -> FALSE | AH35: =IF(AND($A35,AE35,NOT(AG35)),Table!AH35,0) -> 0
A36: FALSE | B36: =Table!B36<=Inputs!B$2 -> FALSE | C36: =Table!C36<=Inputs!$B$6 -> TRUE | D36: =IF(AND(A36,AH36+AF36+AD36+AB36+Z36+X36+V36+T36+R36+P36+N36+L36+J36+H36+F36=0),Table!D36,0) -> 0 | E36: =Table!E36<=Inputs!$B$6 -> TRUE | F36: =IF(AND($A36,C36,NOT(E36)),Table!F36,0) -> 0 | G36: =Table!G36<=Inputs!$B$6 -> TRUE | H36: =IF(AND($A36,E36,NOT(G36)),Table!H36,0) -> 0 | I36: =Table!I36<=Inputs!$B$6 -> TRUE | J36: =IF(AND($A36,G36,NOT(I36)),Table!J36,0) -> 0 | K36: =Table!K36<=Inputs!$B$6 -> TRUE | L36: =IF(AND($A36,I36,NOT(K36)),Table!L36,0) -> 0 | M36: =Table!M36<=Inputs!$B$6 -> TRUE | N36: =IF(AND($A36,K36,NOT(M36)),Table!N36,0) -> 0 | O36: =Table!O36<=Inputs!$B$6 -> TRUE | P36: =IF(AND($A36,M36,NOT(O36)),Table!P36,0) -> 0 | Q36: =Table!Q36<=Inputs!$B$6 -> TRUE | R36: =IF(AND($A36,O36,NOT(Q36)),Table!R36,0) -> 0 | S36: =Table!S36<=Inputs!$B$6 -> TRUE | T36: =IF(AND($A36,Q36,NOT(S36)),Table!T36,0) -> 0 | U36: =Table!U36<=Inputs!$B$6 -> FALSE | V36: =IF(AND($A36,S36,NOT(U36)),Table!V36,0) -> 0 | W36: =Table!W36<=Inputs!$B$6 -> FALSE | X36: =IF(AND($A36,U36,NOT(W36)),Table!X36,0) -> 0 | Y36: =Table!Y36<=Inputs!$B$6 -> FALSE | Z36: =IF(AND($A36,W36,NOT(Y36)),Table!Z36,0) -> 0 | AA36: =Table!AA36<=Inputs!$B$6 -> FALSE | AB36: =IF(AND($A36,Y36,NOT(AA36)),Table!AB36,0) -> 0 | AC36: =Table!AC36<=Inputs!$B$6 -> FALSE | AD36: =IF(AND($A36,AA36,NOT(AC36)),Table!AD36,0) -> 0 | AE36: =Table!AE36<=Inputs!$B$6 -> FALSE | AF36: =IF(AND($A36,AC36,NOT(AE36)),Table!AF36,0) -> 0 | AG36: =Table!AG36<=Inputs!$B$6 -> FALSE | AH36: =IF(AND($A36,AE36,NOT(AG36)),Table!AH36,0) -> 0
D38: =SUM(D6:D36) -> 0 | F38: =SUM(F6:F36) -> 0 | H38: =SUM(H6:H36) -> 0 | J38: =SUM(J6:J36) -> 0 | L38: =SUM(L6:L36) -> 0 | N38: =SUM(N6:N36) -> 0 | P38: =SUM(P6:P36) -> 0 | R38: =SUM(R6:R36) -> 0 | T38: =SUM(T6:T36) -> 220 | V38: =SUM(V6:V36) -> 0 | X38: =SUM(X6:X36) -> 0 | Z38: =SUM(Z6:Z36) -> 0 | AB38: =SUM(AB6:AB36) -> 0 | AD38: =SUM(AD6:AD36) -> 0 | AF38: =SUM(AF6:AF36) -> 0 | AH38: =SUM(AH6:AH36) -> 0
D40: =SUM(D38:AH38) -> 220

Sheet STL Volume
A1: 0 = Curve | D1: 0 | E1: W/2 | F1: W | L1: 0 | M1: W/2 | N1: W | Q1: 0 | R1: W/2 | S1: W | U1: Avg dh | V1: Avg dh | X1: Avg Area | Y1: Avg Area
C2: x | D2: hex(x) | E2: hm(x) | F2: he(x) | H2: Slope R | I2: Slope L | K2: x | L2: hreq(w,x) | M2: hreq(w,x) | N2: hreq(w,x) | P2: x | Q2: dh(w,x) | R2: dh(w,x) | S2: dh(w,x) | U2: Left | V2: Right | X2: Left | Y2: Right | AA2: Area
A3: 0 | C3: =A3/100*C$103 -> 0 | D3: 0 | E3: =IF(AVERAGE(D3,F3)<0.24,0.24,AVERAGE(D3,F3)) -> 0.456 | F3: =Inputs!B1/100*Inputs!B7 -> 0.912 | H3: =E3/12*100 -> 3.8 | I3: =(F3-E3)/12*100 -> 3.8 | K3: =C3 -> 0 | L3: =IF(K3>50,0,(1-K3/50)/12) -> 0.08333333333 | M3: =IF(AVERAGE(L3,N3)<0.24,0.24,AVERAGE(L3,N3)) -> 0.9233333333 | N3: =Inputs!B2*Inputs!B7/100+L3 -> 1.763333333 | P3: =K3 -> 0 | Q3: =L3-D3 -> 0.08333333333 | R3: =M3-E3 -> 0.4673333333 | S3: =N3-F3 -> 0.8513333333 | U3: =AVERAGE(Q3:R3) -> 0.2753333333 | V3: =AVERAGE(R3:S3) -> 0.6593333333 | X3: =Inputs!$B$7/2*U3 -> 3.304 | Y3: =Inputs!$B$7/2*V3 -> 7.912 | AA3: =X3+Y3 -> 11.216
A4: =1 -> 1 | C4: =A4/100*C$103 -> 2.2 | D4: 0 | E4: =IF(AVERAGE(D4,F4)<0.24,0.24,AVERAGE(D4,F4)) -> 0.445968 | F4: =IF(C4<A$106,F$3*(1-C4/A$106),0) -> 0.891936 | H4: =E4/12*100 -> 3.7164 | I4: =(F4-E4)/12*100 -> 3.7164 | K4: =C4 -> 2.2 | L4: =IF(K4>50,0,(1-K4/50)/12) -> 0.07966666667 | M4: =IF(AVERAGE(L4,N4)<0.24,0.24,AVERAGE(L4,N4)) -> 0.9126833333 | N4: =N$3*(1-K4/C$103) -> 1.7457 | P4: =K4 -> 2.2 | Q4: =L4-D4 -> 0.07966666667 | R4: 0.4667153333 | S4: 0.853764 | U4: =AVERAGE(Q4:R4) -> 0.273191 | V4: 0.6602396667 | X4: =Inputs!$B$7/2*U4 -> 3.278292 | Y4: =Inputs!$B$7/2*V4 -> 7.922876 | AA4: =X4+Y4 -> 11.201168
A5: =A4+1 -> 2 | C5: =A5/100*C$103 -> 4.4 | D5: 0 | E5: 0.435936 | F5: =IF(C5<A$106,F$3*(1-C5/A$106),0) -> 0.871872 | H5: 3.6328 | I5: 3.6328 | K5: 4.4 | L5: =IF(K5>50,0,(1-K5/50)/12) -> 0.076 | M5: =IF(AVERAGE(L5,N5)<0.24,0.24,AVERAGE(L5,N5)) -> 0.9020333333 | N5: =N$3*(1-K5/C$103) -> 1.728066667 | P5: 4.4 | Q5: 0.076 | R5: 0.4660973333 | S5: 0.8561946667 | U5: 0.2710486667 | V5: 0.661146 | X5: =Inputs!$B$7/2*U5 -> 3.252584 | Y5: =Inputs!$B$7/2*V5 -> 7.933752 | AA5: 11.186336
A6: 3 | C6: =A6/100*C$103 -> 6.6 | D6: 0 | E6: 0.425904 | F6: 0.851808 | H6: 3.5492 | I6: 3.5492 | K6: 6.6 | L6: 0.07233333333 | M6: 0.8913833333 | N6: 1.710433333 | P6: 6.6 | Q6: 0.07233333333 | R6: 0.4654793333 | S6: 0.8586253333 | U6: 0.2689063333 | V6: 0.6620523333 | X6: =Inputs!$B$7/2*U6 -> 3.226876 | Y6: =Inputs!$B$7/2*V6 -> 7.944628 | AA6: 11.171504
A7: 4 | C7: 8.8 | D7: 0 | E7: 0.415872 | F7: 0.831744 | H7: 3.4656 | I7: 3.4656 | K7: 8.8 | L7: 0.06866666667 | M7: 0.8807333333 | N7: 1.6928 | P7: 8.8 | Q7: 0.06866666667 | R7: 0.4648613333 | S7: 0.861056 | U7: 0.266764 | V7: 0.6629586667 | X7: =Inputs!$B$7/2*U7 -> 3.201168 | Y7: =Inputs!$B$7/2*V7 -> 7.955504 | AA7: 11.156672
A8: 5 | C8: 11 | D8: 0 | E8: 0.40584 | F8: 0.81168 | H8: 3.382 | I8: 3.382 | K8: 11 | L8: 0.065 | M8: 0.8700833333 | N8: 1.675166667 | P8: 11 | Q8: 0.065 | R8: 0.4642433333 | S8: 0.8634866667 | U8: 0.2646216667 | V8: 0.663865 | X8: =Inputs!$B$7/2*U8 -> 3.17546 | Y8: =Inputs!$B$7/2*V8 -> 7.96638 | AA8: 11.14184
A9: 6 | C9: 13.2 | D9: 0 | E9: 0.395808 | F9: 0.791616 | H9: 3.2984 | I9: 3.2984 | K9: 13.2 | L9: 0.06133333333 | M9: 0.8594333333 | N9: 1.657533333 | P9: 13.2 | Q9: 0.06133333333 | R9: 0.4636253333 | S9: 0.8659173333 | U9: 0.2624793333 | V9: 0.6647713333 | X9: =Inputs!$B$7/2*U9 -> 3.149752 | Y9: =Inputs!$B$7/2*V9 -> 7.977256 | AA9: 11.127008
A10: 7 | C10: 15.4 | D10: 0 | E10: 0.385776 | F10: 0.771552 | H10: 3.2148 | I10: 3.2148 | K10: 15.4 | L10: 0.05766666667 | M10: 0.8487833333 | N10: 1.6399 | P10: 15.4 | Q10: 0.05766666667 | R10: 0.4630073333 | S10: 0.868348 | U10: 0.260337 | V10: 0.6656776667 | X10: =Inputs!$B$7/2*U10 -> 3.124044 | Y10: =Inputs!$B$7/2*V10 -> 7.988132 | AA10: 11.112176
A11: 8 | C11: 17.6 | D11: 0 | E11: 0.375744 | F11: 0.751488 | H11: 3.1312 | I11: 3.1312 | K11: 17.6 | L11: 0.054 | M11: 0.8381333333 | N11: 1.622266667 | P11: 17.6 | Q11: 0.054 | R11: 0.4623893333 | S11: 0.8707786667 | U11: 0.2581946667 | V11: 0.666584 | X11: =Inputs!$B$7/2*U11 -> 3.098336 | Y11: =Inputs!$B$7/2*V11 -> 7.999008 | AA11: 11.097344
A12: 9 | C12: 19.8 | D12: 0 | E12: 0.365712 | F12: 0.731424 | H12: 3.0476 | I12: 3.0476 | K12: 19.8 | L12: 0.05033333333 | M12: 0.8274833333 | N12: 1.604633333 | P12: 19.8 | Q12: 0.05033333333 | R12: 0.4617713333 | S12: 0.8732093333 | U12: 0.2560523333 | V12: 0.6674903333 | X12: =Inputs!$B$7/2*U12 -> 3.072628 | Y12: =Inputs!$B$7/2*V12 -> 8.009884 | AA12: 11.082512
A13: 10 | C13: 22 | D13: 0 | E13: 0.35568 | F13: 0.71136 | H13: 2.964 | I13: 2.964 | K13: 22 | L13: 0.04666666667 | M13: 0.8168333333 | N13: 1.587 | P13: 22 | Q13: 0.04666666667 | R13: 0.4611533333 | S13: 0.87564 | U13: 0.25391 | V13: 0.6683966667 | X13: =Inputs!$B$7/2*U13 -> 3.04692 | Y13: =Inputs!$B$7/2*V13 -> 8.02076 | AA13: 11.06768
A14: 11 | C14: 24.2 | D14: 0 | E14: 0.345648 | F14: 0.691296 | H14: 2.8804 | I14: 2.8804 | K14: 24.2 | L14: 0.043 | M14: 0.8061833333 | N14: 1.569366667 | P14: 24.2 | Q14: 0.043 | R14: 0.4605353333 | S14: 0.8780706667 | U14: 0.2517676667 | V14: 0.669303 | X14: =Inputs!$B$7/2*U14 -> 3.021212 | Y14: =Inputs!$B$7/2*V14 -> 8.031636 | AA14: 11.052848
A15: 12 | C15: 26.4 | D15: 0 | E15: 0.335616 | F15: 0.671232 | H15: 2.7968 | I15: 2.7968 | K15: 26.4 | L15: 0.03933333333 | M15: 0.7955333333 | N15: 1.551733333 | P15: 26.4 | Q15: 0.03933333333 | R15: 0.4599173333 | S15: 0.8805013333 | U15: 0.2496253333 | V15: 0.6702093333 | X15: =Inputs!$B$7/2*U15 -> 2.995504 | Y15: =Inputs!$B$7/2*V15 -> 8.042512 | AA15: 11.038016
A16: 13 | C16: 28.6 | D16: 0 | E16: 0.325584 | F16: 0.651168 | H16: 2.7132 | I16: 2.7132 | K16: 28.6 | L16: 0.03566666667 | M16: 0.7848833333 | N16: 1.5341 | P16: 28.6 | Q16: 0.03566666667 | R16: 0.4592993333 | S16: 0.882932 | U16: 0.247483 | V16: 0.6711156667 | X16: =Inputs!$B$7/2*U16 -> 2.969796 | Y16: =Inputs!$B$7/2*V16 -> 8.053388 | AA16: 11.023184
A17: 14 | C17: 30.8 | D17: 0 | E17: 0.315552 | F17: 0.631104 | H17: 2.6296 | I17: 2.6296 | K17: 30.8 | L17: 0.032 | M17: 0.7742333333 | N17: 1.516466667 | P17: 30.8 | Q17: 0.032 | R17: 0.4586813333 | S17: 0.8853626667 | U17: 0.2453406667 | V17: 0.672022 | X17: =Inputs!$B$7/2*U17 -> 2.944088 | Y17: =Inputs!$B$7/2*V17 -> 8.064264 | AA17: 11.008352
A18: 15 | C18: 33 | D18: 0 | E18: 0.30552 | F18: 0.61104 | H18: 2.546 | I18: 2.546 | K18: 33 | L18: 0.02833333333 | M18: 0.7635833333 | N18: 1.498833333 | P18: 33 | Q18: 0.02833333333 | R18: 0.4580633333 | S18: 0.8877933333 | U18: 0.2431983333 | V18: 0.6729283333 | X18: =Inputs!$B$7/2*U18 -> 2.91838 | Y18: =Inputs!$B$7/2*V18 -> 8.07514 | AA18: 10.99352
A19: 16 | C19: 35.2 | D19: 0 | E19: 0.295488 | F19: 0.590976 | H19: 2.4624 | I19: 2.4624 | K19: 35.2 | L19: 0.02466666667 | M19: 0.7529333333 | N19: 1.4812 | P19: 35.2 | Q19: 0.02466666667 | R19: 0.4574453333 | S19: 0.890224 | U19: 0.241056 | V19: 0.6738346667 | X19: =Inputs!$B$7/2*U19 -> 2.892672 | Y19: =Inputs!$B$7/2*V19 -> 8.086016 | AA19: 10.978688
A20: 17 | C20: 37.4 | D20: 0 | E20: 0.285456 | F20: 0.570912 | H20: 2.3788 | I20: 2.3788 | K20: 37.4 | L20: 0.021 | M20: 0.7422833333 | N20: 1.463566667 | P20: 37.4 | Q20: 0.021 | R20: 0.4568273333 | S20: 0.8926546667 | U20: 0.2389136667 | V20: 0.674741 | X20: =Inputs!$B$7/2*U20 -> 2.866964 | Y20: =Inputs!$B$7/2*V20 -> 8.096892 | AA20: 10.963856
A21: 18 | C21: 39.6 | D21: 0 | E21: 0.275424 | F21: 0.550848 | H21: 2.2952 | I21: 2.2952 | K21: 39.6 | L21: 0.01733333333 | M21: 0.7316333333 | N21: 1.445933333 | P21: 39.6 | Q21: 0.01733333333 | R21: 0.4562093333 | S21: 0.8950853333 | U21: 0.2367713333 | V21: 0.6756473333 | X21: =Inputs!$B$7/2*U21 -> 2.841256 | Y21: =Inputs!$B$7/2*V21 -> 8.107768 | AA21: 10.949024
A22: 19 | C22: 41.8 | D22: 0 | E22: 0.265392 | F22: 0.530784 | H22: 2.2116 | I22: 2.2116 | K22: 41.8 | L22: 0.01366666667 | M22: 0.7209833333 | N22: 1.4283 | P22: 41.8 | Q22: 0.01366666667 | R22: 0.4555913333 | S22: 0.897516 | U22: 0.234629 | V22: 0.6765536667 | X22: =Inputs!$B$7/2*U22 -> 2.815548 | Y22: =Inputs!$B$7/2*V22 -> 8.118644 | AA22: 10.934192
A23: 20 | C23: 44 | D23: 0 | E23: 0.25536 | F23: 0.51072 | H23: =E23/12*100 -> 2.128 | I23: 2.128 | K23: 44 | L23: 0.01 | M23: 0.7103333333 | N23: 1.410666667 | P23: 44 | Q23: 0.01 | R23: 0.4549733333 | S23: 0.8999466667 | U23: 0.2324866667 | V23: 0.67746 | X23: =Inputs!$B$7/2*U23 -> 2.78984 | Y23: =Inputs!$B$7/2*V23 -> 8.12952 | AA23: 10.91936
A24: 21 | C24: 46.2 | D24: 0 | E24: 0.245328 | F24: 0.490656 | H24: 2.0444 | I24: 2.0444 | K24: 46.2 | L24: 0.006333333333 | M24: 0.6996833333 | N24: 1.393033333 | P24: 46.2 | Q24: 0.006333333333 | R24: 0.4543553333 | S24: 0.9023773333 | U24: 0.2303443333 | V24: 0.6783663333 | X24: =Inputs!$B$7/2*U24 -> 2.764132 | Y24: =Inputs!$B$7/2*V24 -> 8.140396 | AA24: 10.904528
A25: 22 | C25: 48.4 | D25: 0 | E25: 0.24 | F25: 0.470592 | H25: 2 | I25: 1.9216 | K25: 48.4 | L25: 0.002666666667 | M25: 0.6890333333 | N25: 1.3754 | P25: 48.4 | Q25: 0.002666666667 | R25: 0.4490333333 | S25: 0.904808 | U25: 0.22585 | V25: 0.6769206667 | X25: =Inputs!$B$7/2*U25 -> 2.7102 | Y25: =Inputs!$B$7/2*V25 -> 8.123048 | AA25: 10.833248
A26: 23 | C26: 50.6 | D26: 0 | E26: 0.24 | F26: 0.450528 | H26: 2 | I26: 1.7544 | K26: 50.6 | L26: 0 | M26: 0.6788833333 | N26: 1.357766667 | P26: 50.6 | Q26: 0 | R26: 0.4388833333 | S26: 0.9072386667 | U26: 0.2194416667 | V26: 0.673061 | X26: =Inputs!$B$7/2*U26 -> 2.6333 | Y26: =Inputs!$B$7/2*V26 -> 8.076732 | AA26: 10.710032
A27: 24 | C27: 52.8 | D27: 0 | E27: 0.24 | F27: 0.430464 | H27: 2 | I27: 1.5872 | K27: 52.8 | L27: 0 | M27: 0.6700666667 | N27: 1.340133333 | P27: 52.8 | Q27: 0 | R27: 0.4300666667 | S27: 0.9096693333 | U27: 0.2150333333 | V27: 0.669868 | X27: =Inputs!$B$7/2*U27 -> 2.5804 | Y27: =Inputs!$B$7/2*V27 -> 8.038416 | AA27: 10.618816
A28: 25 | C28: 55 | D28: 0 | E28: 0.24 | F28: 0.4104 | H28: 2 | I28: 1.42 | K28: 55 | L28: 0 | M28: 0.66125 | N28: 1.3225 | P28: 55 | Q28: 0 | R28: 0.42125 | S28: 0.9121 | U28: 0.210625 | V28: 0.666675 | X28: =Inputs!$B$7/2*U28 -> 2.5275 | Y28: =Inputs!$B$7/2*V28 -> 8.0001 | AA28: 10.5276
A29: 26 | C29: 57.2 | D29: 0 | E29: 0.24 | F29: 0.390336 | H29: 2 | I29: 1.2528 | K29: 57.2 | L29: 0 | M29: 0.6524333333 | N29: 1.304866667 | P29: 57.2 | Q29: 0 | R29: 0.4124333333 | S29: 0.9145306667 | U29: 0.2062166667 | V29: 0.663482 | X29: =Inputs!$B$7/2*U29 -> 2.4746 | Y29: =Inputs!$B$7/2*V29 -> 7.961784 | AA29: 10.436384
A30: 27 | C30: 59.4 | D30: 0 | E30: 0.24 | F30: 0.370272 | H30: 2 | I30: 1.0856 | K30: 59.4 | L30: 0 | M30: 0.6436166667 | N30: 1.287233333 | P30: 59.4 | Q30: 0 | R30: 0.4036166667 | S30: 0.9169613333 | U30: 0.2018083333 | V30: 0.660289 | X30: =Inputs!$B$7/2*U30 -> 2.4217 | Y30: =Inputs!$B$7/2*V30 -> 7.923468 | AA30: 10.345168
A31: 28 | C31: 61.6 | D31: 0 | E31: 0.24 | F31: 0.350208 | H31: 2 | I31: 0.9184 | K31: 61.6 | L31: 0 | M31: 0.6348 | N31: 1.2696 | P31: 61.6 | Q31: 0 | R31: 0.3948 | S31: 0.919392 | U31: 0.1974 | V31: 0.657096 | X31: =Inputs!$B$7/2*U31 -> 2.3688 | Y31: =Inputs!$B$7/2*V31 -> 7.885152 | AA31: 10.253952
A32: 29 | C32: 63.8 | D32: 0 | E32: 0.24 | F32: 0.330144 | H32: 2 | I32: 0.7512 | K32: 63.8 | L32: 0 | M32: 0.6259833333 | N32: 1.251966667 | P32: 63.8 | Q32: 0 | R32: 0.3859833333 | S32: 0.9218226667 | U32: 0.1929916667 | V32: 0.653903 | X32: =Inputs!$B$7/2*U32 -> 2.3159 | Y32: =Inputs!$B$7/2*V32 -> 7.846836 | AA32: 10.162736
A33: 30 | C33: 66 | D33: 0 | E33: 0.24 | F33: 0.31008 | H33: 2 | I33: 0.584 | K33: 66 | L33: 0 | M33: 0.6171666667 | N33: 1.234333333 | P33: 66 | Q33: 0 | R33: 0.3771666667 | S33: 0.9242533333 | U33: 0.1885833333 | V33: 0.65071 | X33: =Inputs!$B$7/2*U33 -> 2.263 | Y33: =Inputs!$B$7/2*V33 -> 7.80852 | AA33: 10.07152
A34: 31 | C34: 68.2 | D34: 0 | E34: 0.24 | F34: 0.290016 | H34: 2 | I34: 0.4168 | K34: 68.2 | L34: 0 | M34: 0.60835 | N34: 1.2167 | P34: 68.2 | Q34: 0 | R34: 0.36835 | S34: 0.926684 | U34: 0.184175 | V34: 0.647517 | X34: =Inputs!$B$7/2*U34 -> 2.2101 | Y34: =Inputs!$B$7/2*V34 -> 7.770204 | AA34: 9.980304
A35: 32 | C35: 70.4 | D35: 0 | E35: 0.24 | F35: 0.269952 | H35: 2 | I35: 0.2496 | K35: 70.4 | L35: 0 | M35: 0.5995333333 | N35: 1.199066667 | P35: 70.4 | Q35: 0 | R35: 0.3595333333 | S35: 0.9291146667 | U35: 0.1797666667 | V35: 0.644324 | X35: =Inputs!$B$7/2*U35 -> 2.1572 | Y35: =Inputs!$B$7/2*V35 -> 7.731888 | AA35: 9.889088
A36: 33 | C36: 72.6 | D36: 0 | E36: 0.24 | F36: 0.249888 | H36: 2 | I36: 0.0824 | K36: 72.6 | L36: 0 | M36: 0.5907166667 | N36: 1.181433333 | P36: 72.6 | Q36: 0 | R36: 0.3507166667 | S36: 0.9315453333 | U36: 0.1753583333 | V36: 0.641131 | X36: =Inputs!$B$7/2*U36 -> 2.1043 | Y36: =Inputs!$B$7/2*V36 -> 7.693572 | AA36: 9.797872
A37: 34 | C37: 74.8 | D37: 0 | E37: 0.24 | F37: 0.229824 | H37: 2 | I37: -0.0848 | K37: 74.8 | L37: 0 | M37: 0.5819 | N37: 1.1638 | P37: 74.8 | Q37: 0 | R37: 0.3419 | S37: 0.933976 | U37: 0.17095 | V37: 0.637938 | X37: =Inputs!$B$7/2*U37 -> 2.0514 | Y37: =Inputs!$B$7/2*V37 -> 7.655256 | AA37: 9.706656
A38: 35 | C38: 77 | D38: 0 | E38: 0.24 | F38: 0.20976 | H38: 2 | I38: -0.252 | K38: 77 | L38: 0 | M38: 0.5730833333 | N38: 1.146166667 | P38: 77 | Q38: 0 | R38: 0.3330833333 | S38: 0.9364066667 | U38: 0.1665416667 | V38: 0.634745 | X38: =Inputs!$B$7/2*U38 -> 1.9985 | Y38: =Inputs!$B$7/2*V38 -> 7.61694 | AA38: 9.61544
A39: 36 | C39: 79.2 | D39: 0 | E39: 0.24 | F39: 0.189696 | H39: 2 | I39: -0.4192 | K39: 79.2 | L39: 0 | M39: 0.5642666667 | N39: 1.128533333 | P39: 79.2 | Q39: 0 | R39: 0.3242666667 | S39: 0.9388373333 | U39: 0.1621333333 | V39: 0.631552 | X39: =Inputs!$B$7/2*U39 -> 1.9456 | Y39: =Inputs!$B$7/2*V39 -> 7.578624 | AA39: 9.524224
A40: 37 | C40: 81.4 | D40: 0 | E40: 0.24 | F40: 0.169632 | H40: 2 | I40: -0.5864 | K40: 81.4 | L40: 0 | M40: 0.55545 | N40: 1.1109 | P40: 81.4 | Q40: 0 | R40: 0.31545 | S40: 0.941268 | U40: 0.157725 | V40: 0.628359 | X40: =Inputs!$B$7/2*U40 -> 1.8927 | Y40: =Inputs!$B$7/2*V40 -> 7.540308 | AA40: 9.433008
A41: 38 | C41: 83.6 | D41: 0 | E41: 0.24 | F41: 0.149568 | H41: 2 | I41: -0.7536 | K41: 83.6 | L41: 0 | M41: 0.5466333333 | N41: 1.093266667 | P41: 83.6 | Q41: 0 | R41: 0.3066333333 | S41: 0.9436986667 | U41: 0.1533166667 | V41: 0.625166 | X41: =Inputs!$B$7/2*U41 -> 1.8398 | Y41: =Inputs!$B$7/2*V41 -> 7.501992 | AA41: 9.341792
A42: 39 | C42: 85.8 | D42: 0 | E42: 0.24 | F42: 0.129504 | H42: 2 | I42: -0.9208 | K42: 85.8 | L42: 0 | M42: 0.5378166667 | N42: 1.075633333 | P42: 85.8 | Q42: 0 | R42: 0.2978166667 | S42: 0.9461293333 | U42: 0.1489083333 | V42: 0.621973 | X42: =Inputs!$B$7/2*U42 -> 1.7869 | Y42: =Inputs!$B$7/2*V42 -> 7.463676 | AA42: 9.250576
A43: 40 | C43: 88 | D43: 0 | E43: 0.24 | F43: 0.10944 | H43: 2 | I43: -1.088 | K43: 88 | L43: 0 | M43: 0.529 | N43: 1.058 | P43: 88 | Q43: 0 | R43: 0.289 | S43: 0.94856 | U43: 0.1445 | V43: 0.61878 | X43: =Inputs!$B$7/2*U43 -> 1.734 | Y43: =Inputs!$B$7/2*V43 -> 7.42536 | AA43: 9.15936
A44: 41 | C44: 90.2 | D44: 0 | E44: 0.24 | F44: 0.089376 | H44: 2 | I44: -1.2552 | K44: 90.2 | L44: 0 | M44: 0.5201833333 | N44: 1.040366667 | P44: 90.2 | Q44: 0 | R44: 0.2801833333 | S44: 0.9509906667 | U44: 0.1400916667 | V44: 0.615587 | X44: =Inputs!$B$7/2*U44 -> 1.6811 | Y44: =Inputs!$B$7/2*V44 -> 7.387044 | AA44: 9.068144
A45: 42 | C45: 92.4 | D45: 0 | E45: 0.24 | F45: 0.069312 | H45: 2 | I45: -1.4224 | K45: 92.4 | L45: 0 | M45: 0.5113666667 | N45: 1.022733333 | P45: 92.4 | Q45: 0 | R45: 0.2713666667 | S45: 0.9534213333 | U45: 0.1356833333 | V45: 0.612394 | X45: =Inputs!$B$7/2*U45 -> 1.6282 | Y45: =Inputs!$B$7/2*V45 -> 7.348728 | AA45: 8.976928
A46: 43 | C46: 94.6 | D46: 0 | E46: 0.24 | F46: 0.049248 | H46: 2 | I46: -1.5896 | K46: 94.6 | L46: 0 | M46: 0.50255 | N46: 1.0051 | P46: 94.6 | Q46: 0 | R46: 0.26255 | S46: 0.955852 | U46: 0.131275 | V46: 0.609201 | X46: =Inputs!$B$7/2*U46 -> 1.5753 | Y46: =Inputs!$B$7/2*V46 -> 7.310412 | AA46: 8.885712
A47: 44 | C47: 96.8 | D47: 0 | E47: 0.24 | F47: 0.029184 | H47: 2 | I47: -1.7568 | K47: 96.8 | L47: 0 | M47: 0.4937333333 | N47: 0.9874666667 | P47: 96.8 | Q47: 0 | R47: 0.2537333333 | S47: 0.9582826667 | U47: 0.1268666667 | V47: 0.606008 | X47: =Inputs!$B$7/2*U47 -> 1.5224 | Y47: =Inputs!$B$7/2*V47 -> 7.272096 | AA47: 8.794496
A48: 45 | C48: 99 | D48: 0 | E48: 0.24 | F48: 0.00912 | H48: 2 | I48: -1.924 | K48: 99 | L48: 0 | M48: 0.4849166667 | N48: 0.9698333333 | P48: 99 | Q48: 0 | R48: 0.2449166667 | S48: 0.9607133333 | U48: 0.1224583333 | V48: 0.602815 | X48: =Inputs!$B$7/2*U48 -> 1.4695 | Y48: =Inputs!$B$7/2*V48 -> 7.23378 | AA48: 8.70328
A49: 46 | C49: 101.2 | D49: 0 | E49: 0.24 | F49: 0 | H49: 2 | I49: -2 | K49: 101.2 | L49: 0 | M49: 0.4761 | N49: 0.9522 | P49: 101.2 | Q49: 0 | R49: 0.2361 | S49: 0.9522 | U49: 0.11805 | V49: 0.59415 | X49: =Inputs!$B$7/2*U49 -> 1.4166 | Y49: =Inputs!$B$7/2*V49 -> 7.1298 | AA49: 8.5464
A50: 47 | C50: 103.4 | D50: 0 | E50: 0.24 | F50: 0 | H50: 2 | I50: -2 | K50: 103.4 | L50: 0 | M50: 0.4672833333 | N50: 0.9345666667 | P50: 103.4 | Q50: 0 | R50: 0.2272833333 | S50: 0.9345666667 | U50: 0.1136416667 | V50: 0.580925 | X50: =Inputs!$B$7/2*U50 -> 1.3637 | Y50: =Inputs!$B$7/2*V50 -> 6.9711 | AA50: 8.3348
A51: 48 | C51: 105.6 | D51: 0 | E51: 0.24 | F51: 0 | H51: 2 | I51: -2 | K51: 105.6 | L51: 0 | M51: 0.4584666667 | N51: 0.9169333333 | P51: 105.6 | Q51: 0 | R51: 0.2184666667 | S51: 0.9169333333 | U51: 0.1092333333 | V51: 0.5677 | X51: =Inputs!$B$7/2*U51 -> 1.3108 | Y51: =Inputs!$B$7/2*V51 -> 6.8124 | AA51: 8.1232
A52: 49 | C52: 107.8 | D52: 0 | E52: 0.24 | F52: 0 | H52: 2 | I52: -2 | K52: 107.8 | L52: 0 | M52: 0.44965 | N52: 0.8993 | P52: 107.8 | Q52: 0 | R52: 0.20965 | S52: 0.8993 | U52: 0.104825 | V52: 0.554475 | X52: =Inputs!$B$7/2*U52 -> 1.2579 | Y52: =Inputs!$B$7/2*V52 -> 6.6537 | AA52: 7.9116
A53: 50 | C53: 110 | D53: 0 | E53: 0.24 | F53: 0 | H53: 2 | I53: -2 | K53: 110 | L53: 0 | M53: 0.4408333333 | N53: 0.8816666667 | P53: 110 | Q53: 0 | R53: 0.2008333333 | S53: 0.8816666667 | U53: 0.1004166667 | V53: 0.54125 | X53: =Inputs!$B$7/2*U53 -> 1.205 | Y53: =Inputs!$B$7/2*V53 -> 6.495 | AA53: 7.7
A54: 51 | C54: 112.2 | D54: 0 | E54: 0.24 | F54: 0 | H54: 2 | I54: -2 | K54: 112.2 | L54: 0 | M54: 0.4320166667 | N54: 0.8640333333 | P54: 112.2 | Q54: 0 | R54: 0.1920166667 | S54: 0.8640333333 | U54: 0.09600833333 | V54: 0.528025 | X54: =Inputs!$B$7/2*U54 -> 1.1521 | Y54: =Inputs!$B$7/2*V54 -> 6.3363 | AA54: 7.4884
A55: 52 | C55: 114.4 | D55: 0 | E55: 0.24 | F55: 0 | H55: 2 | I55: -2 | K55: 114.4 | L55: 0 | M55: 0.4232 | N55: 0.8464 | P55: 114.4 | Q55: 0 | R55: 0.1832 | S55: 0.8464 | U55: 0.0916 | V55: 0.5148 | X55: =Inputs!$B$7/2*U55 -> 1.0992 | Y55: =Inputs!$B$7/2*V55 -> 6.1776 | AA55: 7.2768
A56: 53 | C56: 116.6 | D56: 0 | E56: 0.24 | F56: 0 | H56: 2 | I56: -2 | K56: 116.6 | L56: 0 | M56: 0.4143833333 | N56: 0.8287666667 | P56: 116.6 | Q56: 0 | R56: 0.1743833333 | S56: 0.8287666667 | U56: 0.08719166667 | V56: 0.501575 | X56: =Inputs!$B$7/2*U56 -> 1.0463 | Y56: =Inputs!$B$7/2*V56 -> 6.0189 | AA56: 7.0652
A57: 54 | C57: 118.8 | D57: 0 | E57: 0.24 | F57: 0 | H57: 2 | I57: -2 | K57: 118.8 | L57: 0 | M57: 0.4055666667 | N57: 0.8111333333 | P57: 118.8 | Q57: 0 | R57: 0.1655666667 | S57: 0.8111333333 | U57: 0.08278333333 | V57: 0.48835 | X57: =Inputs!$B$7/2*U57 -> 0.9934 | Y57: =Inputs!$B$7/2*V57 -> 5.8602 | AA57: 6.8536
A58: 55 | C58: 121 | D58: 0 | E58: 0.24 | F58: 0 | H58: 2 | I58: -2 | K58: 121 | L58: 0 | M58: 0.39675 | N58: 0.7935 | P58: 121 | Q58: 0 | R58: 0.15675 | S58: 0.7935 | U58: 0.078375 | V58: 0.475125 | X58: =Inputs!$B$7/2*U58 -> 0.9405 | Y58: =Inputs!$B$7/2*V58 -> 5.7015 | AA58: 6.642
A59: 56 | C59: 123.2 | D59: 0 | E59: 0.24 | F59: 0 | H59: 2 | I59: -2 | K59: 123.2 | L59: 0 | M59: 0.3879333333 | N59: 0.7758666667 | P59: 123.2 | Q59: 0 | R59: 0.1479333333 | S59: 0.7758666667 | U59: 0.07396666667 | V59: 0.4619 | X59: =Inputs!$B$7/2*U59 -> 0.8876 | Y59: =Inputs!$B$7/2*V59 -> 5.5428 | AA59: 6.4304
A60: 57 | C60: 125.4 | D60: 0 | E60: 0.24 | F60: 0 | H60: 2 | I60: -2 | K60: 125.4 | L60: 0 | M60: 0.3791166667 | N60: 0.7582333333 | P60: 125.4 | Q60: 0 | R60: 0.1391166667 | S60: 0.7582333333 | U60: 0.06955833333 | V60: 0.448675 | X60: =Inputs!$B$7/2*U60 -> 0.8347 | Y60: =Inputs!$B$7/2*V60 -> 5.3841 | AA60: 6.2188
A61: 58 | C61: 127.6 | D61: 0 | E61: 0.24 | F61: 0 | H61: 2 | I61: -2 | K61: 127.6 | L61: 0 | M61: 0.3703 | N61: 0.7406 | P61: 127.6 | Q61: 0 | R61: 0.1303 | S61: 0.7406 | U61: 0.06515 | V61: 0.43545 | X61: =Inputs!$B$7/2*U61 -> 0.7818 | Y61: =Inputs!$B$7/2*V61 -> 5.2254 | AA61: 6.0072
A62: 59 | C62: 129.8 | D62: 0 | E62: 0.24 | F62: 0 | H62: 2 | I62: -2 | K62: 129.8 | L62: 0 | M62: 0.3614833333 | N62: 0.7229666667 | P62: 129.8 | Q62: 0 | R62: 0.1214833333 | S62: 0.7229666667 | U62: 0.06074166667 | V62: 0.422225 | X62: =Inputs!$B$7/2*U62 -> 0.7289 | Y62: =Inputs!$B$7/2*V62 -> 5.0667 | AA62: 5.7956
A63: 60 | C63: 132 | D63: 0 | E63: 0.24 | F63: 0 | H63: 2 | I63: -2 | K63: 132 | L63: 0 | M63: 0.3526666667 | N63: 0.7053333333 | P63: 132 | Q63: 0 | R63: 0.1126666667 | S63: 0.7053333333 | U63: 0.05633333333 | V63: 0.409 | X63: =Inputs!$B$7/2*U63 -> 0.676 | Y63: =Inputs!$B$7/2*V63 -> 4.908 | AA63: 5.584
A64: 61 | C64: 134.2 | D64: 0 | E64: 0.24 | F64: 0 | H64: 2 | I64: -2 | K64: 134.2 | L64: 0 | M64: 0.34385 | N64: 0.6877 | P64: 134.2 | Q64: 0 | R64: 0.10385 | S64: 0.6877 | U64: 0.051925 | V64: 0.395775 | X64: =Inputs!$B$7/2*U64 -> 0.6231 | Y64: =Inputs!$B$7/2*V64 -> 4.7493 | AA64: 5.3724
A65: 62 | C65: 136.4 | D65: 0 | E65: 0.24 | F65: 0 | H65: 2 | I65: -2 | K65: 136.4 | L65: 0 | M65: 0.3350333333 | N65: 0.6700666667 | P65: 136.4 | Q65: 0 | R65: 0.09503333333 | S65: 0.6700666667 | U65: 0.04751666667 | V65: 0.38255 | X65: =Inputs!$B$7/2*U65 -> 0.5702 | Y65: =Inputs!$B$7/2*V65 -> 4.5906 | AA65: 5.1608
A66: 63 | C66: 138.6 | D66: 0 | E66: 0.24 | F66: 0 | H66: 2 | I66: -2 | K66: 138.6 | L66: 0 | M66: 0.3262166667 | N66: 0.6524333333 | P66: 138.6 | Q66: 0 | R66: 0.08621666667 | S66: 0.6524333333 | U66: 0.04310833333 | V66: 0.369325 | X66: =Inputs!$B$7/2*U66 -> 0.5173 | Y66: =Inputs!$B$7/2*V66 -> 4.4319 | AA66: 4.9492
A67: 64 | C67: 140.8 | D67: 0 | E67: 0.24 | F67: 0 | H67: 2 | I67: -2 | K67: 140.8 | L67: 0 | M67: 0.3174 | N67: 0.6348 | P67: 140.8 | Q67: 0 | R67: 0.0774 | S67: 0.6348 | U67: 0.0387 | V67: 0.3561 | X67: =Inputs!$B$7/2*U67 -> 0.4644 | Y67: =Inputs!$B$7/2*V67 -> 4.2732 | AA67: 4.7376
A68: 65 | C68: 143 | D68: 0 | E68: =IF(AVERAGE(D68,F68)<0.24,0.24,AVERAGE(D68,F68)) -> 0.24 | F68: 0 | H68: =E68/12*100 -> 2 | I68: =(F68-E68)/12*100 -> -2 | K68: =C68 -> 143 | L68: 0 | M68: 0.3085833333 | N68: 0.6171666667 | P68: =K68 -> 143 | Q68: =L68-D68 -> 0 | R68: 0.06858333333 | S68: 0.6171666667 | U68: =AVERAGE(Q68:R68) -> 0.03429166667 | V68: 0.342875 | X68: =Inputs!$B$7/2*U68 -> 0.4115 | Y68: =Inputs!$B$7/2*V68 -> 4.1145 | AA68: =X68+Y68 -> 4.526
A69: =A68+1 -> 66 | C69: 145.2 | D69: 0 | E69: 0.24 | F69: =IF(C69<A$106,F$3*(1-C69/A$106),0) -> 0 | H69: 2 | I69: -2 | K69: 145.2 | L69: =IF(K69>50,0,(1-K69/50)/12) -> 0 | M69: =IF(AVERAGE(L69,N69)<0.24,0.24,AVERAGE(L69,N69)) -> 0.2997666667 | N69: =N$3*(1-K69/C$103) -> 0.5995333333 | P69: 145.2 | Q69: 0 | R69: 0.05976666667 | S69: 0.5995333333 | U69: 0.02988333333 | V69: 0.32965 | X69: =Inputs!$B$7/2*U69 -> 0.3586 | Y69: =Inputs!$B$7/2*V69 -> 3.9558 | AA69: 4.3144
A70: 67 | C70: =A70/100*C$103 -> 147.4 | D70: 0 | E70: 0.24 | F70: 0 | H70: 2 | I70: -2 | K70: 147.4 | L70: 0 | M70: 0.29095 | N70: 0.5819 | P70: 147.4 | Q70: 0 | R70: 0.05095 | S70: 0.5819 | U70: 0.025475 | V70: 0.316425 | X70: =Inputs!$B$7/2*U70 -> 0.3057 | Y70: =Inputs!$B$7/2*V70 -> 3.7971 | AA70: 4.1028
A71: 68 | C71: 149.6 | D71: 0 | E71: 0.24 | F71: 0 | H71: 2 | I71: -2 | K71: 149.6 | L71: 0 | M71: 0.2821333333 | N71: 0.5642666667 | P71: 149.6 | Q71: 0 | R71: 0.04213333333 | S71: 0.5642666667 | U71: 0.02106666667 | V71: 0.3032 | X71: =Inputs!$B$7/2*U71 -> 0.2528 | Y71: =Inputs!$B$7/2*V71 -> 3.6384 | AA71: 3.8912
A72: 69 | C72: 151.8 | D72: 0 | E72: 0.24 | F72: 0 | H72: 2 | I72: -2 | K72: 151.8 | L72: 0 | M72: 0.2733166667 | N72: 0.5466333333 | P72: 151.8 | Q72: 0 | R72: 0.03331666667 | S72: 0.5466333333 | U72: 0.01665833333 | V72: 0.289975 | X72: =Inputs!$B$7/2*U72 -> 0.1999 | Y72: =Inputs!$B$7/2*V72 -> 3.4797 | AA72: 3.6796
A73: 70 | C73: 154 | D73: 0 | E73: 0.24 | F73: 0 | H73: 2 | I73: -2 | K73: 154 | L73: 0 | M73: 0.2645 | N73: 0.529 | P73: 154 | Q73: 0 | R73: 0.0245 | S73: 0.529 | U73: 0.01225 | V73: 0.27675 | X73: =Inputs!$B$7/2*U73 -> 0.147 | Y73: =Inputs!$B$7/2*V73 -> 3.321 | AA73: 3.468
A74: 71 | C74: 156.2 | D74: 0 | E74: 0.24 | F74: 0 | H74: 2 | I74: -2 | K74: 156.2 | L74: 0 | M74: 0.2556833333 | N74: 0.5113666667 | P74: 156.2 | Q74: 0 | R74: 0.01568333333 | S74: 0.5113666667 | U74: 0.007841666667 | V74: 0.263525 | X74: =Inputs!$B$7/2*U74 -> 0.0941 | Y74: =Inputs!$B$7/2*V74 -> 3.1623 | AA74: 3.2564
A75: 72 | C75: 158.4 | D75: 0 | E75: 0.24 | F75: 0 | H75: 2 | I75: -2 | K75: 158.4 | L75: 0 | M75: 0.2468666667 | N75: 0.4937333333 | P75: 158.4 | Q75: 0 | R75: 0.006866666667 | S75: 0.4937333333 | U75: 0.003433333333 | V75: 0.2503 | X75: =Inputs!$B$7/2*U75 -> 0.0412 | Y75: =Inputs!$B$7/2*V75 -> 3.0036 | AA75: 3.0448
A76: 73 | C76: 160.6 | D76: 0 | E76: 0.24 | F76: 0 | H76: 2 | I76: -2 | K76: 160.6 | L76: 0 | M76: 0.24 | N76: 0.4761 | P76: 160.6 | Q76: 0 | R76: 0 | S76: 0.4761 | U76: 0 | V76: 0.23805 | X76: =Inputs!$B$7/2*U76 -> 0 | Y76: =Inputs!$B$7/2*V76 -> 2.8566 | AA76: 2.8566
A77: 74 | C77: 162.8 | D77: 0 | E77: 0.24 | F77: 0 | H77: 2 | I77: -2 | K77: 162.8 | L77: 0 | M77: 0.24 | N77: 0.4584666667 | P77: 162.8 | Q77: 0 | R77: 0 | S77: 0.4584666667 | U77: 0 | V77: 0.2292333333 | X77: =Inputs!$B$7/2*U77 -> 0 | Y77: =Inputs!$B$7/2*V77 -> 2.7508 | AA77: 2.7508
A78: 75 | C78: 165 | D78: 0 | E78: 0.24 | F78: 0 | H78: 2 | I78: -2 | K78: 165 | L78: 0 | M78: 0.24 | N78: 0.4408333333 | P78: 165 | Q78: 0 | R78: 0 | S78: 0.4408333333 | U78: 0 | V78: 0.2204166667 | X78: =Inputs!$B$7/2*U78 -> 0 | Y78: =Inputs!$B$7/2*V78 -> 2.645 | AA78: 2.645
A79: 76 | C79: 167.2 | D79: 0 | E79: 0.24 | F79: 0 | H79: 2 | I79: -2 | K79: 167.2 | L79: 0 | M79: 0.24 | N79: 0.4232 | P79: 167.2 | Q79: 0 | R79: 0 | S79: 0.4232 | U79: 0 | V79: 0.2116 | X79: =Inputs!$B$7/2*U79 -> 0 | Y79: =Inputs!$B$7/2*V79 -> 2.5392 | AA79: 2.5392
A80: 77 | C80: 169.4 | D80: 0 | E80: 0.24 | F80: 0 | H80: 2 | I80: -2 | K80: 169.4 | L80: 0 | M80: 0.24 | N80: 0.4055666667 | P80: 169.4 | Q80: 0 | R80: 0 | S80: 0.4055666667 | U80: 0 | V80: 0.2027833333 | X80: =Inputs!$B$7/2*U80 -> 0 | Y80: =Inputs!$B$7/2*V80 -> 2.4334 | AA80: 2.4334
A81: 78 | C81: 171.6 | D81: 0 | E81: 0.24 | F81: 0 | H81: 2 | I81: -2 | K81: 171.6 | L81: 0 | M81: 0.24 | N81: 0.3879333333 | P81: 171.6 | Q81: 0 | R81: 0 | S81: 0.3879333333 | U81: 0 | V81: 0.1939666667 | X81: =Inputs!$B$7/2*U81 -> 0 | Y81: =Inputs!$B$7/2*V81 -> 2.3276 | AA81: 2.3276
A82: 79 | C82: 173.8 | D82: 0 | E82: 0.24 | F82: 0 | H82: 2 | I82: -2 | K82: 173.8 | L82: 0 | M82: 0.24 | N82: 0.3703 | P82: 173.8 | Q82: 0 | R82: 0 | S82: 0.3703 | U82: 0 | V82: 0.18515 | X82: =Inputs!$B$7/2*U82 -> 0 | Y82: =Inputs!$B$7/2*V82 -> 2.2218 | AA82: 2.2218
A83: 80 | C83: 176 | D83: 0 | E83: 0.24 | F83: 0 | H83: 2 | I83: -2 | K83: 176 | L83: 0 | M83: 0.24 | N83: 0.3526666667 | P83: 176 | Q83: 0 | R83: 0 | S83: 0.3526666667 | U83: 0 | V83: 0.1763333333 | X83: =Inputs!$B$7/2*U83 -> 0 | Y83: =Inputs!$B$7/2*V83 -> 2.116 | AA83: 2.116
A84: 81 | C84: =A84/100*C$103 -> 178.2 | D84: 0 | E84: 0.24 | F84: 0 | H84: 2 | I84: -2 | K84: 178.2 | L84: 0 | M84: 0.24 | N84: 0.3350333333 | P84: 178.2 | Q84: 0 | R84: 0 | S84: 0.3350333333 | U84: 0 | V84: 0.1675166667 | X84: =Inputs!$B$7/2*U84 -> 0 | Y84: =Inputs!$B$7/2*V84 -> 2.0102 | AA84: 2.0102
A85: 82 | C85: =A85/100*C$103 -> 180.4 | D85: 0 | E85: 0.24 | F85: 0 | H85: 2 | I85: -2 | K85: 180.4 | L85: 0 | M85: 0.24 | N85: 0.3174 | P85: 180.4 | Q85: 0 | R85: 0 | S85: 0.3174 | U85: 0 | V85: 0.1587 | X85: =Inputs!$B$7/2*U85 -> 0 | Y85: =Inputs!$B$7/2*V85 -> 1.9044 | AA85: 1.9044
A86: 83 | C86: 182.6 | D86: 0 | E86: 0.24 | F86: 0 | H86: 2 | I86: -2 | K86: 182.6 | L86: 0 | M86: 0.24 | N86: 0.2997666667 | P86: 182.6 | Q86: 0 | R86: 0 | S86: 0.2997666667 | U86: 0 | V86: 0.1498833333 | X86: =Inputs!$B$7/2*U86 -> 0 | Y86: =Inputs!$B$7/2*V86 -> 1.7986 | AA86: 1.7986
A87: 84 | C87: 184.8 | D87: 0 | E87: 0.24 | F87: 0 | H87: 2 | I87: -2 | K87: 184.8 | L87: 0 | M87: 0.24 | N87: 0.2821333333 | P87: 184.8 | Q87: 0 | R87: 0 | S87: 0.2821333333 | U87: 0 | V87: 0.1410666667 | X87: =Inputs!$B$7/2*U87 -> 0 | Y87: =Inputs!$B$7/2*V87 -> 1.6928 | AA87: 1.6928
A88: 85 | C88: 187 | D88: 0 | E88: 0.24 | F88: 0 | H88: 2 | I88: -2 | K88: 187 | L88: 0 | M88: 0.24 | N88: 0.2645 | P88: 187 | Q88: 0 | R88: 0 | S88: 0.2645 | U88: 0 | V88: 0.13225 | X88: =Inputs!$B$7/2*U88 -> 0 | Y88: =Inputs!$B$7/2*V88 -> 1.587 | AA88: 1.587
A89: 86 | C89: 189.2 | D89: 0 | E89: 0.24 | F89: 0 | H89: 2 | I89: -2 | K89: 189.2 | L89: 0 | M89: 0.24 | N89: 0.2468666667 | P89: 189.2 | Q89: 0 | R89: 0 | S89: 0.2468666667 | U89: 0 | V89: 0.1234333333 | X89: =Inputs!$B$7/2*U89 -> 0 | Y89: =Inputs!$B$7/2*V89 -> 1.4812 | AA89: 1.4812
A90: 87 | C90: 191.4 | D90: 0 | E90: 0.24 | F90: 0 | H90: 2 | I90: -2 | K90: 191.4 | L90: 0 | M90: 0.24 | N90: 0.2292333333 | P90: 191.4 | Q90: 0 | R90: 0 | S90: 0.2292333333 | U90: 0 | V90: 0.1146166667 | X90: =Inputs!$B$7/2*U90 -> 0 | Y90: =Inputs!$B$7/2*V90 -> 1.3754 | AA90: 1.3754
A91: 88 | C91: 193.6 | D91: 0 | E91: 0.24 | F91: 0 | H91: 2 | I91: -2 | K91: 193.6 | L91: 0 | M91: 0.24 | N91: 0.2116 | P91: 193.6 | Q91: 0 | R91: 0 | S91: 0.2116 | U91: 0 | V91: 0.1058 | X91: =Inputs!$B$7/2*U91 -> 0 | Y91: =Inputs!$B$7/2*V91 -> 1.2696 | AA91: 1.2696
A92: 89 | C92: 195.8 | D92: 0 | E92: 0.24 | F92: 0 | H92: 2 | I92: -2 | K92: 195.8 | L92: 0 | M92: 0.24 | N92: 0.1939666667 | P92: 195.8 | Q92: 0 | R92: 0 | S92: 0.1939666667 | U92: 0 | V92: 0.09698333333 | X92: =Inputs!$B$7/2*U92 -> 0 | Y92: =Inputs!$B$7/2*V92 -> 1.1638 | AA92: 1.1638
A93: 90 | C93: 198 | D93: 0 | E93: 0.24 | F93: 0 | H93: 2 | I93: -2 | K93: 198 | L93: 0 | M93: 0.24 | N93: 0.1763333333 | P93: 198 | Q93: 0 | R93: 0 | S93: 0.1763333333 | U93: 0 | V93: 0.08816666667 | X93: =Inputs!$B$7/2*U93 -> 0 | Y93: =Inputs!$B$7/2*V93 -> 1.058 | AA93: 1.058
A94: 91 | C94: 200.2 | D94: 0 | E94: 0.24 | F94: 0 | H94: 2 | I94: -2 | K94: 200.2 | L94: 0 | M94: 0.24 | N94: 0.1587 | P94: 200.2 | Q94: 0 | R94: 0 | S94: 0.1587 | U94: 0 | V94: 0.07935 | X94: =Inputs!$B$7/2*U94 -> 0 | Y94: =Inputs!$B$7/2*V94 -> 0.9522 | AA94: 0.9522
A95: 92 | C95: 202.4 | D95: 0 | E95: 0.24 | F95: 0 | H95: 2 | I95: -2 | K95: 202.4 | L95: 0 | M95: 0.24 | N95: 0.1410666667 | P95: 202.4 | Q95: 0 | R95: 0 | S95: 0.1410666667 | U95: 0 | V95: 0.07053333333 | X95: =Inputs!$B$7/2*U95 -> 0 | Y95: =Inputs!$B$7/2*V95 -> 0.8464 | AA95: 0.8464
A96: 93 | C96: 204.6 | D96: 0 | E96: 0.24 | F96: 0 | H96: 2 | I96: -2 | K96: 204.6 | L96: 0 | M96: 0.24 | N96: 0.1234333333 | P96: 204.6 | Q96: 0 | R96: 0 | S96: 0.1234333333 | U96: 0 | V96: 0.06171666667 | X96: =Inputs!$B$7/2*U96 -> 0 | Y96: =Inputs!$B$7/2*V96 -> 0.7406 | AA96: 0.7406
A97: 94 | C97: 206.8 | D97: 0 | E97: 0.24 | F97: 0 | H97: 2 | I97: -2 | K97: 206.8 | L97: 0 | M97: 0.24 | N97: 0.1058 | P97: 206.8 | Q97: 0 | R97: 0 | S97: 0.1058 | U97: 0 | V97: 0.0529 | X97: =Inputs!$B$7/2*U97 -> 0 | Y97: =Inputs!$B$7/2*V97 -> 0.6348 | AA97: 0.6348
A98: 95 | C98: 209 | D98: 0 | E98: 0.24 | F98: 0 | H98: 2 | I98: -2 | K98: 209 | L98: 0 | M98: 0.24 | N98: 0.08816666667 | P98: 209 | Q98: 0 | R98: 0 | S98: 0.08816666667 | U98: 0 | V98: 0.04408333333 | X98: =Inputs!$B$7/2*U98 -> 0 | Y98: =Inputs!$B$7/2*V98 -> 0.529 | AA98: 0.529
A99: 96 | C99: 211.2 | D99: 0 | E99: 0.24 | F99: 0 | H99: 2 | I99: -2 | K99: 211.2 | L99: 0 | M99: 0.24 | N99: 0.07053333333 | P99: 211.2 | Q99: 0 | R99: 0 | S99: 0.07053333333 | U99: 0 | V99: 0.03526666667 | X99: =Inputs!$B$7/2*U99 -> 0 | Y99: =Inputs!$B$7/2*V99 -> 0.4232 | AA99: 0.4232
A100: 97 | C100: 213.4 | D100: 0 | E100: 0.24 | F100: 0 | H100: 2 | I100: -2 | K100: 213.4 | L100: 0 | M100: 0.24 | N100: 0.0529 | P100: 213.4 | Q100: 0 | R100: 0 | S100: 0.0529 | U100: 0 | V100: 0.02645 | X100: =Inputs!$B$7/2*U100 -> 0 | Y100: =Inputs!$B$7/2*V100 -> 0.3174 | AA100: 0.3174
A101: 98 | C101: 215.6 | D101: 0 | E101: =IF(AVERAGE(D101,F101)<0.24,0.24,AVERAGE(D101,F101)) -> 0.24 | F101: 0 | H101: 2 | I101: -2 | K101: 215.6 | L101: 0 | M101: 0.24 | N101: 0.03526666667 | P101: 215.6 | Q101: 0 | R101: 0 | S101: 0.03526666667 | U101: 0 | V101: 0.01763333333 | X101: =Inputs!$B$7/2*U101 -> 0 | Y101: =Inputs!$B$7/2*V101 -> 0.2116 | AA101: 0.2116
A102: 99 | C102: 217.8 | D102: 0 | E102: =IF(AVERAGE(D102,F102)<0.24,0.24,AVERAGE(D102,F102)) -> 0.24 | F102: 0 | H102: 2 | I102: -2 | K102: 217.8 | L102: 0 | M102: 0.24 | N102: 0.01763333333 | P102: 217.8 | Q102: 0 | R102: 0 | S102: 0.01763333333 | U102: 0 | V102: 0.008816666667 | X102: =Inputs!$B$7/2*U102 -> 0 | Y102: =Inputs!$B$7/2*V102 -> 0.1058 | AA102: 0.1058
C103: =IF(Inputs!B4<0.01,Inputs!B40,Inputs!B4) -> 220 | D103: 0 | E103: 0.24 | F103: 0 | H103: 2 | I103: -2 | K103: 220 | L103: 0 | M103: 0.24 | N103: 0 | P103: 220 | Q103: 0 | R103: 0 | S103: 0 | U103: 0 | V103: 0 | X103: =Inputs!$B$7/2*U103 -> 0 | Y103: =Inputs!$B$7/2*V103 -> 0 | AA103: 0
A105: Old STL
A106: =IF(Inputs!B5<0.01,Inputs!B33,Inputs!B5) -> 100 | Z106: Average Area: | AA106: =AVERAGE(AA3:AA103,AB4:AB102) -> 6.672136079
Z107: Total Volume: | AA107: =AA106*(C103)*2 -> 2935.739875

Sheet Sheet1
